Organisation Name,Organisation Code,Effective Date,Directorate,Service Category,Service Category URI,Supplier Name,Payment Date,Transaction Number,Net Amount,Irrecoverable VAT,Purpose_of_the_expenditure,Merchant Category,
Wyre Council,http://opendatacommunities.org/doc/district-council/wyre,30/03/2023,People and Places,Cultural and Related Services,132A,Preston City Council,06/03/2023,PE147730,375.00,0.00,Panto 22 -A5 full colour 1pp printed digital on 150gsm carbon neutral silk 1-2 day turnaround,Advertising - General,
Wyre Council,http://opendatacommunities.org/doc/district-council/wyre,30/03/2023,People and Places,Cultural and Related Services,132A,Preston City Council,06/03/2023,PE147730,66.22,0.00,Panto 22 - 3 Bus Stop Posters,Advertising - General,
Wyre Council,http://opendatacommunities.org/doc/district-council/wyre,30/03/2023,People and Places,Cultural and Related Services,132A,Preston City Council,24/03/2023,PE148277,66.22,0.00,Simon & Garfunkel- 3 Bus Stop Posters (1200x1800 full colour 1pp printed digital on 200mic poly prop,Advertising - General,
Wyre Council,http://opendatacommunities.org/doc/district-council/wyre,30/03/2023,People and Places,Cultural and Related Services,132A,Preston City Council,24/03/2023,PE148277,191.22,0.00,1200x1800 full colour 1pp printed digital on 200mic poly prop  - Elvis  - Upbeat Beatles  - Bon Jovi,Advertising - General,
Wyre Council,http://opendatacommunities.org/doc/district-council/wyre,30/03/2023,People and Places,Cultural and Related Services,132A,Preston City Council,24/03/2023,PE148277,95.61,0.00,6 bus stop poster Elvis / Bon Jovi / Upbeat Beatles  1400x1000 full colour 1pp printed digital on 200mic poly prop,Advertising - General,
Wyre Council,http://opendatacommunities.org/doc/district-council/wyre,30/03/2023,People and Places,Cultural and Related Services,132A,Preston City Council,24/03/2023,PE148280,1856.00,0.00,"30,0000 copies of Wyre Theatres What`s On Guide",Advertising - General,
Wyre Council,http://opendatacommunities.org/doc/district-council/wyre,30/03/2023,People and Places,Cultural and Related Services,132A,MSG Media Limited,14/03/2023,PE148049,750.00,0.00,LINK MAG April 2023 - 15k 12pp DL Brochure  Distribution for Whats on Guide,Advertising - General,
Wyre Council,http://opendatacommunities.org/doc/district-council/wyre,30/03/2023,Resources,Planning and Development Servs,132C,Daisy Communications LTD,17/03/2023,RS147780,42.91,0.00,Monthly Phone Charges,Advertising - General,
Wyre Council,http://opendatacommunities.org/doc/district-council/wyre,30/03/2023,People and Places,Cultural and Related Services,132A,Northern Print Distribution,20/03/2023,PE148168,195.00,0.00,5k distribution of Whats on Guide - Marine Hall,Advertising - General,
Wyre Council,http://opendatacommunities.org/doc/district-council/wyre,30/03/2023,People and Places,Cultural and Related Services,132A,NEWSQUEST MEDIA GROUP,30/03/2023,PE147711,825.00,0.00,1x full page in March edition of Lancashire Life to promote Garstang Walking Festival,Advertising - General,
Wyre Council,http://opendatacommunities.org/doc/district-council/wyre,30/03/2023,People and Places,Planning and Development Servs,132C,National World Publishing Ltd,06/03/2023,PE147729,432.00,0.00,Press notice for Garstang Courier and Blackpool Gazette 11.01.23,Advertising - Statutory Notices,
Wyre Council,http://opendatacommunities.org/doc/district-council/wyre,30/03/2023,People and Places,Planning and Development Servs,132C,National World Publishing Ltd,24/03/2023,PE148326,462.30,0.00,Press notice for Blackpool and Garstang publications 22.03.23,Advertising - Statutory Notices,
Wyre Council,http://opendatacommunities.org/doc/district-council/wyre,30/03/2023,People and Places,Planning and Development Servs,132C,National World Publishing Ltd,13/03/2023,PE147989,166.32,0.00,Press notice for Fleetwood weekly news 08.03.23,Advertising - Statutory Notices,
Wyre Council,http://opendatacommunities.org/doc/district-council/wyre,30/03/2023,People and Places,Planning and Development Servs,132C,National World Publishing Ltd,13/03/2023,PE147990,215.74,0.00,Press notice for Blackpool and Garstang publications 08.03.23,Advertising - Statutory Notices,
Wyre Council,http://opendatacommunities.org/doc/district-council/wyre,30/03/2023,Resources,Housing General Fund,134A,Blackpool Electrical Traders LTD,22/03/2023,RS147649,842.68,0.00,payment of invoice - 021685,Affordable Warmth 2017/18,
Wyre Council,http://opendatacommunities.org/doc/district-council/wyre,30/03/2023,Resources,Housing General Fund,134A,Huck Properties LTD,22/03/2023,RS148169,85.00,0.00,Affordable warmth support,Affordable Warmth 2017/18,
Wyre Council,http://opendatacommunities.org/doc/district-council/wyre,30/03/2023,Resources,Housing General Fund,134A,Huck Properties LTD,22/03/2023,RS147666,390.00,0.00,payment of invoice 3897 affordable warmth support,Affordable Warmth 2017/18,
Wyre Council,http://opendatacommunities.org/doc/district-council/wyre,30/03/2023,Resources,Housing General Fund,134A,Huck Properties LTD,22/03/2023,RS147665,50.00,0.00,payment of invoice 3898 boiler service,Affordable Warmth 2017/18,
Wyre Council,http://opendatacommunities.org/doc/district-council/wyre,30/03/2023,Resources,Housing General Fund,134A,RHEA PROJECTS LTD,22/03/2023,RS148001,3309.78,0.00,affordable warmth support,Affordable Warmth 2017/18,
Wyre Council,http://opendatacommunities.org/doc/district-council/wyre,30/03/2023,Resources,Housing General Fund,134A,RHEA PROJECTS LTD,22/03/2023,RS147651,8940.00,0.00,Payment of invoice RP1754 - Affordable warmth support,Affordable Warmth 2017/18,
Wyre Council,http://opendatacommunities.org/doc/district-council/wyre,30/03/2023,People and Places,Support Services,135B,M J Wilkinson,28/03/2023,PE148392,66.00,0.00,Hire of labour only Order no: 1105410/2/23,Agency Staff,
Wyre Council,http://opendatacommunities.org/doc/district-council/wyre,30/03/2023,People and Places,Support Services,135B,M J Wilkinson,28/03/2023,PE148392,422.40,0.00,Hire of Labour only Order no: 110556/2/23 - 9/2/23,Agency Staff,
Wyre Council,http://opendatacommunities.org/doc/district-council/wyre,30/03/2023,People and Places,Support Services,135B,M J Wilkinson,28/03/2023,PE148394,105.60,0.00,Hire of Labour only Order no: 1105820/2/23,Agency Staff,
Wyre Council,http://opendatacommunities.org/doc/district-council/wyre,30/03/2023,People and Places,Support Services,135B,M J Wilkinson,23/03/2023,PE148254,171.60,0.00,Hire of Labour only @ 171.60Order no 1080016/1/23 to 20/1/23,Agency Staff,
Wyre Council,http://opendatacommunities.org/doc/district-council/wyre,30/03/2023,People and Places,Support Services,135B,M J Wilkinson,23/03/2023,PE148253,211.20,0.00,Hire of labour only order no 1079911/1/23 to 12/1/23,Agency Staff,
Wyre Council,http://opendatacommunities.org/doc/district-council/wyre,30/03/2023,People and Places,Support Services,135B,M J Wilkinson,23/03/2023,PE148256,382.80,0.00,Hire of labour only @ 382.80Order no 107983/1/23 to 6/1/23,Agency Staff,
Wyre Council,http://opendatacommunities.org/doc/district-council/wyre,30/03/2023,People and Places,Support Services,135B,M J Wilkinson,10/03/2023,PE147967,316.80,0.00,Hire of Labour5/12/22 to 7/12/22Order no 10795,Agency Staff,
Wyre Council,http://opendatacommunities.org/doc/district-council/wyre,30/03/2023,People and Places,Support Services,135B,M J Wilkinson,10/03/2023,PE147967,168.88,0.00,Hire of Hitachi ZX309/12/22 to 9/12/22Order no 10795,Agency Staff,
Wyre Council,http://opendatacommunities.org/doc/district-council/wyre,30/03/2023,People and Places,Support Services,135B,M J Wilkinson,10/03/2023,PE147967,52.82,0.00,Each way Transport 9/12/22 to 9/12/22Order no 10795,Agency Staff,
Wyre Council,http://opendatacommunities.org/doc/district-council/wyre,30/03/2023,People and Places,Support Services,135B,M J Wilkinson,10/03/2023,PE147966,422.40,0.00,Hire of labour only19/12/22 to 19/12/22Order no 10797,Agency Staff,
Wyre Council,http://opendatacommunities.org/doc/district-council/wyre,30/03/2023,People and Places,Support Services,135B,M J Wilkinson,10/03/2023,PE147965,488.40,0.00,Hire of Labour12/12/22 to 16/12/22order no 10796,Agency Staff,
Wyre Council,http://opendatacommunities.org/doc/district-council/wyre,30/03/2023,Resources,Support Services,135B,G2V Recruitment Group Ltd T/A G2 Recruitment Solu,13/03/2023,RS147999,1652.25,0.00,payment of invoice - NO 117894 - end 26/02/2023,Agency Staff,
Wyre Council,http://opendatacommunities.org/doc/district-council/wyre,30/03/2023,Resources,Support Services,135B,G2V Recruitment Group Ltd T/A G2 Recruitment Solu,24/03/2023,RS148115,1651.80,0.00,Payment of invoice  - NO - 118722 Period End 12/03/2023,Agency Staff,
Wyre Council,http://opendatacommunities.org/doc/district-council/wyre,30/03/2023,Resources,Support Services,135B,G2V Recruitment Group Ltd T/A G2 Recruitment Solu,01/03/2023,RS147579,1662.60,0.00,Payment of invoice no:177520 Period End 19/02/23,Agency Staff,
Wyre Council,http://opendatacommunities.org/doc/district-council/wyre,30/03/2023,Resources,Support Services,135B,G2V Recruitment Group Ltd T/A G2 Recruitment Solu,01/03/2023,RS147404,1664.85,0.00,Payment of invoice no:117520 Period End 12/02/2023,Agency Staff,
Wyre Council,http://opendatacommunities.org/doc/district-council/wyre,30/03/2023,Resources,Support Services,135B,G2V Recruitment Group Ltd T/A G2 Recruitment Solu,21/03/2023,RS147909,1653.60,0.00,Payment of invoice  - NO - 118340 period end 05/03/2023,Agency Staff,
Wyre Council,http://opendatacommunities.org/doc/district-council/wyre,30/03/2023,Resources,Support Services,135B,G2V Recruitment Group Ltd T/A G2 Recruitment Solu,28/03/2023,RS148281,1654.05,0.00,"Payment of invoice, NO-119169 Period End 19/03/2023",Agency Staff,
Wyre Council,http://opendatacommunities.org/doc/district-council/wyre,30/03/2023,Resources,Support Services,135B,Park Avenue Recruitment Ltd,22/03/2023,RS148248,2269.35,0.00,Appointment of an interim Estates Surveyor,Agency Staff,
Wyre Council,http://opendatacommunities.org/doc/district-council/wyre,30/03/2023,Resources,Support Services,135B,Park Avenue Recruitment Ltd,22/03/2023,RS148246,2484.20,0.00,Appointment of an interim Estates Surveyor,Agency Staff,
Wyre Council,http://opendatacommunities.org/doc/district-council/wyre,30/03/2023,Resources,Support Services,135B,Park Avenue Recruitment Ltd,22/03/2023,RS148249,2330.60,0.00,Appointment of an interim Estates Surveyor,Agency Staff,
Wyre Council,http://opendatacommunities.org/doc/district-council/wyre,30/03/2023,Resources,Support Services,135B,Park Avenue Recruitment Ltd,15/03/2023,RS147923,1725.00,0.00,"Appointment of an interim Estates Surveyor standard hours, Period End 18/09/22",Agency Staff,
Wyre Council,http://opendatacommunities.org/doc/district-council/wyre,30/03/2023,Resources,Support Services,135B,Park Avenue Recruitment Ltd,24/03/2023,RS148309,2238.05,0.00,Appointment of an interim Estates Surveyor,Agency Staff,
Wyre Council,http://opendatacommunities.org/doc/district-council/wyre,30/03/2023,Resources,Support Services,135B,Park Avenue Recruitment Ltd,24/03/2023,RS148308,1923.40,0.00,Appointment of an interim Estates Surveyor,Agency Staff,
Wyre Council,http://opendatacommunities.org/doc/district-council/wyre,30/03/2023,Resources,Support Services,135B,Park Avenue Recruitment Ltd,24/03/2023,RS148307,1593.45,0.00,Appointment of an interim Estates Surveyor,Agency Staff,
Wyre Council,http://opendatacommunities.org/doc/district-council/wyre,30/03/2023,Resources,Support Services,135B,Park Avenue Recruitment Ltd,24/03/2023,RS148296,4172.95,0.00,Appointment of an interim Estates Surveyor,Agency Staff,
Wyre Council,http://opendatacommunities.org/doc/district-council/wyre,30/03/2023,Resources,Support Services,135B,Michael Page International Recruitment Limited,17/03/2023,RS148104,2500.00,0.00,Appointment of Interim Asset Manager,Agency Staff,
Wyre Council,http://opendatacommunities.org/doc/district-council/wyre,30/03/2023,Resources,Support Services,135B,Michael Page International Recruitment Limited,30/03/2023,RS148388,2500.00,0.00,Appointment of Interim Asset Manager,Agency Staff,
Wyre Council,http://opendatacommunities.org/doc/district-council/wyre,30/03/2023,Resources,Support Services,135B,Michael Page International Recruitment Limited,09/03/2023,RS147907,2500.00,0.00,Appointment of Interim Asset Manager,Agency Staff,
Wyre Council,http://opendatacommunities.org/doc/district-council/wyre,30/03/2023,Resources,Support Services,135B,Michael Page International Recruitment Limited,02/03/2023,RS147694,2500.00,0.00,Appointment of Interim Asset Manager,Agency Staff,
Wyre Council,http://opendatacommunities.org/doc/district-council/wyre,30/03/2023,Resources,Support Services,135B,Michael Page International Recruitment Limited,23/03/2023,RS148275,2500.00,0.00,Appointment of Interim Asset Manager,Agency Staff,
Wyre Council,http://opendatacommunities.org/doc/district-council/wyre,30/03/2023,Resources,Housing General Fund,134A,James Andrews Recruitment Solutions Ltd,13/03/2023,RS147996,693.00,0.00,05/03/2023 - po-008124,Agency Staff,
Wyre Council,http://opendatacommunities.org/doc/district-council/wyre,30/03/2023,Resources,Housing General Fund,134A,James Andrews Recruitment Solutions Ltd,13/03/2023,RS147995,1278.00,0.00,26/02/2023 - PO-008124,Agency Staff,
Wyre Council,http://opendatacommunities.org/doc/district-council/wyre,30/03/2023,People and Places,Planning and Development Servs,132C,Lancashire County Council,22/03/2023,PE148221,141.59,0.00,INS299182 Fleetwood Copse Road  Depot - Fire Alarm Maintenance (Main),Alarm Systems and Security - Annual,
Wyre Council,http://opendatacommunities.org/doc/district-council/wyre,30/03/2023,People and Places,Planning and Development Servs,132C,Lancashire County Council,22/03/2023,PE148221,46.01,0.00,INS299183 Fleetwood Copse Road Depot - Fire Alarm Maintenance (Transport),Alarm Systems and Security - Annual,
Wyre Council,http://opendatacommunities.org/doc/district-council/wyre,30/03/2023,People and Places,Planning and Development Servs,132C,Lancashire County Council,22/03/2023,PE148221,10.75,0.00,INS299184 Fleetwood Copse Road Depot - Disabled WC Alarm,Alarm Systems and Security - Annual,
Wyre Council,http://opendatacommunities.org/doc/district-council/wyre,30/03/2023,Resources,Support Services,135B,Daisy Communications LTD,17/03/2023,RS147780,10.71,0.00,Monthly Phone Charges,Alarm Systems and Security - Annual,
Wyre Council,http://opendatacommunities.org/doc/district-council/wyre,30/03/2023,People and Places,Support Services,135B,M D Security,30/03/2023,PE148497,60.00,0.00,Civic Centre: Scope out detection for rooms with door gards fitted,Alarm Systems and Security - Responsive,
Wyre Council,http://opendatacommunities.org/doc/district-council/wyre,30/03/2023,People and Places,Support Services,135B,M D Security,27/03/2023,PE148322,90.00,0.00,Civic Centre: replace exit sign adjacent room 131,Alarm Systems and Security - Responsive,
Wyre Council,http://opendatacommunities.org/doc/district-council/wyre,30/03/2023,People and Places,Support Services,135B,M D Security,27/03/2023,PE148324,93.88,0.00,Civic Annex: Replaced call point device 22 due to fault,Alarm Systems and Security - Responsive,
Wyre Council,http://opendatacommunities.org/doc/district-council/wyre,30/03/2023,People and Places,Support Services,135B,M D Security,27/03/2023,PE148323,90.00,0.00,civic Centre: to replace exit sign adjacent toom 119,Alarm Systems and Security - Responsive,
Wyre Council,http://opendatacommunities.org/doc/district-council/wyre,30/03/2023,People and Places,Environmental Services,132B,M D Security,20/03/2023,PE147893,70.00,0.00,Replaced Zone 2 workshop shutter junction box at Chatsworth Depot,Alarm Systems and Security - Responsive,
Wyre Council,http://opendatacommunities.org/doc/district-council/wyre,30/03/2023,People and Places,Planning and Development Servs,132C,M D Security,01/03/2023,PE147641,90.00,0.00,Fleetwood Market: Moved CCTV PC into Julian`s office and set up.  Moved cctv PC omtp <arket Supervisor office and set up. Found dault on PC removed from site to repair,Alarm Systems and Security - Responsive,
Wyre Council,http://opendatacommunities.org/doc/district-council/wyre,30/03/2023,People and Places,Planning and Development Servs,132C,M D Security,27/03/2023,PE148305,50.00,0.00,Fleetwood Market Studios staff training on cctv 15/11/22,Alarm Systems and Security - Responsive,
Wyre Council,http://opendatacommunities.org/doc/district-council/wyre,30/03/2023,People and Places,Planning and Development Servs,132C,M D Security,27/03/2023,PE148291,60.00,0.00,Rossall Tower: Callout to fault on side door. Cleaned plates and re-greased setup and left working,Alarm Systems and Security - Responsive,
Wyre Council,http://opendatacommunities.org/doc/district-council/wyre,30/03/2023,Finance,Support Services,135B,,21/03/2023,WPST00100024,2526.00,0.00,Total Apprenticeship Levy,Apprenticeship Levy,
Wyre Council,http://opendatacommunities.org/doc/district-council/wyre,30/03/2023,Resources,Corporate and Democratic Core,131A,PR Chauffeuring Services,13/03/2023,RS147988,770.00,0.00,February 2023 - Monthly chauffeuring service.,Attendant Chauffeur Service,
Wyre Council,http://opendatacommunities.org/doc/district-council/wyre,30/03/2023,Finance,Corporate and Democratic Core,131A,NATWEST BANK,03/03/2023,WPST00098144,741.46,0.00,03FEB GRP 99795000,Bank Charges,
Wyre Council,http://opendatacommunities.org/doc/district-council/wyre,30/03/2023,Finance,Corporate and Democratic Core,131A,NATWEST BANK,23/03/2023,WPST00100369,2631.51,0.00,WORLDPAYWP4W37 246273659,Bank Charges,
Wyre Council,http://opendatacommunities.org/doc/district-council/wyre,30/03/2023,Finance,Corporate and Democratic Core,131A,NATWEST BANK,23/03/2023,WPST00100374,2076.04,0.00,WORLDPAYWP4W37 246316226,Bank Charges,
Wyre Council,http://opendatacommunities.org/doc/district-council/wyre,30/03/2023,People and Places,Cultural and Related Services,132A,Lancashire County Council,24/03/2023,PE148297,3584.00,0.00,Lancashire Environmental Record Network (LERN) MoA 22/23  (FAO Nik Bruce),Biodiversity Duty,
Wyre Council,http://opendatacommunities.org/doc/district-council/wyre,30/03/2023,People and Places,Environmental Services,132B,3D Environmental LTD,21/03/2023,PE148179,949.21,0.00,"To remove the large amount of miscellaneous general waste (including POP and mattresses where necessary) from the external areas of the property, as discussed",Boarding Up Premises/House Clearance,
Wyre Council,http://opendatacommunities.org/doc/district-council/wyre,30/03/2023,People and Places,Cultural and Related Services,132A,M D Security,27/03/2023,PE148304,50.00,0.00,Rossall Tower - attended site on 27/10/22. CCTV vandalised found wood panel on the back to be removed and exposed cables. Tuck them higher up the wood panel,CCTV Running Costs,
Wyre Council,http://opendatacommunities.org/doc/district-council/wyre,30/03/2023,People and Places,Environmental Services,132B,M D Security,27/03/2023,PE148336,250.00,0.00,"CCTV 6 Monthly Service May 2022 Chatsworth Depot, Fleetwood",CCTV Running Costs,
Wyre Council,http://opendatacommunities.org/doc/district-council/wyre,30/03/2023,People and Places,Planning and Development Servs,132C,M D Security,30/03/2023,PE148381,250.00,0.00,Bi-annual CCTV service Copse Road Depot  Service every 6-months,CCTV Running Costs,
Wyre Council,http://opendatacommunities.org/doc/district-council/wyre,30/03/2023,People and Places,Planning and Development Servs,132C,M D Security,29/03/2023,PE148382,250.00,0.00,Bi-annual CCTV service Copse Road Depot  Service every 6-months,CCTV Running Costs,
Wyre Council,http://opendatacommunities.org/doc/district-council/wyre,30/03/2023,People and Places,Environmental Services,132B,N Power LTD,06/03/2023,PE147759,0.53,0.00,Town Centre CCTV Cameras Unmetered Supply,CCTV Running Costs,
Wyre Council,http://opendatacommunities.org/doc/district-council/wyre,30/03/2023,People and Places,Environmental Services,132B,N Power LTD,06/03/2023,PE147759,7.99,0.00,Town Centre CCTV Cameras Unmetered Supply,CCTV Running Costs,
Wyre Council,http://opendatacommunities.org/doc/district-council/wyre,30/03/2023,People and Places,Environmental Services,132B,N Power LTD,06/03/2023,PE147759,49.47,0.00,Town Centre CCTV Cameras Unmetered Supply,CCTV Running Costs,
Wyre Council,http://opendatacommunities.org/doc/district-council/wyre,30/03/2023,People and Places,Environmental Services,132B,N Power LTD,06/03/2023,PE147759,1.60,0.00,Town Centre CCTV Cameras Unmetered Supply,CCTV Running Costs,
Wyre Council,http://opendatacommunities.org/doc/district-council/wyre,30/03/2023,People and Places,Environmental Services,132B,N Power LTD,06/03/2023,PE147759,2.70,0.00,Town Centre CCTV Cameras Unmetered Supply,CCTV Running Costs,
Wyre Council,http://opendatacommunities.org/doc/district-council/wyre,30/03/2023,People and Places,Environmental Services,132B,N Power LTD,06/03/2023,PE147759,73.93,0.00,Town Centre CCTV Cameras Unmetered Supply,CCTV Running Costs,
Wyre Council,http://opendatacommunities.org/doc/district-council/wyre,30/03/2023,Resources,Support Services,135B,Konica Minolta Business Solutions UK LTD,22/03/2023,RS148181,88.76,0.00,WECP -1840141295,Central Printer/Copier Expenses,
Wyre Council,http://opendatacommunities.org/doc/district-council/wyre,30/03/2023,Resources,Support Services,135B,Preston City Council,06/03/2023,RS147731,10.25,0.00,100 x Wyre Business cards - NICK CLAYTON Reprint of previous error,Central Printer/Copier Paper,
Wyre Council,http://opendatacommunities.org/doc/district-council/wyre,30/03/2023,People and Places,Cultural and Related Services,132A,Key Engineering & Hygiene Supplies LTD,16/03/2023,PE148051,13.83,0.00,BLUE 2 ply centrefeed roll 144M x 195mm 400 sheets,Cleaning Materials,
Wyre Council,http://opendatacommunities.org/doc/district-council/wyre,30/03/2023,People and Places,Cultural and Related Services,132A,Key Engineering & Hygiene Supplies LTD,16/03/2023,PE148051,8.40,0.00,EAUFRESH NON ACIDIC APPLE TOILET CLEANER 1 LTR,Cleaning Materials,
Wyre Council,http://opendatacommunities.org/doc/district-council/wyre,30/03/2023,People and Places,Cultural and Related Services,132A,Key Engineering & Hygiene Supplies LTD,16/03/2023,PE148051,12.45,0.00,ENSURE ALCOHOL SANITISER 750ML,Cleaning Materials,
Wyre Council,http://opendatacommunities.org/doc/district-council/wyre,30/03/2023,People and Places,Planning and Development Servs,132C,Key Engineering & Hygiene Supplies LTD,07/03/2023,PE147834,19.44,0.00,EAUFRESH NON ACIDIC APPLE TOILET CLEANER 1 LTR,Cleaning Materials,
Wyre Council,http://opendatacommunities.org/doc/district-council/wyre,30/03/2023,People and Places,Planning and Development Servs,132C,Key Engineering & Hygiene Supplies LTD,08/03/2023,PE147835,17.88,0.00,FLORATILE GENERAL PURPOSE  CLEANER 5 LTR,Cleaning Materials,
Wyre Council,http://opendatacommunities.org/doc/district-council/wyre,30/03/2023,People and Places,Planning and Development Servs,132C,Key Engineering & Hygiene Supplies LTD,08/03/2023,PE147835,4.86,0.00,BLUE NITRILE POWDER FREE GLOVES MEDIUM,Cleaning Materials,
Wyre Council,http://opendatacommunities.org/doc/district-council/wyre,30/03/2023,Resources,Support Services,135B,Key Engineering & Hygiene Supplies LTD,06/03/2023,RS147688,4.47,0.00,FLORATILE GENERAL PURPOSE  CLEANER 5 LTR,Cleaning Materials,
Wyre Council,http://opendatacommunities.org/doc/district-council/wyre,30/03/2023,Resources,Support Services,135B,Key Engineering & Hygiene Supplies LTD,06/03/2023,RS147688,15.04,0.00,EVANS FOAMING LEMON SOAP 5L,Cleaning Materials,
Wyre Council,http://opendatacommunities.org/doc/district-council/wyre,30/03/2023,Resources,Support Services,135B,Key Engineering & Hygiene Supplies LTD,06/03/2023,RS147688,3.76,0.00,KEYPINE GENERAL DISINFECTANT 5LTR,Cleaning Materials,
Wyre Council,http://opendatacommunities.org/doc/district-council/wyre,30/03/2023,Resources,Support Services,135B,Key Engineering & Hygiene Supplies LTD,06/03/2023,RS147688,15.54,0.00,LIQUID SPRAY POLISH 750ML TRIGGER SPRAY,Cleaning Materials,
Wyre Council,http://opendatacommunities.org/doc/district-council/wyre,30/03/2023,Resources,Support Services,135B,Key Engineering & Hygiene Supplies LTD,06/03/2023,RS147688,6.95,0.00,SAFE ZONE PLUS  5 LITRE,Cleaning Materials,
Wyre Council,http://opendatacommunities.org/doc/district-council/wyre,30/03/2023,Resources,Support Services,135B,Key Engineering & Hygiene Supplies LTD,06/03/2023,RS147688,4.86,0.00,LATEX POWDER FREE GLOVES MED,Cleaning Materials,
Wyre Council,http://opendatacommunities.org/doc/district-council/wyre,30/03/2023,Resources,Support Services,135B,Key Engineering & Hygiene Supplies LTD,06/03/2023,RS147688,9.72,0.00,LATEX POWDER FREE GLOVES SMALL,Cleaning Materials,
Wyre Council,http://opendatacommunities.org/doc/district-council/wyre,30/03/2023,Resources,Support Services,135B,Key Engineering & Hygiene Supplies LTD,06/03/2023,RS147688,30.12,0.00,POT POURRI AIR FRESHENER,Cleaning Materials,
Wyre Council,http://opendatacommunities.org/doc/district-council/wyre,30/03/2023,Resources,Support Services,135B,Key Engineering & Hygiene Supplies LTD,06/03/2023,RS147688,1.68,0.00,SOFT DUSTPAN + BRUSH SET,Cleaning Materials,
Wyre Council,http://opendatacommunities.org/doc/district-council/wyre,30/03/2023,Resources,Support Services,135B,Key Engineering & Hygiene Supplies LTD,24/03/2023,RS148290,14.58,0.00,BLUE NITRILE POWDER FREE GLOVES MEDIUM,Cleaning Materials,
Wyre Council,http://opendatacommunities.org/doc/district-council/wyre,30/03/2023,Resources,Support Services,135B,Key Engineering & Hygiene Supplies LTD,24/03/2023,RS148290,14.58,0.00,NITRILE BLUE POWDER FREE GLOVES SMALL,Cleaning Materials,
Wyre Council,http://opendatacommunities.org/doc/district-council/wyre,30/03/2023,Resources,Support Services,135B,Key Engineering & Hygiene Supplies LTD,24/03/2023,RS148290,4.86,0.00,BLUE NITRILE POWDER FREE GLOVES LARGE,Cleaning Materials,
Wyre Council,http://opendatacommunities.org/doc/district-council/wyre,30/03/2023,Resources,Support Services,135B,Key Engineering & Hygiene Supplies LTD,10/03/2023,RS147919,4.86,0.00,LATEX POWDER FREE GLOVES SMALL,Cleaning Materials,
Wyre Council,http://opendatacommunities.org/doc/district-council/wyre,30/03/2023,Resources,Support Services,135B,Key Engineering & Hygiene Supplies LTD,06/03/2023,RS147688,52.92,0.00,THICKENED BLEACH 750ML,Cleaning Materials,
Wyre Council,http://opendatacommunities.org/doc/district-council/wyre,30/03/2023,Resources,Support Services,135B,Key Engineering & Hygiene Supplies LTD,06/03/2023,RS147688,20.16,0.00,EAUFRESH NON ACIDIC POT POURRI TOILET CLEANER 1 LTR,Cleaning Materials,
Wyre Council,http://opendatacommunities.org/doc/district-council/wyre,30/03/2023,Resources,Support Services,135B,Key Engineering & Hygiene Supplies LTD,06/03/2023,RS147688,5.67,0.00,WASHING UP LIQUID 5 LTR,Cleaning Materials,
Wyre Council,http://opendatacommunities.org/doc/district-council/wyre,30/03/2023,Resources,Support Services,135B,Key Engineering & Hygiene Supplies LTD,06/03/2023,RS147688,204.00,0.00,WHITE 2PLY LUXURY TOILET ROLL 320 40 PER PACK,Cleaning Materials,
Wyre Council,http://opendatacommunities.org/doc/district-council/wyre,30/03/2023,Resources,Support Services,135B,Key Engineering & Hygiene Supplies LTD,06/03/2023,RS147688,270.05,0.00,1 PLY BLUE INTERFOLD 3600 SHEETS,Cleaning Materials,
Wyre Council,http://opendatacommunities.org/doc/district-council/wyre,30/03/2023,Resources,Support Services,135B,Key Engineering & Hygiene Supplies LTD,06/03/2023,RS147688,43.76,0.00,MEDIUM BLACK REFUSE SACK 18X29X34 100G,Cleaning Materials,
Wyre Council,http://opendatacommunities.org/doc/district-council/wyre,30/03/2023,People and Places,Planning and Development Servs,132C,Key Engineering & Hygiene Supplies LTD,30/03/2023,PE148489,15.68,0.00,fleece,Cleaning Materials,
Wyre Council,http://opendatacommunities.org/doc/district-council/wyre,30/03/2023,People and Places,Planning and Development Servs,132C,Malcolm McCulloch & Sons LTD,29/03/2023,PE148465,120.00,0.00,15 Centre feed rolls,Cleaning Materials,
Wyre Council,http://opendatacommunities.org/doc/district-council/wyre,30/03/2023,People and Places,Planning and Development Servs,132C,Malcolm McCulloch & Sons LTD,30/03/2023,PE148504,263.70,0.00,15 Centre feed rolls 180.00 6 toilet rolls 83.70,Cleaning Materials,
Wyre Council,http://opendatacommunities.org/doc/district-council/wyre,30/03/2023,Resources,Support Services,135B,AVC WISE LTD,28/03/2023,RS148422,391.48,0.00,INVOICE NUMBER: 104489,Commission Fees Etc.,
Wyre Council,http://opendatacommunities.org/doc/district-council/wyre,30/03/2023,Resources,Support Services,135B,AVC WISE LTD,01/03/2023,RS147659,385.85,0.00,INVOICE NUMBER: 104293,Commission Fees Etc.,
Wyre Council,http://opendatacommunities.org/doc/district-council/wyre,30/03/2023,People and Places,Cultural and Related Services,132A,Arco LTD,14/03/2023,PE148055,26.44,0.00,1 ladies waterproof trousers,Community Arts,
Wyre Council,http://opendatacommunities.org/doc/district-council/wyre,30/03/2023,Resources,Cultural and Related Services,132A,Preston City Council,28/03/2023,RS148417,254.75,0.00,"5 x pull up banners (50.95 each) 1 x Just Rem generic, 1 x Fun Arts generic, 1 x Fun arts dated, 1 x craft and chat",Community Arts,
Wyre Council,http://opendatacommunities.org/doc/district-council/wyre,30/03/2023,People and Places,Planning and Development Servs,132C,THIS GREAT ADVENTURE LTD,09/03/2023,PE147889,2882.50,0.00,Fleetwood Heritage Action Zone - Finding Fleetwood Heritage Trails,Community Development Initiatives,
Wyre Council,http://opendatacommunities.org/doc/district-council/wyre,30/03/2023,Resources,Support Services,135B,Insight Direct (UK) Limited,24/03/2023,RS148285,566.97,0.00,"StarTech.com 24U Server Rack Cabinet, 4-Post Adjustable Depth (2`` to 30``) Network Equipment Rack Enclosure w/Casters/Cable Management/Shelf/Locking t/Shelf/Locking Dell PowerEdge, HP ProLiant ThinkServer - 24U Rack.Cabinet (RK2433BKM) - rack - 24U.M",Comp Hardware Purchases,
Wyre Council,http://opendatacommunities.org/doc/district-council/wyre,30/03/2023,Resources,Support Services,135B,Insight Direct (UK) Limited,29/03/2023,RS148425,890.14,0.00,"Epson WorkForce DS-790WN - document scanner - desktop - USB 3.0, Gigabit LAN, Wi-Fi(n), USB 2.0 (Host).Mfr Name: EPSON.Mfr Part No.: B11B265401BY.",Comp Hardware Purchases,
Wyre Council,http://opendatacommunities.org/doc/district-council/wyre,30/03/2023,Resources,Support Services,135B,Insight Direct (UK) Limited,22/03/2023,RS148223,957.26,0.00,Tripp Lite 16-Port Rack Console VGA KVM.Switch w/ 19`` LCD 1U TAA - KVM switch - 16 ports - rack-mountable.Mfr Name: TRIPP LITEMfr Part No.: B040-016-19,Comp Hardware Purchases,
Wyre Council,http://opendatacommunities.org/doc/district-council/wyre,30/03/2023,People and Places,Support Services,135B,Steve Wear Blinds,29/03/2023,PE147757,494.00,0.00,Vertical Blinds fitted in room 74,Comp Hardware Purchases,
Wyre Council,http://opendatacommunities.org/doc/district-council/wyre,30/03/2023,Resources,Support Services,135B,Ebuyer (UK) Ltd,28/03/2023,RS148369,42.00,0.00,Shipping,Comp Hardware Purchases,
Wyre Council,http://opendatacommunities.org/doc/district-council/wyre,30/03/2023,Resources,Support Services,135B,Ebuyer (UK) Ltd,29/03/2023,RS148369,2293.31,0.00,HP LaserJet Enterprise M806dn A3 Monochrome Laser Printer.Quickfind reference: 580727,Comp Hardware Purchases,
Wyre Council,http://opendatacommunities.org/doc/district-council/wyre,30/03/2023,Resources,Support Services,135B,Amazon Business,06/03/2023,RS146902,20.00,0.00,"Rii 2.4GHz Wireless Keyboard with Trackpad, K22 Portable Multi-media Keyboard with Touchpad for PC Laptop Tablet Smart TV Home Theatre,Rechargeable Battery QWERTY UK Layout Silent Click",Comp Hardware Purchases,
Wyre Council,http://opendatacommunities.org/doc/district-council/wyre,30/03/2023,Resources,Support Services,135B,Amazon Business,15/03/2023,RS148076,61.28,0.00,"Twozoh USB C to USB C Cable 100W 2M 2 Pack, Nylon Braided 4K Video Monitor Cord&#65292;USB 3.2 Gen 2X2 Type C Data Transfer Fast Charging Cable Support 3840x2160 4K@60Hz 20Gbps.",Comp Hardware Purchases,
Wyre Council,http://opendatacommunities.org/doc/district-council/wyre,30/03/2023,Resources,Support Services,135B,Amazon Business,15/03/2023,RS148075,83.33,0.00,"Goldtouch Go!2 Mobile Keyboard Wired - - Slim Fully Adjustable Keyboard with Scissor-Switch System for Fluid, Silent Keystrokes. For Licensing department.",Comp Hardware Purchases,
Wyre Council,http://opendatacommunities.org/doc/district-council/wyre,30/03/2023,Resources,Support Services,135B,Amazon Business,15/03/2023,RS148074,107.24,0.00,"Twozoh USB C to USB C Cable 100W 2M 2 Pack, Nylon Braided 4K Video Monitor Cord&#65292;USB 3.2 Gen 2X2 Type C Data Transfer Fast Charging Cable Support 3840x2160 4K@60Hz 20Gbps.",Comp Hardware Purchases,
Wyre Council,http://opendatacommunities.org/doc/district-council/wyre,30/03/2023,Resources,Support Services,135B,Amazon Business,15/03/2023,RS148073,91.92,0.00,"Twozoh USB C to USB C Cable 100W 2M 2 Pack, Nylon Braided 4K Video Monitor Cord&#65292;USB 3.2 Gen 2X2 Type C Data Transfer Fast Charging Cable Support 3840x2160 4K@60Hz 20Gbps.",Comp Hardware Purchases,
Wyre Council,http://opendatacommunities.org/doc/district-council/wyre,30/03/2023,Resources,Support Services,135B,Amazon Business,15/03/2023,RS148052,45.96,0.00,"Twozoh USB C to USB C Cable 100W 2M 2 Pack, Nylon Braided 4K Video Monitor Cord&#65292;USB 3.2 Gen 2X2 Type C Data Transfer Fast Charging Cable Support 3840x2160 4K@60Hz 20Gbps.",Comp Hardware Purchases,
Wyre Council,http://opendatacommunities.org/doc/district-council/wyre,30/03/2023,Resources,Support Services,135B,Amazon Business,06/03/2023,RS147776,10.82,0.00,AAA Batteries pack of 40 by PeakPower 10Year Shelf life & Ideal for everyday devices,Computer Stationery and Consumables,
Wyre Council,http://opendatacommunities.org/doc/district-council/wyre,30/03/2023,Resources,Support Services,135B,Amazon Business,15/03/2023,RS148076,83.30,0.00,"Keyboard Mouse Wrist Rest, GIM Keyboard Wrist Support Mouse Mat Set Memory Foam Ergonomic Wrist Pad Wrist Cushion Anti-Slip for Gaming Computer Notebook Home Office (Lycra).",Computer Stationery and Consumables,
Wyre Council,http://opendatacommunities.org/doc/district-council/wyre,30/03/2023,Resources,Central Services to the Public,131C,NEC Software Solutions UK Limited,30/03/2023,RS148502,300.00,0.00,SUPPLIER REFERENCE: SL / CRM 140817Consultancy Services. Project Description: Rollover Sign Off.To be delivered: Outside normal working hours. To be delivered: Offsite,Consultants Fees,
Wyre Council,http://opendatacommunities.org/doc/district-council/wyre,30/03/2023,Resources,Corporate and Democratic Core,131A,Link Treasury Services LTD,07/03/2023,RS147816,4000.00,0.00,Treasury Services for the period 01/10/2022 to 31/03/2023,Consultants Fees,
Wyre Council,http://opendatacommunities.org/doc/district-council/wyre,30/03/2023,People and Places,Environmental Services,132B,Blackburn With Darwen Borough Council,02/03/2023,PE147678,2005.38,0.00,Contaminated land checks,Consultants Fees,
Wyre Council,http://opendatacommunities.org/doc/district-council/wyre,30/03/2023,People and Places,Planning and Development Servs,132C,Blackburn With Darwen Borough Council,16/03/2023,PE148022,1670.92,0.00,Evolutive Subscription 2023,Consultants Fees,
Wyre Council,http://opendatacommunities.org/doc/district-council/wyre,30/03/2023,People and Places,Planning and Development Servs,132C,Knight Kavanagh & Page,10/03/2023,PE147920,6513.30,0.00,"Green Infrastructure Study, comprising:Playing Pitch and Outdoor Sports StrategyGreen Infrastructure AuditGreen Infrastructure Strategy",Consultants Fees,
Wyre Council,http://opendatacommunities.org/doc/district-council/wyre,30/03/2023,People and Places,Planning and Development Servs,132C,Knight Kavanagh & Page,14/03/2023,PE147920,-6513.30,0.00,"Green Infrastructure Study, comprising:Playing Pitch and Outdoor Sports StrategyGreen Infrastructure AuditGreen Infrastructure Strategy",Consultants Fees,
Wyre Council,http://opendatacommunities.org/doc/district-council/wyre,30/03/2023,People and Places,Planning and Development Servs,132C,Knight Kavanagh & Page,14/03/2023,PE147789,17883.30,0.00,"Green Infrastructure Study, comprising:  Playing Pitch and Outdoor Sports Strategy Green Infrastructure Audit Green Infrastructure Strategy",Consultants Fees,
Wyre Council,http://opendatacommunities.org/doc/district-council/wyre,30/03/2023,People and Places,Planning and Development Servs,132C,Knight Kavanagh & Page,24/03/2023,PE148143,6513.30,0.00,"Green Infrastructure Study, comprising:  Playing Pitch and Outdoor Sports Strategy Green Infrastructure Audit Green Infrastructure Strategy",Consultants Fees,
Wyre Council,http://opendatacommunities.org/doc/district-council/wyre,30/03/2023,People and Places,Environmental Services,132B,Osborne Richardson,30/03/2023,PE148496,151.20,0.00,To provide Contaminated land & Air Quality Consultancy April 2022-March 2023(Annual purchase order to draw invoices from throughout the year),Consultants Fees,
Wyre Council,http://opendatacommunities.org/doc/district-council/wyre,30/03/2023,People and Places,Environmental Services,132B,Osborne Richardson,22/03/2023,PE148144,579.60,0.00,To provide Contaminated land & Air Quality Consultancy April 2022-March 2023  (Annual purchase order to draw invoices from throughout the year),Consultants Fees,
Wyre Council,http://opendatacommunities.org/doc/district-council/wyre,30/03/2023,People and Places,Planning and Development Servs,132C,Tameside Metropolitan Borough Council,23/03/2023,PE148261,9306.00,0.00,Provision of ecological advice from Tameside Metropolitan Council (GMEU) April 22 - March 23,Consultants Fees,
Wyre Council,http://opendatacommunities.org/doc/district-council/wyre,30/03/2023,Resources,Central Services to the Public,131C,Inform CPI,08/03/2023,RS147875,7500.00,0.00,Analyse Local - ForecastingRV FinderAnalyse & Localise 2023,Consultants Fees,
Wyre Council,http://opendatacommunities.org/doc/district-council/wyre,30/03/2023,Resources,Central Services to the Public,131C,Inform CPI,27/03/2023,RS148298,450.00,0.00,"Unit 27 Freeport Shopping Village, Anchorage Rd, Fleetwood & Midwood Caravan Park, Head Dyke Lane, Pilling",Consultants Fees,
Wyre Council,http://opendatacommunities.org/doc/district-council/wyre,30/03/2023,Resources,Central Services to the Public,131C,Inform CPI,10/03/2023,RS147817,10.00,0.00,"Part Plot 5 Main Ave, Burn Hall Ind Est, Fleetwood, FY7 8FR (BA Ref: N00160750016011)",Consultants Fees,
Wyre Council,http://opendatacommunities.org/doc/district-council/wyre,30/03/2023,Resources,Central Services to the Public,131C,Inform CPI,13/03/2023,RS147981,640.00,0.00,"Hutchsion 3G (WYR14970) Fleetwood Roundabout, FY7 8JX (BA REf N00120330489023)",Consultants Fees,
Wyre Council,http://opendatacommunities.org/doc/district-council/wyre,30/03/2023,People and Places,Planning and Development Servs,132C,Capita Property and Infrastructure Ltd,02/03/2023,PE147632,6271.50,0.00,planning application support provided by Capita,Consultants Fees,
Wyre Council,http://opendatacommunities.org/doc/district-council/wyre,30/03/2023,People and Places,Planning and Development Servs,132C,Capita Property and Infrastructure Ltd,13/03/2023,PE148003,4527.18,0.00,planning application support provided by Capita,Consultants Fees,
Wyre Council,http://opendatacommunities.org/doc/district-council/wyre,30/03/2023,People and Places,Planning and Development Servs,132C,Capita Property and Infrastructure Ltd,13/03/2023,PE148003,2827.30,0.00,Planning application support provided by Capita (remaining balance for Feb 2023),Consultants Fees,
Wyre Council,http://opendatacommunities.org/doc/district-council/wyre,30/03/2023,Resources,Support Services,135B,NWA Social and Market Research Ltd,06/03/2023,RS147726,5585.00,0.00,Life In Wyre survey 2 part payment,Consultants Fees,
Wyre Council,http://opendatacommunities.org/doc/district-council/wyre,30/03/2023,People and Places,Environmental Services,132B,The Environmental Protection Group Ltd,28/03/2023,PE145918,900.00,0.00,Works as agreed via Email to Amy Juden dated 05.10.2022 to include the following works associated with condition 14 of planning application 16/00742/OUTMAJ:  -Review all the submissions to date including reports by EP3 and IGE on the site and proposed ad,Consultants Fees,
Wyre Council,http://opendatacommunities.org/doc/district-council/wyre,30/03/2023,People and Places,Environmental Services,132B,TJ Health Ltd,30/03/2023,PE148500,594.00,0.00,TJ Health Ltd Taxi Medicals - Group 2 Licensing Advice,Consultants Fees,
Wyre Council,http://opendatacommunities.org/doc/district-council/wyre,30/03/2023,People and Places,Planning and Development Servs,132C,AG & P Jackson,07/03/2023,PE147809,410.00,0.00,"Alan Jackson - Agricultural Consultant fee for planning application 22/01050/FUL Island Farm, Island Lane, Winmarleigh, Preston, Lancashire, PR3 0LB",Consultants Fees,
Wyre Council,http://opendatacommunities.org/doc/district-council/wyre,30/03/2023,People and Places,Planning and Development Servs,132C,AG & P Jackson,13/03/2023,PE148011,497.00,0.00,"Alan Jackson - Agricultural consultant feesfor planning application 21/01321/OUTCragg Farm, Longmoor Lane, Nateby, Preston, Lancashire, PR3 0JB",Consultants Fees,
Wyre Council,http://opendatacommunities.org/doc/district-council/wyre,30/03/2023,People and Places,"Cultural, Environ and Planning",137B,KEYSTONE DESIGN LTD,29/03/2023,PE148462,8700.00,0.00,"To David Hadwin,Keystone Design Associated Ltd,Development House,261 Church Street,Blackpool.FY1 3PB.Carry out precondition surveys along the permanent works frontage for the Wyre Beach Management Scheme.100 per property, 750 block of",Consultants Fees (New CCR),
Wyre Council,http://opendatacommunities.org/doc/district-council/wyre,30/03/2023,People and Places,"Cultural, Environ and Planning",137B,KEYSTONE DESIGN LTD,22/03/2023,PE148216,750.00,0.00,Building survey of Morvern Care Home,Consultants Fees (New CCR),
Wyre Council,http://opendatacommunities.org/doc/district-council/wyre,30/03/2023,People and Places,"Cultural, Environ and Planning",137B,KEYSTONE DESIGN LTD,22/03/2023,PE148213,7900.00,0.00,"To David Hadwin, Keystone Design Associated Ltd, Development House, 261 Church Street, Blackpool. FY1 3PB.  Carry out precondition surveys along the delivery route for the Wyre Beach Management Scheme as per quote emailed 12/01/23.  100 per property, 75",Consultants Fees (New CCR),
Wyre Council,http://opendatacommunities.org/doc/district-council/wyre,30/03/2023,People and Places,"Cultural, Environ and Planning",137B,Wyre Rivers Trust,24/03/2023,PE148327,8000.00,0.00,Eco-COBS Arm Hill Site Project management 2022/23,Consultants Fees (New CCR),
Wyre Council,http://opendatacommunities.org/doc/district-council/wyre,30/03/2023,People and Places,"Cultural, Environ and Planning",137B,FAIRHURST,29/03/2023,PE148430,14210.00,0.00,"To Michael Jones,Fairhurst1 Arngrove Court,Barrack Road,Newcastle.NE4 6DB Provide planning consultancy services in relation to the Wyre Beach Management Scheme.Ref DW/145706/00130 September 2022",Consultants Fees (New CCR),
Wyre Council,http://opendatacommunities.org/doc/district-council/wyre,30/03/2023,People and Places,"Cultural, Environ and Planning",137B,Purcell Architecture Limited,20/03/2023,PE148136,5000.00,0.00,Architect Fees (RIBA Stage 5) for Fleetwood Market,Consultants Fees (New CCR),
Wyre Council,http://opendatacommunities.org/doc/district-council/wyre,30/03/2023,People and Places,"Cultural, Environ and Planning",137B,Purcell Architecture Limited,20/03/2023,PE148135,8371.80,0.00,"Fleetwood Market.  Sub Consultants (RIBA 5-7) upto end of March 2023.David Humphries Associates (QS) - 5671.80Studio One (Structural Eng) - 2,700",Consultants Fees (New CCR),
Wyre Council,http://opendatacommunities.org/doc/district-council/wyre,30/03/2023,People and Places,"Cultural, Environ and Planning",137B,Purcell Architecture Limited,22/03/2023,PE148241,464.06,0.00,QS Fees (Valuations/Cost Reports) includes the 12.5% SubConsultant Admin Markup,Consultants Fees (New CCR),
Wyre Council,http://opendatacommunities.org/doc/district-council/wyre,30/03/2023,People and Places,"Cultural, Environ and Planning",137B,Purcell Architecture Limited,22/03/2023,PE148240,7013.68,0.00,Fleetwood Market Structural Design (Birdcage/Annex/Ground Plinths) - (RIBA Stage 4/4+),Consultants Fees (New CCR),
Wyre Council,http://opendatacommunities.org/doc/district-council/wyre,30/03/2023,People and Places,"Cultural, Environ and Planning",137B,Purcell Architecture Limited,14/03/2023,PE148041,10018.00,0.00,Fleetwood Market.  Architect Fees (RIBA Stage 5-7) includes Contract Admin and Doors/Windows Review,Consultants Fees (New CCR),
Wyre Council,http://opendatacommunities.org/doc/district-council/wyre,30/03/2023,People and Places,"Cultural, Environ and Planning",137B,WSP Real Estate and Infrastructure Limited,20/03/2023,PE148117,5957.36,0.00,"Project Management Services  Annual amount 78,000Potentially for 4 years.",Consultants Fees (New CCR),
Wyre Council,http://opendatacommunities.org/doc/district-council/wyre,30/03/2023,People and Places,Central Services to the Public,131C,Critiqom LTD,29/03/2023,PE148419,600.00,0.00,WBC501 Technical AB,Contain Outbreak Management Fund,
Wyre Council,http://opendatacommunities.org/doc/district-council/wyre,30/03/2023,People and Places,"Cultural, Environ and Planning",137B,Marine Management Organisation,29/03/2023,PE148435,2567.50,0.00,BAND 3 LICENCE,Contract (New CCR),
Wyre Council,http://opendatacommunities.org/doc/district-council/wyre,30/03/2023,People and Places,"Cultural, Environ and Planning",137B,Marine Management Organisation,28/03/2023,PE148140,1541.75,0.00,Band 3 licence,Contract (New CCR),
Wyre Council,http://opendatacommunities.org/doc/district-council/wyre,30/03/2023,People and Places,"Cultural, Environ and Planning",137B,Electricity North West Limited,22/03/2023,PE147986,2381.00,0.00,"Fleetwood Market, 36 Adelaide St, Fleetwood FY7 6AD.  Electricity Service Connection.  Quote Reference: 5500237734/B (dated 6th October 2022) FAO Paul Sutton",Contract (New CCR),
Wyre Council,http://opendatacommunities.org/doc/district-council/wyre,30/03/2023,Resources,"Cultural, Environ and Planning",137B,Vivid Resourcing Ltd,15/03/2023,RS147710,8160.00,0.00,Fleetwood Market Project - Steve Solsby time,Contract (New CCR),
Wyre Council,http://opendatacommunities.org/doc/district-council/wyre,30/03/2023,People and Places,"Cultural, Environ and Planning",137B,RAPID RETAIL LTD,14/03/2023,PE147815,250.00,0.00,Rental of 2 x Mobile Merchandising Units April 22 to March 23,Contract (New CCR),
Wyre Council,http://opendatacommunities.org/doc/district-council/wyre,30/03/2023,People and Places,"Cultural, Environ and Planning",137B,RAPID RETAIL LTD,14/03/2023,PE147815,645.00,0.00,1 month rental and collection of mobile merchandising units,Contract (New CCR),
Wyre Council,http://opendatacommunities.org/doc/district-council/wyre,30/03/2023,Resources,"Cultural, Environ and Planning",137B,VODAFONE LIMITED,24/03/2023,RS148035,24.00,0.00,Mobile Phone Charges for February 2023,Contract (New CCR),
Wyre Council,http://opendatacommunities.org/doc/district-council/wyre,30/03/2023,People and Places,Non Service Related Exp,137F,George Hewitt Fabrications,22/03/2023,PE148039,6500.00,0.00,"Please undertake repairs to columns at Copse Road VMU as per quotation - 6,500.00",Contract (New CCR),
Wyre Council,http://opendatacommunities.org/doc/district-council/wyre,30/03/2023,People and Places,"Cultural, Environ and Planning",137B,F PARKINSON LTD,07/03/2023,PE147830,221048.03,0.00,"Refurbishment works at Fleetwood Market, Adelaide Street, Fleetwood, Lancashire FY7 6AB.  This Order covers the HSHAZ Elements Only. (see email dated 24/11/2022) being carried out under a JCT Intermediate Building Contract with Contractor�s Design (ICD) 2",Contract (New CCR),
Wyre Council,http://opendatacommunities.org/doc/district-council/wyre,30/03/2023,People and Places,"Cultural, Environ and Planning",137B,F PARKINSON LTD,27/03/2023,PE148329,41450.00,0.00,"Appointment of Principal Contractor for PSDS (via SALIX Finance) works at Fleetwood Market, Adelaide St, Fleetwood, FY7 6AB (Order no 4 of 4)",Contract (New CCR),
Wyre Council,http://opendatacommunities.org/doc/district-council/wyre,30/03/2023,People and Places,"Cultural, Environ and Planning",137B,F PARKINSON LTD,20/03/2023,PE148147,37930.56,0.00,Fleetwood Market.  Mechanical Services (P-W & Horsfield Design),Contract (New CCR),
Wyre Council,http://opendatacommunities.org/doc/district-council/wyre,30/03/2023,People and Places,"Cultural, Environ and Planning",137B,F PARKINSON LTD,20/03/2023,PE148146,369712.37,0.00,"Appointment of Principal Contractor for PSDS (via SALIX Finance) works at Fleetwood Market, Adelaide Street, Fleetwood, Lancashire FY7 6AB. (Order No.4 of 4)",Contract (New CCR),
Wyre Council,http://opendatacommunities.org/doc/district-council/wyre,30/03/2023,People and Places,"Cultural, Environ and Planning",137B,F PARKINSON LTD,28/03/2023,PE148318,1996.34,0.00,Fleetwood Market Mechanical Services (P&W Horsfield Design),Contract (New CCR),
Wyre Council,http://opendatacommunities.org/doc/district-council/wyre,30/03/2023,People and Places,"Cultural, Environ and Planning",137B,F PARKINSON LTD,07/03/2023,PE147818,27500.60,0.00,"Fleetwood Market  Adelaide Street, Fleetwood, Lancashire FY7 6AB.  Refurbishment Works.  UKSPF funded works carried out under a JCT Intermediate Building Contract with Contractor�s Design (ICD) 2016",Contract (New CCR),
Wyre Council,http://opendatacommunities.org/doc/district-council/wyre,30/03/2023,People and Places,"Cultural, Environ and Planning",137B,F PARKINSON LTD,07/03/2023,PE147831,232571.99,0.00,"Appointment of Principal Contractor for refurbishment works via a JCT Intermediate Building Contract with Contractor�s Design (ICD) 2016 at Fleetwood Market, Adelaide Street, Fleetwood, Lancashire FY7 6AB.",Contract (New CCR),
Wyre Council,http://opendatacommunities.org/doc/district-council/wyre,30/03/2023,People and Places,"Cultural, Environ and Planning",137B,Balfour Beatty Civil Engineering Ltd,15/03/2023,PE148007,59602.17,0.00,"FAO Chloe Sumner Balfour Beatty Civil Engineering Ltd Chaddock Lane  Worsley Manchester M28 1XY  Tel, 0161 638 0800 Chloe.Sumner@balfourbeatty.com   Wyre Beach Management Scheme Phase 1 � Construction Works.  Cost 2,687,156.94",Contract (New CCR),
Wyre Council,http://opendatacommunities.org/doc/district-council/wyre,30/03/2023,People and Places,"Cultural, Environ and Planning",137B,Balfour Beatty Civil Engineering Ltd,13/03/2023,PE147927,344722.16,0.00,Preconstruction works phases 1 and 2,Contract (New CCR),
Wyre Council,http://opendatacommunities.org/doc/district-council/wyre,30/03/2023,People and Places,"Cultural, Environ and Planning",137B,Balfour Beatty Civil Engineering Ltd,23/03/2023,PE148250,77472.95,0.00,Wyre Beach Management Scheme Phase 1 - Preconstruction Works.FAO Chloe SumnerBalfour Beatty Civil Engineering LtdChaddock Lane WorsleyManchesterM28 1XY,Contract (New CCR),
Wyre Council,http://opendatacommunities.org/doc/district-council/wyre,30/03/2023,People and Places,"Cultural, Environ and Planning",137B,GARRY CARR BUILDING SERVICES LTD,14/03/2023,PE147788,17662.00,0.00,Carry out all building works to renovate 2 retail units 160 and 180 to accommodate the staff/cash office and market manager`s office - all works to be carried out as per spec and your quotation dated 14/09/22,Contract (New CCR),
Wyre Council,http://opendatacommunities.org/doc/district-council/wyre,30/03/2023,Resources,Support Services,135B,CIPFA Business LTD,08/03/2023,RS147769,4055.00,0.00,CIPFA Publication Subscription 2023/24,Corporate and Professional Subscriptions,
Wyre Council,http://opendatacommunities.org/doc/district-council/wyre,30/03/2023,People and Places,Support Services,135B,Sefton Council,23/03/2023,PE148260,755.00,0.00,Northern Sub Group Annual Membership fees 2022/23Customer ID: 30196323,Corporate and Professional Subscriptions,
Wyre Council,http://opendatacommunities.org/doc/district-council/wyre,30/03/2023,Resources,Support Services,135B,PSTAX Consulting Limited,16/03/2023,RS148087,3350.00,0.00,PSTAX Club Membership 2023/24,Corporate and Professional Subscriptions,
Wyre Council,http://opendatacommunities.org/doc/district-council/wyre,30/03/2023,Resources,Support Services,135B,LG FUTURES LTD,06/03/2023,RS147704,7645.00,0.00,Collection Fund Suite - 2023/24,Corporate and Professional Subscriptions,
Wyre Council,http://opendatacommunities.org/doc/district-council/wyre,30/03/2023,Resources,Support Services,135B,CREDITSAFE BUSINESS SOLUTIONS LIMITED,20/03/2023,RS147894,2304.00,0.00,12 nonths subscrription to credit checking software system to review financial health of suppliers. Auth by C.James,Corporate and Professional Subscriptions,
Wyre Council,http://opendatacommunities.org/doc/district-council/wyre,30/03/2023,Resources,Support Services,135B,Bill Rogerson Safety Services LTD,28/03/2023,RS148347,410.00,0.00,to delivery of First Aid at Work x 2 delegates: Marianne Unwin and Tim Coulton 15th and 17th March at your premises,Corporate Training - Health and Safety,
Wyre Council,http://opendatacommunities.org/doc/district-council/wyre,30/03/2023,Finance,Current Assets,130B,,28/03/2023,WPST00100724,22102.55,0.00,ctax refund,Council Tax Refunds,
Wyre Council,http://opendatacommunities.org/doc/district-council/wyre,30/03/2023,Finance,Current Assets,130B,,15/03/2023,WPST00099561,19672.50,0.00,11/5/22 - reversal,Council Tax Refunds,
Wyre Council,http://opendatacommunities.org/doc/district-council/wyre,30/03/2023,Finance,Current Assets,130B,,15/03/2023,WPST00099562,14045.89,0.00,30/5/22 - reversal,Council Tax Refunds,
Wyre Council,http://opendatacommunities.org/doc/district-council/wyre,30/03/2023,Finance,Current Assets,130B,,15/03/2023,WPST00099563,14045.89,0.00,ctax refunds 25/5/22,Council Tax Refunds,
Wyre Council,http://opendatacommunities.org/doc/district-council/wyre,30/03/2023,Finance,Current Assets,130B,,15/03/2023,WPST00099564,196720.50,0.00,3/11/22 reversal,Council Tax Refunds,
Wyre Council,http://opendatacommunities.org/doc/district-council/wyre,30/03/2023,Finance,Current Assets,130B,,15/03/2023,WPST00099565,190672.50,0.00,3/11 reversal,Council Tax Refunds,
Wyre Council,http://opendatacommunities.org/doc/district-council/wyre,30/03/2023,Finance,Current Assets,130B,,15/03/2023,WPST00099567,35493.62,0.00,20/1/23 ctax refunds,Council Tax Refunds,
Wyre Council,http://opendatacommunities.org/doc/district-council/wyre,30/03/2023,Finance,Current Assets,130B,,15/03/2023,WPST00099568,13778.96,0.00,ctax refunds 30/9/22,Council Tax Refunds,
Wyre Council,http://opendatacommunities.org/doc/district-council/wyre,30/03/2023,Finance,Current Assets,130B,,21/03/2023,WPST00100105,10696.14,0.00,ctax refund,Council Tax Refunds,
Wyre Council,http://opendatacommunities.org/doc/district-council/wyre,30/03/2023,Finance,Current Assets,130B,,07/03/2023,WPST00098659,27052.96,0.00,Ctax refunds,Council Tax Refunds,
Wyre Council,http://opendatacommunities.org/doc/district-council/wyre,30/03/2023,Finance,Current Assets,130B,,14/03/2023,WPST00099431,5292.56,0.00,ctax refund,Council Tax Refunds,
Wyre Council,http://opendatacommunities.org/doc/district-council/wyre,30/03/2023,People and Places,Cultural and Related Services,132A,Road Safety Services LTD,29/03/2023,PE148454,2190.00,0.00,"Local Event Organisers`s Training 2023For the delivery of 2 x LANTRA Training days at the Civic Centre to accredit 20 x volunteer marshals. The cost for 2 x full days is 2,540",Creative People and Places Contribution,
Wyre Council,http://opendatacommunities.org/doc/district-council/wyre,30/03/2023,Resources,Cultural and Related Services,132A,Preston City Council,24/03/2023,RS148279,5.40,0.00,Craft and chat100 x A5 1pp4 x A4 1pp,Creative People and Places Contribution,
Wyre Council,http://opendatacommunities.org/doc/district-council/wyre,30/03/2023,People and Places,Environmental Services,132B,Dennis Eagle LTD,21/03/2023,PE147915,-1367.25,0.00,Offse via PE147915,Daywork Materials (Excl.Tyres),
Wyre Council,http://opendatacommunities.org/doc/district-council/wyre,30/03/2023,People and Places,Support Services,135B,EK Motors Factors LTD,10/03/2023,PE147948,3.98,0.00,Parts,Daywork Materials (Excl.Tyres),
Wyre Council,http://opendatacommunities.org/doc/district-council/wyre,30/03/2023,People and Places,Support Services,135B,EK Motors Factors LTD,10/03/2023,PE147947,90.81,0.00,Parts,Daywork Materials (Excl.Tyres),
Wyre Council,http://opendatacommunities.org/doc/district-council/wyre,30/03/2023,People and Places,Support Services,135B,EK Motors Factors LTD,13/03/2023,PE147934,24.73,0.00,Parts,Daywork Materials (Excl.Tyres),
Wyre Council,http://opendatacommunities.org/doc/district-council/wyre,30/03/2023,People and Places,Support Services,135B,EK Motors Factors LTD,28/03/2023,PE148399,90.12,0.00,Parts,Daywork Materials (Excl.Tyres),
Wyre Council,http://opendatacommunities.org/doc/district-council/wyre,30/03/2023,People and Places,Support Services,135B,EK Motors Factors LTD,29/03/2023,PE148484,84.24,0.00,Parts,Daywork Materials (Excl.Tyres),
Wyre Council,http://opendatacommunities.org/doc/district-council/wyre,30/03/2023,People and Places,Support Services,135B,EK Motors Factors LTD,28/03/2023,PE148397,62.12,0.00,Parts,Daywork Materials (Excl.Tyres),
Wyre Council,http://opendatacommunities.org/doc/district-council/wyre,30/03/2023,People and Places,Support Services,135B,EK Motors Factors LTD,28/03/2023,PE148400,50.71,0.00,Parts,Daywork Materials (Excl.Tyres),
Wyre Council,http://opendatacommunities.org/doc/district-council/wyre,30/03/2023,People and Places,Environmental Services,132B,EK Motors Factors LTD,28/03/2023,PE148401,36.50,0.00,Parts,Daywork Materials (Excl.Tyres),
Wyre Council,http://opendatacommunities.org/doc/district-council/wyre,30/03/2023,People and Places,Cultural and Related Services,132A,EK Motors Factors LTD,29/03/2023,PE148485,6.55,0.00,Parts,Daywork Materials (Excl.Tyres),
Wyre Council,http://opendatacommunities.org/doc/district-council/wyre,30/03/2023,People and Places,Cultural and Related Services,132A,EK Motors Factors LTD,29/03/2023,PE148486,6.55,0.00,Parts,Daywork Materials (Excl.Tyres),
Wyre Council,http://opendatacommunities.org/doc/district-council/wyre,30/03/2023,People and Places,Cultural and Related Services,132A,EK Motors Factors LTD,28/03/2023,PE148407,24.27,0.00,Parts,Daywork Materials (Excl.Tyres),
Wyre Council,http://opendatacommunities.org/doc/district-council/wyre,30/03/2023,People and Places,Cultural and Related Services,132A,EK Motors Factors LTD,28/03/2023,PE148408,74.98,0.00,Parts,Daywork Materials (Excl.Tyres),
Wyre Council,http://opendatacommunities.org/doc/district-council/wyre,30/03/2023,People and Places,Cultural and Related Services,132A,EK Motors Factors LTD,13/03/2023,PE147961,32.08,0.00,Parts,Daywork Materials (Excl.Tyres),
Wyre Council,http://opendatacommunities.org/doc/district-council/wyre,30/03/2023,People and Places,Cultural and Related Services,132A,EK Motors Factors LTD,13/03/2023,PE147960,32.08,0.00,Parts,Daywork Materials (Excl.Tyres),
Wyre Council,http://opendatacommunities.org/doc/district-council/wyre,30/03/2023,People and Places,Environmental Services,132B,EK Motors Factors LTD,28/03/2023,PE148405,32.51,0.00,Parts,Daywork Materials (Excl.Tyres),
Wyre Council,http://opendatacommunities.org/doc/district-council/wyre,30/03/2023,People and Places,Environmental Services,132B,EK Motors Factors LTD,28/03/2023,PE148404,32.51,0.00,Parts,Daywork Materials (Excl.Tyres),
Wyre Council,http://opendatacommunities.org/doc/district-council/wyre,30/03/2023,People and Places,Environmental Services,132B,EK Motors Factors LTD,13/03/2023,PE147959,16.92,0.00,Parts,Daywork Materials (Excl.Tyres),
Wyre Council,http://opendatacommunities.org/doc/district-council/wyre,30/03/2023,People and Places,Environmental Services,132B,EK Motors Factors LTD,13/03/2023,PE147958,33.84,0.00,Parts,Daywork Materials (Excl.Tyres),
Wyre Council,http://opendatacommunities.org/doc/district-council/wyre,30/03/2023,People and Places,Environmental Services,132B,EK Motors Factors LTD,10/03/2023,PE147957,11.98,0.00,Parts,Daywork Materials (Excl.Tyres),
Wyre Council,http://opendatacommunities.org/doc/district-council/wyre,30/03/2023,People and Places,Environmental Services,132B,EK Motors Factors LTD,13/03/2023,PE147951,54.99,0.00,Parts,Daywork Materials (Excl.Tyres),
Wyre Council,http://opendatacommunities.org/doc/district-council/wyre,30/03/2023,People and Places,Environmental Services,132B,EK Motors Factors LTD,13/03/2023,PE147950,73.50,0.00,Parts,Daywork Materials (Excl.Tyres),
Wyre Council,http://opendatacommunities.org/doc/district-council/wyre,30/03/2023,People and Places,Environmental Services,132B,EK Motors Factors LTD,13/03/2023,PE147949,6.97,0.00,Parts,Daywork Materials (Excl.Tyres),
Wyre Council,http://opendatacommunities.org/doc/district-council/wyre,30/03/2023,People and Places,Environmental Services,132B,EK Motors Factors LTD,28/03/2023,PE148403,9.61,0.00,Parts,Daywork Materials (Excl.Tyres),
Wyre Council,http://opendatacommunities.org/doc/district-council/wyre,30/03/2023,People and Places,Environmental Services,132B,EK Motors Factors LTD,28/03/2023,PE148402,21.98,0.00,Parts,Daywork Materials (Excl.Tyres),
Wyre Council,http://opendatacommunities.org/doc/district-council/wyre,30/03/2023,People and Places,Environmental Services,132B,EK Motors Factors LTD,10/03/2023,PE147948,3.98,0.00,Parts,Daywork Materials (Excl.Tyres),
Wyre Council,http://opendatacommunities.org/doc/district-council/wyre,30/03/2023,People and Places,Environmental Services,132B,EK Motors Factors LTD,10/03/2023,PE147952,19.60,0.00,Parts,Daywork Materials (Excl.Tyres),
Wyre Council,http://opendatacommunities.org/doc/district-council/wyre,30/03/2023,People and Places,Environmental Services,132B,EK Motors Factors LTD,13/03/2023,PE147954,59.38,0.00,Parts,Daywork Materials (Excl.Tyres),
Wyre Council,http://opendatacommunities.org/doc/district-council/wyre,30/03/2023,People and Places,Environmental Services,132B,EK Motors Factors LTD,13/03/2023,PE147956,449.98,0.00,Parts,Daywork Materials (Excl.Tyres),
Wyre Council,http://opendatacommunities.org/doc/district-council/wyre,30/03/2023,People and Places,Environmental Services,132B,EK Motors Factors LTD,13/03/2023,PE147955,126.53,0.00,Parts,Daywork Materials (Excl.Tyres),
Wyre Council,http://opendatacommunities.org/doc/district-council/wyre,30/03/2023,People and Places,Support Services,135B,EK Motors Factors LTD,28/03/2023,PE148398,9.48,0.00,Parts,Daywork Materials (Excl.Tyres),
Wyre Council,http://opendatacommunities.org/doc/district-council/wyre,30/03/2023,People and Places,Environmental Services,132B,EK Motors Factors LTD,28/03/2023,PE148406,32.51,0.00,Parts,Daywork Materials (Excl.Tyres),
Wyre Council,http://opendatacommunities.org/doc/district-council/wyre,30/03/2023,People and Places,Support Services,135B,EK Motors Factors LTD,13/03/2023,PE147932,16.71,0.00,Parts,Daywork Materials (Excl.Tyres),
Wyre Council,http://opendatacommunities.org/doc/district-council/wyre,30/03/2023,People and Places,Support Services,135B,EK Motors Factors LTD,13/03/2023,PE147933,16.71,0.00,Parts,Daywork Materials (Excl.Tyres),
Wyre Council,http://opendatacommunities.org/doc/district-council/wyre,30/03/2023,People and Places,Support Services,135B,EK Motors Factors LTD,13/03/2023,PE147936,6.64,0.00,Parts,Daywork Materials (Excl.Tyres),
Wyre Council,http://opendatacommunities.org/doc/district-council/wyre,30/03/2023,People and Places,Support Services,135B,EK Motors Factors LTD,13/03/2023,PE147935,6.64,0.00,Parts,Daywork Materials (Excl.Tyres),
Wyre Council,http://opendatacommunities.org/doc/district-council/wyre,30/03/2023,People and Places,Support Services,135B,FR Sharrock LTD,24/03/2023,PE148314,198.43,0.00,Parts,Daywork Materials (Excl.Tyres),
Wyre Council,http://opendatacommunities.org/doc/district-council/wyre,30/03/2023,People and Places,Support Services,135B,FR Sharrock LTD,15/03/2023,PE147709,113.28,0.00,Parts,Daywork Materials (Excl.Tyres),
Wyre Council,http://opendatacommunities.org/doc/district-council/wyre,30/03/2023,People and Places,Support Services,135B,FR Sharrock LTD,24/03/2023,PE148314,198.43,0.00,Parts,Daywork Materials (Excl.Tyres),
Wyre Council,http://opendatacommunities.org/doc/district-council/wyre,30/03/2023,People and Places,Support Services,135B,FR Sharrock LTD,15/03/2023,PE147709,113.28,0.00,Parts,Daywork Materials (Excl.Tyres),
Wyre Council,http://opendatacommunities.org/doc/district-council/wyre,30/03/2023,People and Places,Support Services,135B,FR Sharrock LTD,15/03/2023,PE147709,113.29,0.00,Parts,Daywork Materials (Excl.Tyres),
Wyre Council,http://opendatacommunities.org/doc/district-council/wyre,30/03/2023,People and Places,Support Services,135B,FR Sharrock LTD,24/03/2023,PE148314,198.43,0.00,Parts,Daywork Materials (Excl.Tyres),
Wyre Council,http://opendatacommunities.org/doc/district-council/wyre,30/03/2023,People and Places,Environmental Services,132B,Bucher Municipal Limited,21/03/2023,PE148090,322.50,0.00,Tyres,Daywork Materials (Excl.Tyres),
Wyre Council,http://opendatacommunities.org/doc/district-council/wyre,30/03/2023,People and Places,Environmental Services,132B,Bucher Municipal Limited,07/03/2023,PE147753,322.50,0.00,Tyre - Continental RV20 (front),Daywork Materials (Excl.Tyres),
Wyre Council,http://opendatacommunities.org/doc/district-council/wyre,30/03/2023,People and Places,Environmental Services,132B,Bucher Municipal Limited,21/03/2023,PE148090,322.50,0.00,Tyres,Daywork Materials (Excl.Tyres),
Wyre Council,http://opendatacommunities.org/doc/district-council/wyre,30/03/2023,People and Places,Environmental Services,132B,Bucher Municipal Limited,21/03/2023,PE148090,322.50,0.00,Tyres,Daywork Materials (Excl.Tyres),
Wyre Council,http://opendatacommunities.org/doc/district-council/wyre,30/03/2023,People and Places,Environmental Services,132B,Bucher Municipal Limited,22/03/2023,PE148137,367.70,0.00,Nozzle Wheel Assembly,Daywork Materials (Excl.Tyres),
Wyre Council,http://opendatacommunities.org/doc/district-council/wyre,30/03/2023,People and Places,Environmental Services,132B,Bucher Municipal Limited,02/03/2023,PE147603,1317.59,0.00,"invoice 62184985 . 1 x impeller - balanced, HT DC",Daywork Materials (Excl.Tyres),
Wyre Council,http://opendatacommunities.org/doc/district-council/wyre,30/03/2023,People and Places,Environmental Services,132B,Chris Allen Garages LTD,10/03/2023,PE147964,335.12,0.00,Pad seat cushionCover Assy,Daywork Materials (Excl.Tyres),
Wyre Council,http://opendatacommunities.org/doc/district-council/wyre,30/03/2023,People and Places,Support Services,135B,Amazon Business,21/03/2023,PE148114,7.24,0.00,Toggle switch Rocker switch,Daywork Materials (Excl.Tyres),
Wyre Council,http://opendatacommunities.org/doc/district-council/wyre,30/03/2023,People and Places,Support Services,135B,Amazon Business,22/03/2023,PE148131,99.91,0.00,Trailer light,Daywork Materials (Excl.Tyres),
Wyre Council,http://opendatacommunities.org/doc/district-council/wyre,30/03/2023,Resources,Support Services,135B,Experian Ltd,08/03/2023,RS147792,5.00,0.00,One stop search - person,Debtor Tracing,
Wyre Council,http://opendatacommunities.org/doc/district-council/wyre,30/03/2023,Resources,Support Services,135B,Experian Ltd,08/03/2023,RS147791,2054.81,0.00,CV plus - manual invoice Annual bill one-off,Debtor Tracing,
Wyre Council,http://opendatacommunities.org/doc/district-council/wyre,30/03/2023,Resources,Support Services,135B,Experian Ltd,08/03/2023,RS147839,11.00,0.00,Investigation Services,Debtor Tracing,
Wyre Council,http://opendatacommunities.org/doc/district-council/wyre,30/03/2023,Resources,Support Services,135B,European Electronique LTD,27/03/2023,RS148353,46617.56,0.00,"x2 GUARDiAN Appliances (Small Spec) : 20TB Front End Capacity: 5 Years(60 Months) Support, Installation & Project Management Included :",Disaster Recovery,
Wyre Council,http://opendatacommunities.org/doc/district-council/wyre,30/03/2023,Resources,Support Services,135B,THE NETWORKING PEOPLE (TNP) LTD,15/03/2023,RS148054,12793.10,0.00,"FG-200F-BDL-950-60 - FortiGate: FortiGate-200F Hardware plus 5 Year FortiCare 1 12,793.10 20.0 12,793.10Premium and FortiGuard Unified Threat Protec",Disaster Recovery,
Wyre Council,http://opendatacommunities.org/doc/district-council/wyre,30/03/2023,Resources,Support Services,135B,THE NETWORKING PEOPLE (TNP) LTD,15/03/2023,RS148054,102.00,0.00,"TNPSFP-SFP-10G-SR - 10Gb SFP+ SR Multimode, &#955; 850 nm, 300 m, LCLifetime warranty10G-T SFP+ optics number",Disaster Recovery,
Wyre Council,http://opendatacommunities.org/doc/district-council/wyre,30/03/2023,Resources,Support Services,135B,THE NETWORKING PEOPLE (TNP) LTD,15/03/2023,RS148054,6461.16,0.00,FC2-10-CGSLB-330-02-60 - FortiADC Services: FortiGSLB Cloud Service 5 Year FortiGSLB Cloud Service - 100 DNS QPS - Annual Subscription (covers full 5yr term),Disaster Recovery,
Wyre Council,http://opendatacommunities.org/doc/district-council/wyre,30/03/2023,Resources,Support Services,135B,THE NETWORKING PEOPLE (TNP) LTD,15/03/2023,RS148054,717.91,0.00,FC2-10-CGSLB-332-02-60 - FortiADC Services: FortiGSLB Cloud Service with Additional Advanced Health Checks 5 Year FortiGSLB Cloud Service (full 5 yr term),Disaster Recovery,
Wyre Council,http://opendatacommunities.org/doc/district-council/wyre,30/03/2023,Resources,Support Services,135B,THE NETWORKING PEOPLE (TNP) LTD,15/03/2023,RS148054,70.00,0.00,delivery,Disaster Recovery,
Wyre Council,http://opendatacommunities.org/doc/district-council/wyre,30/03/2023,People and Places,Environmental Services,132B,RENTOKIL INITIAL UK LTD,28/03/2023,PE148338,121.68,0.00,Payment for Clinical Waste Collection Provision  for March 2023,Disposal Costs Hazardous Waste,
Wyre Council,http://opendatacommunities.org/doc/district-council/wyre,30/03/2023,People and Places,Cultural and Related Services,132A,Carlsberg UK LTD,07/03/2023,PE147778,1812.98,0.00,Marine Hall Bar order 2/3/23,Drinks,
Wyre Council,http://opendatacommunities.org/doc/district-council/wyre,30/03/2023,People and Places,Cultural and Related Services,132A,Carlsberg UK LTD,28/03/2023,PE148191,1439.43,0.00,Bar - Marine Hall,Drinks,
Wyre Council,http://opendatacommunities.org/doc/district-council/wyre,30/03/2023,People and Places,Cultural and Related Services,132A,L W C Drinks LTD,29/03/2023,PE148446,687.95,0.00,Bar - Marine Hall,Drinks,
Wyre Council,http://opendatacommunities.org/doc/district-council/wyre,30/03/2023,People and Places,Cultural and Related Services,132A,L W C Drinks LTD,03/03/2023,PE147716,1806.03,0.00,Marine Hall Bar,Drinks,
Wyre Council,http://opendatacommunities.org/doc/district-council/wyre,30/03/2023,People and Places,Environmental Services,132B,N Power LTD,08/03/2023,PE147761,0.33,0.00,Electricity Charges for the period 01/02/23-28/02/23,Electricity,
Wyre Council,http://opendatacommunities.org/doc/district-council/wyre,30/03/2023,People and Places,Environmental Services,132B,N Power LTD,08/03/2023,PE147760,209.95,0.00,Electricity charges for the period 01/02/23-28/02/23,Electricity,
Wyre Council,http://opendatacommunities.org/doc/district-council/wyre,30/03/2023,People and Places,Parking Services,133F,N Power LTD,08/03/2023,PE147761,1.82,0.00,Electricity Charges for the period 01/02/23-28/02/23,Electricity,
Wyre Council,http://opendatacommunities.org/doc/district-council/wyre,30/03/2023,People and Places,Parking Services,133F,N Power LTD,08/03/2023,PE147762,286.05,0.00,Electricity chrges for the period 01/02/23-28/02/23,Electricity,
Wyre Council,http://opendatacommunities.org/doc/district-council/wyre,30/03/2023,People and Places,Parking Services,133F,N Power LTD,08/03/2023,PE147760,1177.46,0.00,Electricity charges for the period 01/02/23-28/02/23,Electricity,
Wyre Council,http://opendatacommunities.org/doc/district-council/wyre,30/03/2023,People and Places,Cultural and Related Services,132A,Corona Energy Retail 4 Limited,22/03/2023,PE148244,268.14,0.00,1640000233705 Coastal Observation Point Rossal Point Fleetwood  FY78AF,Electricity,
Wyre Council,http://opendatacommunities.org/doc/district-council/wyre,30/03/2023,People and Places,Planning and Development Servs,132C,Corona Energy Retail 4 Limited,22/03/2023,PE148244,7410.15,0.00,1620000784666 Main Hall Adelaide Street Fleetwood FY76AB,Electricity,
Wyre Council,http://opendatacommunities.org/doc/district-council/wyre,30/03/2023,People and Places,Support Services,135B,Corona Energy Retail 4 Limited,22/03/2023,PE148244,12009.58,0.00,1600000162857 Civic Centre Breck Road Blackpool FY39DT,Electricity,
Wyre Council,http://opendatacommunities.org/doc/district-council/wyre,30/03/2023,People and Places,Cultural and Related Services,132A,Corona Energy Retail 4 Limited,06/03/2023,PE147766,1325.51,0.00,"1610004773866- Lecture Hall,Thornton-Cleveleys- Period 01/01/2023 (E) to  01/02/2023 (E)",Electricity,
Wyre Council,http://opendatacommunities.org/doc/district-council/wyre,30/03/2023,People and Places,Cultural and Related Services,132A,Corona Energy Retail 4 Limited,06/03/2023,PE147766,47.38,0.00,"1610004305434- Sports Pavilion,Cottam Hall,Poulton-Le-Fylde- Period  01/01/2023 (E) to 01/02/2023 (E)",Electricity,
Wyre Council,http://opendatacommunities.org/doc/district-council/wyre,30/03/2023,People and Places,Cultural and Related Services,132A,Corona Energy Retail 4 Limited,06/03/2023,PE147766,29.45,0.00,"1610004305443- Sports Pavilion,Cottam Hall,Poulton-Le-Fylde- Period () to  ()",Electricity,
Wyre Council,http://opendatacommunities.org/doc/district-council/wyre,30/03/2023,People and Places,Cultural and Related Services,132A,Corona Energy Retail 4 Limited,06/03/2023,PE147766,43.39,0.00,"1610004318841- Jean Stansfield Bowling Green,Poulton Le Fylde-  Period () to ()",Electricity,
Wyre Council,http://opendatacommunities.org/doc/district-council/wyre,30/03/2023,People and Places,Cultural and Related Services,132A,Corona Energy Retail 4 Limited,06/03/2023,PE147766,61.23,0.00,"1610004724089- Pavilion,Thornton Cleveleys- Period 01/01/2023 (R) to  01/02/2023 (R)",Electricity,
Wyre Council,http://opendatacommunities.org/doc/district-council/wyre,30/03/2023,People and Places,Environmental Services,132B,Corona Energy Retail 4 Limited,06/03/2023,PE147766,997.09,0.00,"1610004347328- East Cemetry,Poulton Le Fylde- Period 01/01/2023 (E) to  01/02/2023 (E)",Electricity,
Wyre Council,http://opendatacommunities.org/doc/district-council/wyre,30/03/2023,People and Places,Cultural and Related Services,132A,Corona Energy Retail 4 Limited,06/03/2023,PE147766,173.35,0.00,"1610004742431- Visitors Centre,River Road,Thornton Cleveleys- Period () to  ()",Electricity,
Wyre Council,http://opendatacommunities.org/doc/district-council/wyre,30/03/2023,People and Places,Cultural and Related Services,132A,Corona Energy Retail 4 Limited,06/03/2023,PE147766,1389.73,0.00,"1610004742399- River Road,Thornton Cleveleys- Period 01/01/2023 (R) to  01/02/2023 (R)",Electricity,
Wyre Council,http://opendatacommunities.org/doc/district-council/wyre,30/03/2023,People and Places,Cultural and Related Services,132A,Corona Energy Retail 4 Limited,06/03/2023,PE147766,8.14,0.00,"1610004742404- River Road,Thornton Cleveleys- Period () to  ()",Electricity,
Wyre Council,http://opendatacommunities.org/doc/district-council/wyre,30/03/2023,People and Places,Environmental Services,132B,Corona Energy Retail 4 Limited,06/03/2023,PE147766,78.75,0.00,"1610023232505- WC,Car Park,Garstang- Period 01/01/2023 (R) to 01/02/2023  (R)",Electricity,
Wyre Council,http://opendatacommunities.org/doc/district-council/wyre,30/03/2023,People and Places,Environmental Services,132B,Corona Energy Retail 4 Limited,06/03/2023,PE147766,532.65,0.00,"1610004313728- WC,Teanlowe Centre,Poulton-Le-Fylde- Period 01/01/2023 (E)  to 01/02/2023 (E)",Electricity,
Wyre Council,http://opendatacommunities.org/doc/district-council/wyre,30/03/2023,People and Places,Environmental Services,132B,Corona Energy Retail 4 Limited,06/03/2023,PE147766,729.07,0.00,"1610004665168- WC,Bus Station,Thornton-Cleveleys- Period () to  ()",Electricity,
Wyre Council,http://opendatacommunities.org/doc/district-council/wyre,30/03/2023,People and Places,Environmental Services,132B,Corona Energy Retail 4 Limited,06/03/2023,PE147766,24.42,0.00,"1610004421042- Pumping Station;1,Thornton Cleveleys- Period 01/01/2023  (E) to 01/02/2023 (E)",Electricity,
Wyre Council,http://opendatacommunities.org/doc/district-council/wyre,30/03/2023,People and Places,Environmental Services,132B,Corona Energy Retail 4 Limited,06/03/2023,PE147766,21.53,0.00,"1610004421200- Pumping Station 2,Thornton Cleveleys- Period 01/01/2023  (E) to 01/02/2023 (E)",Electricity,
Wyre Council,http://opendatacommunities.org/doc/district-council/wyre,30/03/2023,People and Places,Environmental Services,132B,Corona Energy Retail 4 Limited,22/03/2023,PE148244,55.15,0.00,1600000023675 Royles Brook Pumping Station  Off Victoria Road East Thornton FY55OX,Electricity,
Wyre Council,http://opendatacommunities.org/doc/district-council/wyre,30/03/2023,People and Places,Central Services to the Public,131C,Corona Energy Retail 4 Limited,06/03/2023,PE147766,1968.31,0.00,"1610004322012- WRVS,Teanlowe Day Centre,Poulton-Le-Fylde- Period () to  ()",Electricity,
Wyre Council,http://opendatacommunities.org/doc/district-council/wyre,30/03/2023,People and Places,Cultural and Related Services,132A,Corona Energy Retail 4 Limited,22/03/2023,PE148244,6845.98,0.00,1600000162875 Marine Hall The Esplanade Fleetwood FY76HF,Electricity,
Wyre Council,http://opendatacommunities.org/doc/district-council/wyre,30/03/2023,People and Places,Cultural and Related Services,132A,Corona Energy Retail 4 Limited,22/03/2023,PE148244,1277.95,0.00,1630000670291 Promendae Cafe North Promenade Thornton-Cleveleys FY51DB,Electricity,
Wyre Council,http://opendatacommunities.org/doc/district-council/wyre,30/03/2023,People and Places,Cultural and Related Services,132A,Corona Energy Retail 4 Limited,06/03/2023,PE147766,157.67,0.00,"1610004863632- Beach Bungalows,Fleetwood-  Period () to ()",Electricity,
Wyre Council,http://opendatacommunities.org/doc/district-council/wyre,30/03/2023,People and Places,Planning and Development Servs,132C,Corona Energy Retail 4 Limited,22/03/2023,PE148244,2226.65,0.00,1640000184606 Council Depot Copse Road Fleetwood FY76RP,Electricity,
Wyre Council,http://opendatacommunities.org/doc/district-council/wyre,30/03/2023,People and Places,Planning and Development Servs,132C,Drax Energy Solutions Limited,28/03/2023,PE148395,-695.52,0.00,Against PE146517 to correct VAT code,Electricity,
Wyre Council,http://opendatacommunities.org/doc/district-council/wyre,30/03/2023,People and Places,Planning and Development Servs,132C,Drax Energy Solutions Limited,28/03/2023,PE148390,695.52,0.00,"3200000534700 Unit 2, Dock Ave, Fleetwood 01/12/22 to 31/12/22",Electricity,
Wyre Council,http://opendatacommunities.org/doc/district-council/wyre,30/03/2023,People and Places,Planning and Development Servs,132C,Drax Energy Solutions Limited,15/03/2023,PE147972,117.27,0.00,3200000534737 Unit 5 Dock Ave Fleetwood 01/02/523 to 28/02/23 Actual,Electricity,
Wyre Council,http://opendatacommunities.org/doc/district-council/wyre,30/03/2023,People and Places,Planning and Development Servs,132C,Drax Energy Solutions Limited,15/03/2023,PE147971,117.49,0.00,3200000534728 Unit 4 Dock Ave Fleetwood 01/02/23 to 28/02/23 Actual,Electricity,
Wyre Council,http://opendatacommunities.org/doc/district-council/wyre,30/03/2023,People and Places,Planning and Development Servs,132C,Drax Energy Solutions Limited,15/03/2023,PE147979,113.48,0.00,"3200000534807 LL Supply, Dock Ave, Fleetwood 01/02/23 to 28/02/23",Electricity,
Wyre Council,http://opendatacommunities.org/doc/district-council/wyre,30/03/2023,People and Places,Planning and Development Servs,132C,Drax Energy Solutions Limited,15/03/2023,PE147978,116.22,0.00,"3200000534791 Unit 10 Dock Ave, Fleetwood, 01/02/23 to 28/02/23 Actual",Electricity,
Wyre Council,http://opendatacommunities.org/doc/district-council/wyre,30/03/2023,People and Places,Planning and Development Servs,132C,Drax Energy Solutions Limited,15/03/2023,PE147977,117.06,0.00,3200000534782 Unit 9 Dock Ave Fleetwood 01/02/23 to 28/02/23 Actual,Electricity,
Wyre Council,http://opendatacommunities.org/doc/district-council/wyre,30/03/2023,People and Places,Planning and Development Servs,132C,Drax Energy Solutions Limited,15/03/2023,PE147976,119.18,0.00,"3200000534773 Unit 8 Dock Ave, Fleetwood 01/02/23 to 28/02/23 Actual",Electricity,
Wyre Council,http://opendatacommunities.org/doc/district-council/wyre,30/03/2023,People and Places,Planning and Development Servs,132C,Drax Energy Solutions Limited,15/03/2023,PE147975,115.80,0.00,3200000534764 Unit 7B Dock Ave Fleetwood 01/02/23 to 28/02/23 Actual,Electricity,
Wyre Council,http://opendatacommunities.org/doc/district-council/wyre,30/03/2023,People and Places,Planning and Development Servs,132C,Drax Energy Solutions Limited,15/03/2023,PE147974,117.27,0.00,3200000534755 Unit 7A Dock Ave Fleetwood 01/02/23 to 28/02/23 Actual,Electricity,
Wyre Council,http://opendatacommunities.org/doc/district-council/wyre,30/03/2023,People and Places,Planning and Development Servs,132C,Drax Energy Solutions Limited,15/03/2023,PE147973,117.27,0.00,3200000534746 Unit 6 Dock Ave Fleetwood 01/02/23 to 28/02/23 Actual,Electricity,
Wyre Council,http://opendatacommunities.org/doc/district-council/wyre,30/03/2023,Finance,Central Services to the Public,131C,,27/03/2023,WPST00100638,43200.00,0.00,Energy Support Scheme Alternative Fundin,Energy Rebate Payment,
Wyre Council,http://opendatacommunities.org/doc/district-council/wyre,30/03/2023,Finance,Central Services to the Public,131C,,22/03/2023,WPST00100301,67600.00,0.00,Grants/Energy Rebate Payment/EBSS Alt Fu,Energy Rebate Payment,
Wyre Council,http://opendatacommunities.org/doc/district-council/wyre,30/03/2023,Resources,Central Services to the Public,131C,Jacobs Enforcement Agency,29/03/2023,RS148448,310.00,0.00,Compliance and Enforecement paid diret (Case ID 33751801 our ref 71609755,Enforcement Agents` Fees,
Wyre Council,http://opendatacommunities.org/doc/district-council/wyre,30/03/2023,Resources,Central Services to the Public,131C,Jacobs Enforcement Agency,08/03/2023,RS147862,150.00,0.00,compliance paid direct,Enforcement Agents` Fees,
Wyre Council,http://opendatacommunities.org/doc/district-council/wyre,30/03/2023,Resources,Housing General Fund,134A,Jacobs Enforcement Agency,08/03/2023,RS147855,298.05,0.00,15% commission on 1987.00 recovered,Enforcement Agents` Fees,
Wyre Council,http://opendatacommunities.org/doc/district-council/wyre,30/03/2023,People and Places,Cultural and Related Services,132A,Fylde Coast YMCA,16/03/2023,PE148089,2333.00,0.00,"Room hire for SEND club on Saturdays with the Play Inclusion Project, January 2023 - March 2024",External Coaching,
Wyre Council,http://opendatacommunities.org/doc/district-council/wyre,30/03/2023,People and Places,Cultural and Related Services,132A,Play Inclusion Project,24/03/2023,PE148306,693.96,0.00,Saturday SEND club delivery at YMCA Fleetwood (twice monthly).,External Coaching,
Wyre Council,http://opendatacommunities.org/doc/district-council/wyre,30/03/2023,People and Places,Cultural and Related Services,132A,Play Inclusion Project,14/03/2023,PE148046,693.96,0.00,Saturday SEND club delivery at YMCA Fleetwood (twice monthly).,External Coaching,
Wyre Council,http://opendatacommunities.org/doc/district-council/wyre,30/03/2023,People and Places,Cultural and Related Services,132A,Play Inclusion Project,14/03/2023,PE148047,693.96,0.00,Saturday SEND club delivery at YMCA Fleetwood (twice monthly).,External Coaching,
Wyre Council,http://opendatacommunities.org/doc/district-council/wyre,30/03/2023,People and Places,Cultural and Related Services,132A,Fleetwood Town Community Trust,06/03/2023,PE147768,7390.00,0.00,"TRY Sport delivery quarter 3, (October - December 2022)",External Coaching,
Wyre Council,http://opendatacommunities.org/doc/district-council/wyre,30/03/2023,People and Places,Cultural and Related Services,132A,Fleetwood Town Community Trust,28/03/2023,PE148371,7390.00,0.00,TRY Sport quarter 4 - jan - march 2023,External Coaching,
Wyre Council,http://opendatacommunities.org/doc/district-council/wyre,30/03/2023,People and Places,Cultural and Related Services,132A,Nisbetts Next Day Catering Equipment,28/03/2023,PE148311,15.99,0.00,Small catering first aid kit - FT589,First Aid Supplies,
Wyre Council,http://opendatacommunities.org/doc/district-council/wyre,30/03/2023,People and Places,Cultural and Related Services,132A,Lancashire County Council,24/03/2023,PE148316,6800.00,0.00,Annual contribution to the Forest of Bowland AONB management delivery 2021 - 22,Forest of Bowland Joint Advise Com Contr,
Wyre Council,http://opendatacommunities.org/doc/district-council/wyre,30/03/2023,People and Places,Support Services,135B,Allstar Business Solutions LTD,16/03/2023,PE147740,84.21,0.00,Fuel Charges,Fuel,
Wyre Council,http://opendatacommunities.org/doc/district-council/wyre,30/03/2023,People and Places,Support Services,135B,Allstar Business Solutions LTD,22/03/2023,PE148145,167.63,0.00,Diesel 01 to 08/03/23,Fuel,
Wyre Council,http://opendatacommunities.org/doc/district-council/wyre,30/03/2023,Resources,Cultural and Related Services,132A,Preston City Council,06/03/2023,RS147731,92.50,0.00,Print @ Preston City Council - Order 4290a Printing of: 2000 x Garstang Walking Festival 2023 -  1/3 A4 Flyers - 92.50 3000 x Garstang Walking Festival 2023 -  A5 12 page Booklet - 559.20,Garstang Walking Festival,
Wyre Council,http://opendatacommunities.org/doc/district-council/wyre,30/03/2023,People and Places,Cultural and Related Services,132A,Preston City Council,10/03/2023,PE147908,559.20,0.00,Print @ Preston City Council - Order 4290aPrinting of:2000 x Garstang Walking Festival 2023 -  1/3 A4 Flyers - 92.503000 x Garstang Walking Festival 2023 -  A5 12 page Booklet - 559.20,Garstang Walking Festival,
Wyre Council,http://opendatacommunities.org/doc/district-council/wyre,30/03/2023,Resources,"Cultural, Environ and Planning",137B,Fleetwood Museum Trust,09/03/2023,RS147888,21972.61,0.00,HSHAZ Grant Fleetwood Museum,Grants and Advances,
Wyre Council,http://opendatacommunities.org/doc/district-council/wyre,30/03/2023,Resources,"Cultural, Environ and Planning",137B,Lucy Moss,29/03/2023,RS148436,35459.14,0.00,"Fleetwood HSHAZ Grant 19-23 Adelaide St, Fleetwood",Grants and Advances,
Wyre Council,http://opendatacommunities.org/doc/district-council/wyre,30/03/2023,Resources,"Cultural, Environ and Planning",137B,Lucy Moss,08/03/2023,RS147876,672.60,0.00,HSHAZ Grant: 19-23 Adelaide St,Grants and Advances,
Wyre Council,http://opendatacommunities.org/doc/district-council/wyre,30/03/2023,Resources,"Cultural, Environ and Planning",137B,Lucy Moss,09/03/2023,RS147887,4700.95,0.00,HSHAZ Grant 19-23 Adelaide St,Grants and Advances,
Wyre Council,http://opendatacommunities.org/doc/district-council/wyre,30/03/2023,Resources,"Cultural, Environ and Planning",137B,Lucy Moss,23/03/2023,RS148252,8966.10,0.00,Fleetwood HSHAZ Grant: 19 - 23 Adelaide St,Grants and Advances,
Wyre Council,http://opendatacommunities.org/doc/district-council/wyre,30/03/2023,Resources,"Cultural, Environ and Planning",137B,RH Property Management Ltd,23/03/2023,RS148251,11884.50,0.00,"Fleetwood HSHAZ Grant: Former HSBC Bank, Albert St, Fleetwood, FY7 6AH",Grants and Advances,
Wyre Council,http://opendatacommunities.org/doc/district-council/wyre,30/03/2023,Resources,"Cultural, Environ and Planning",137B,RH Property Management Ltd,28/03/2023,RS148389,87526.35,0.00,"Fleetwood HSHAZ Grant: Former HSBC Bank , Albert St, Fleetwood, FY7 6AH",Grants and Advances,
Wyre Council,http://opendatacommunities.org/doc/district-council/wyre,30/03/2023,People and Places,Cultural and Related Services,132A,Keep Britain Tidy,08/03/2023,PE147848,369.00,0.00,Memorial Parks green flag application 23/24,Green Flag and Other Awards,
Wyre Council,http://opendatacommunities.org/doc/district-council/wyre,30/03/2023,People and Places,Cultural and Related Services,132A,Keep Britain Tidy,08/03/2023,PE147851,369.00,0.00,The Mounts green flag application 23/24,Green Flag and Other Awards,
Wyre Council,http://opendatacommunities.org/doc/district-council/wyre,30/03/2023,People and Places,Cultural and Related Services,132A,Keep Britain Tidy,08/03/2023,PE147850,369.00,0.00,Vicarage Park entry to Green Flag Award 2023,Green Flag and Other Awards,
Wyre Council,http://opendatacommunities.org/doc/district-council/wyre,30/03/2023,People and Places,Cultural and Related Services,132A,Keep Britain Tidy,08/03/2023,PE147849,369.00,0.00,Wyre Estuary Country park Green Flag,Green Flag and Other Awards,
Wyre Council,http://opendatacommunities.org/doc/district-council/wyre,30/03/2023,Resources,Cultural and Related Services,132A,Blackpool Council,21/03/2023,RS148175,1473.66,0.00,Payment for Hayley McGuffie and Alex Holt to attend the Birmingham British Travel & Tourism Show including stand cost and accommodation,Guides,
Wyre Council,http://opendatacommunities.org/doc/district-council/wyre,30/03/2023,People and Places,Cultural and Related Services,132A,Lancashire And North West Magazine,13/03/2023,PE148016,895.00,0.00,Wyre Weddings Feature,Guides,
Wyre Council,http://opendatacommunities.org/doc/district-council/wyre,30/03/2023,Resources,Cultural and Related Services,132A,Preston City Council,28/03/2023,RS148417,152.85,0.00,3 x Discover Wyre/We Are Wyre pull up banners (beaches/fresh air/generic DW)Delivery to civic centre FAO HAYLEY MCGUFFIE,Guides,
Wyre Council,http://opendatacommunities.org/doc/district-council/wyre,30/03/2023,People and Places,Environmental Services,132B,M J Wilkinson,28/03/2023,PE148410,300.00,0.00,Collection of seal and taken back to yard 20/2/23,Hazardous Waste Disposal,
Wyre Council,http://opendatacommunities.org/doc/district-council/wyre,30/03/2023,Resources,Planning and Development Servs,132C,Konica Minolta Business Solutions UK LTD,22/03/2023,RS148181,29.00,0.00,Fleetwood Market - 1840080773,Hire of Tools or Equipment,
Wyre Council,http://opendatacommunities.org/doc/district-council/wyre,30/03/2023,Resources,Support Services,135B,Konica Minolta Business Solutions UK LTD,02/03/2023,RS147581,825.88,0.00,Copy and print charges 1st March 2022 - 28th February 2023  1823533444 - Bizhub PRO 1100 1823440258 - Bizhub C458,Hire of Tools or Equipment,
Wyre Council,http://opendatacommunities.org/doc/district-council/wyre,30/03/2023,Resources,Support Services,135B,Konica Minolta Business Solutions UK LTD,20/03/2023,RS148125,723.45,0.00,Rental Charges - Bizhub PRO 1100 A799021001634 - Equipment no 1823533444                             Bizhub C458 A79M021038576 - Equipment no 1823440258  For the period of 1st June 2022 - 31st May 2023,Hire of Tools or Equipment,
Wyre Council,http://opendatacommunities.org/doc/district-council/wyre,30/03/2023,Resources,Support Services,135B,Konica Minolta Business Solutions UK LTD,15/03/2023,RS147569,1510.65,0.00,Bizhub C300i last quarter,Hire of Tools or Equipment,
Wyre Council,http://opendatacommunities.org/doc/district-council/wyre,30/03/2023,Resources,Cultural and Related Services,132A,Konica Minolta Business Solutions UK LTD,22/03/2023,RS148181,17.63,0.00,Copy and print charges Visit Garstang - 18401412710,Hire of Tools or Equipment,
Wyre Council,http://opendatacommunities.org/doc/district-council/wyre,30/03/2023,Finance,Central Services to the Public,131C,,01/03/2023,WPST00097942,120000.00,0.00,Huggg Household Support Fund Grant,Household Support Fund,
Wyre Council,http://opendatacommunities.org/doc/district-council/wyre,30/03/2023,Resources,Central Services to the Public,131C,Critiqom LTD,17/03/2023,RS148082,1512.33,0.00,HSF3 Huggg DBR Letters,Household Support Fund,
Wyre Council,http://opendatacommunities.org/doc/district-council/wyre,30/03/2023,Resources,Central Services to the Public,131C,Poulton Le Fylde Old Peoples Welfare Comittee,23/03/2023,RS148273,10000.00,0.00,Funding awarded from Household Support 3,Household Support Fund,
Wyre Council,http://opendatacommunities.org/doc/district-council/wyre,30/03/2023,Resources,Central Services to the Public,131C,Huggg Limited,02/03/2023,RS147693,30000.00,0.00,HSF3 Top Up HG-4e95c10e,Household Support Fund,
Wyre Council,http://opendatacommunities.org/doc/district-council/wyre,30/03/2023,Resources,Central Services to the Public,131C,Huggg Limited,07/03/2023,RS147833,20000.00,0.00,HSF3 Top Up - HG-4e95c10e,Household Support Fund,
Wyre Council,http://opendatacommunities.org/doc/district-council/wyre,30/03/2023,People and Places,Environmental Services,132B,Poulton Pets LTD,21/03/2023,PE147983,1475.70,0.00,Provision of stray dog kennel service 2022/23,Impounded Dogs Costs,
Wyre Council,http://opendatacommunities.org/doc/district-council/wyre,30/03/2023,Resources,Support Services,135B,Daisy Communications LTD,17/03/2023,RS147780,16.95,0.00,Monthly Phone Charges,Internet and Telephone Charges,
Wyre Council,http://opendatacommunities.org/doc/district-council/wyre,30/03/2023,Resources,Support Services,135B,Daisy Communications LTD,17/03/2023,RS147780,44.26,0.00,Monthly Phone Charges,Internet and Telephone Charges,
Wyre Council,http://opendatacommunities.org/doc/district-council/wyre,30/03/2023,Resources,Support Services,135B,Daisy Communications LTD,17/03/2023,RS147780,21.42,0.00,Monthly Phone Charges,Internet and Telephone Charges,
Wyre Council,http://opendatacommunities.org/doc/district-council/wyre,30/03/2023,Resources,Cultural and Related Services,132A,Daisy Communications LTD,17/03/2023,RS147780,27.65,0.00,Monthly Phone Charges,Internet and Telephone Charges,
Wyre Council,http://opendatacommunities.org/doc/district-council/wyre,30/03/2023,Resources,Corporate and Democratic Core,131A,Daisy Communications LTD,17/03/2023,RS147780,10.71,0.00,Monthly Phone Charges,Internet and Telephone Charges,
Wyre Council,http://opendatacommunities.org/doc/district-council/wyre,30/03/2023,Resources,Cultural and Related Services,132A,Daisy Communications LTD,17/03/2023,RS147780,10.71,0.00,Monthly Phone Charges,Internet and Telephone Charges,
Wyre Council,http://opendatacommunities.org/doc/district-council/wyre,30/03/2023,People and Places,Cultural and Related Services,132A,Northern Citrus Products LTD,17/03/2023,PE148100,540.06,0.00,Kiosk stock,Kiosk stock,
Wyre Council,http://opendatacommunities.org/doc/district-council/wyre,30/03/2023,Resources,Central Services to the Public,131C,Lancashire County Council,21/03/2023,RS147993,496.00,0.00,Wyre Council Con29 Searches for January 2023 - 31 @ 16.00 each,L.C.C. Search Fees,
Wyre Council,http://opendatacommunities.org/doc/district-council/wyre,30/03/2023,People and Places,Cultural and Related Services,132A,Active Lancashire LTD,10/03/2023,PE147930,2000.00,0.00,Wyre Council - Local Authority contribution to Active Lancashire 2022 / 23,Lancashire Sport Contribution,
Wyre Council,http://opendatacommunities.org/doc/district-council/wyre,30/03/2023,Finance,Central Services to the Public,131C,HM COURT SERVICES,07/03/2023,WPST00098756,798.50,0.00,ctax liability orders,Legal Fees,
Wyre Council,http://opendatacommunities.org/doc/district-council/wyre,30/03/2023,People and Places,Environmental Services,132B,Licence Check Ltd,06/03/2023,PE147743,1500.00,0.00,Davis Licence Check Credits,Licences,
Wyre Council,http://opendatacommunities.org/doc/district-council/wyre,30/03/2023,People and Places,Environmental Services,132B,Hako Machines Limited,03/03/2023,PE147706,361.00,0.00,KW72 DKE first tax and registration,Licences/MOT Certificates,
Wyre Council,http://opendatacommunities.org/doc/district-council/wyre,30/03/2023,People and Places,Highways,133B,Greens Environmental LTD,21/03/2023,PE148109,450.00,0.00,"1Estimate for removal of waste based on 10,000L at 15 per 1000L.150  TOTAL:1950.00",Maint. of Unadopted Assets - Engineers,
Wyre Council,http://opendatacommunities.org/doc/district-council/wyre,30/03/2023,People and Places,Highways,133B,Greens Environmental LTD,21/03/2023,PE148109,1050.00,0.00,1The full day provision of a jet vac and men for the following works:  - Remove all contaminated water from the fountain chamber until empty. - Remove all silt and contaminated waste from the silt trap until empty. - Enter chamber at Cleveleys water feat,Maint. of Unadopted Assets - Engineers,
Wyre Council,http://opendatacommunities.org/doc/district-council/wyre,30/03/2023,People and Places,Highways,133B,Greens Environmental LTD,17/03/2023,PE148096,750.00,0.00,"1Critical works to the caf� cove fountain overflow and surrounding area:The half day provision of a jet vac and 2 men for Monday afternoon 27/02/23.Investigate, jet, clean and remove all surface blockages from the fountain vicinity as agreed with K",Maint. of Unadopted Assets - Engineers,
Wyre Council,http://opendatacommunities.org/doc/district-council/wyre,30/03/2023,People and Places,Planning and Development Servs,132C,Terence Barker LTD,22/03/2023,PE148122,275.00,0.00,"Carry out Silver Service on pump, Copse Road Depot, Fleetwood",Maintenance of Tools or Equipment,
Wyre Council,http://opendatacommunities.org/doc/district-council/wyre,30/03/2023,People and Places,Planning and Development Servs,132C,M D Security,02/03/2023,PE147642,1063.33,0.00,Fleetwood Office: Repair to PC motherboard due to water ingression. New Windows 10 Pro licence due to hardware change.  Revisit to put new Windows key in,Maintenance of Tools or Equipment,
Wyre Council,http://opendatacommunities.org/doc/district-council/wyre,30/03/2023,People and Places,Cultural and Related Services,132A,Steve Tuckey Cycles,29/03/2023,PE148461,681.00,0.00,Annual maintenance of `Social Ride` bicycles,Maintenance of Tools or Equipment,
Wyre Council,http://opendatacommunities.org/doc/district-council/wyre,30/03/2023,People and Places,Cultural and Related Services,132A,Steve Tuckey Cycles,23/03/2023,PE148263,880.50,0.00,Annual maintenance for Wyre Wheels bikes.,Maintenance of Tools or Equipment,
Wyre Council,http://opendatacommunities.org/doc/district-council/wyre,30/03/2023,People and Places,Support Services,135B,Greens Environmental LTD,06/03/2023,PE147758,50.00,0.00,"Empty, carry out clean and service the chemical toilet at Preesall Cemetery, Preesall30 per visit Code to gain access to the toilet is 1907located to the rear of the chapelContact Gareth Bates on 07732399499 if you are having a problem with acces",Maintenance of Tools or Equipment,
Wyre Council,http://opendatacommunities.org/doc/district-council/wyre,30/03/2023,People and Places,Highways,133B,Dr Tree Surgeons,27/03/2023,PE148341,1620.00,0.00,"Quote Number: 703Quote Ref: Moorland Road1 Tree work as per Tree Survey.1,2,3 G1 ,G2,G3,4 ,G4,G5 5 & 6 .1,200.00 1,200.001 Traffic Management . 420.00 420.00Total Net Amount: 1,620.00VAT @ 20%: 324.00Quote Total: 1,944.00",Maintenance of Trees and Shrubs,
Wyre Council,http://opendatacommunities.org/doc/district-council/wyre,30/03/2023,People and Places,Highways,133B,Dr Tree Surgeons,01/03/2023,PE147676,380.00,0.00,Quote Number: 681 Quote Ref: 37 Stafford AveThe removal of four trees & stump grind at Verge pop 37 StaffordAve.380.00 Total Net Amount: 380.00VAT @ 20%: 76.00Quote Total: 456.00,Maintenance of Trees and Shrubs,
Wyre Council,http://opendatacommunities.org/doc/district-council/wyre,30/03/2023,People and Places,Environmental Services,132B,Everglades Nurseries TD,01/03/2023,PE147660,578.80,0.00,Document Number 168180Date:10/10/2022Acc No: W05TreesQuercus ilex 8-10 cm x 3 108.00 = 324.00Ulmus Lutece 8/10cm Girth x5 42.00 = 210.00SundriesTree Stakes 3 Inch 3 Inch x8 4.25 = 34.00Tree Ties 8 1.35 x8 =  10.80All deli,Maintenance of Trees and Shrubs,
Wyre Council,http://opendatacommunities.org/doc/district-council/wyre,30/03/2023,Resources,Housing General Fund,134A,St Gobain Building Distribution LTD,06/03/2023,RS147674,249.16,0.00,invoice 154725,Materials and Consumables,
Wyre Council,http://opendatacommunities.org/doc/district-council/wyre,30/03/2023,Resources,Housing General Fund,134A,St Gobain Building Distribution LTD,13/03/2023,RS147998,159.75,0.00,Payment of invoice - 0963/00118519,Materials and Consumables,
Wyre Council,http://opendatacommunities.org/doc/district-council/wyre,30/03/2023,People and Places,Support Services,135B,EK Motors Factors LTD,13/03/2023,PE147944,54.68,0.00,Parts,Materials and Consumables,
Wyre Council,http://opendatacommunities.org/doc/district-council/wyre,30/03/2023,People and Places,Support Services,135B,EK Motors Factors LTD,13/03/2023,PE147943,190.59,0.00,Parts,Materials and Consumables,
Wyre Council,http://opendatacommunities.org/doc/district-council/wyre,30/03/2023,People and Places,Support Services,135B,EK Motors Factors LTD,13/03/2023,PE147946,25.64,0.00,Parts,Materials and Consumables,
Wyre Council,http://opendatacommunities.org/doc/district-council/wyre,30/03/2023,People and Places,Support Services,135B,EK Motors Factors LTD,13/03/2023,PE147945,54.88,0.00,Parts,Materials and Consumables,
Wyre Council,http://opendatacommunities.org/doc/district-council/wyre,30/03/2023,People and Places,Support Services,135B,EK Motors Factors LTD,10/03/2023,PE147942,19.60,0.00,Parts,Materials and Consumables,
Wyre Council,http://opendatacommunities.org/doc/district-council/wyre,30/03/2023,People and Places,Support Services,135B,EK Motors Factors LTD,10/03/2023,PE147941,68.41,0.00,Parts,Materials and Consumables,
Wyre Council,http://opendatacommunities.org/doc/district-council/wyre,30/03/2023,People and Places,Support Services,135B,EK Motors Factors LTD,10/03/2023,PE147938,57.12,0.00,Parts,Materials and Consumables,
Wyre Council,http://opendatacommunities.org/doc/district-council/wyre,30/03/2023,People and Places,Support Services,135B,EK Motors Factors LTD,13/03/2023,PE147940,25.34,0.00,Parts,Materials and Consumables,
Wyre Council,http://opendatacommunities.org/doc/district-council/wyre,30/03/2023,People and Places,Support Services,135B,EK Motors Factors LTD,13/03/2023,PE147937,36.00,0.00,Parts,Materials and Consumables,
Wyre Council,http://opendatacommunities.org/doc/district-council/wyre,30/03/2023,Resources,Support Services,135B,Konica Minolta Business Solutions UK LTD,21/03/2023,RS147527,579.56,0.00,"Maintenance, ink cyan, magenta yellow black",Materials and Consumables,
Wyre Council,http://opendatacommunities.org/doc/district-council/wyre,30/03/2023,Resources,Support Services,135B,Lancashire County Council,06/03/2023,RS147742,47.00,0.00,"RSA1 - Road Space Application for works to cut hedges on both sides of the highway on Fleetwood Road, Fleetwood, FY7 8JZ. Proposed date Monday 13th February 2023 to Friday 17th February 2023",Materials and Consumables,
Wyre Council,http://opendatacommunities.org/doc/district-council/wyre,30/03/2023,People and Places,Support Services,135B,Malcolm McCulloch & Sons LTD,29/03/2023,PE148465,55.80,0.00,15 Centre feed rolls,Materials and Consumables,
Wyre Council,http://opendatacommunities.org/doc/district-council/wyre,30/03/2023,People and Places,Support Services,135B,Malcolm McCulloch & Sons LTD,29/03/2023,PE148465,83.70,0.00,Toilet rolls,Materials and Consumables,
Wyre Council,http://opendatacommunities.org/doc/district-council/wyre,30/03/2023,People and Places,Environmental Services,132B,Scarab Sweepers Ltd,02/03/2023,PE147606,1947.60,0.00,sweeper brushes and carriage,Materials and Consumables,
Wyre Council,http://opendatacommunities.org/doc/district-council/wyre,30/03/2023,People and Places,Environmental Services,132B,Scarab Sweepers Ltd,22/03/2023,PE148185,265.58,0.00,Sweeper brushes,Materials and Consumables,
Wyre Council,http://opendatacommunities.org/doc/district-council/wyre,30/03/2023,People and Places,Environmental Services,132B, Travis Perkins Trading CO LTD,22/03/2023,PE148151,1331.20,0.00, supply and delivery of 52 ultracrete pothole repair 25kg tubs,Materials and Consumables,
Wyre Council,http://opendatacommunities.org/doc/district-council/wyre,30/03/2023,People and Places,Environmental Services,132B, Travis Perkins Trading CO LTD,08/03/2023,PE147685,1456.00,0.00,56 bags QC 6,Materials and Consumables,
Wyre Council,http://opendatacommunities.org/doc/district-council/wyre,30/03/2023,People and Places,Support Services,135B,Chris Allen Garages LTD,10/03/2023,PE147963,154.45,0.00,Lockset,Materials and Consumables,
Wyre Council,http://opendatacommunities.org/doc/district-council/wyre,30/03/2023,People and Places,Support Services,135B,Chris Allen Garages LTD,10/03/2023,PE147962,424.86,0.00,latch,Materials and Consumables,
Wyre Council,http://opendatacommunities.org/doc/district-council/wyre,30/03/2023,People and Places,Environmental Services,132B,Townscape Products LTD,20/03/2023,PE148149,11975.00,0.00,Your quotation no:B11216 01/02/2023Please supply28 BAR/0021I - Fleetwood Intermediate Octagonal Performa-cast polymer post with galvanised steel core - below ground fix - painted Black (RAL2004)2 BAR/0021E - Fleetwood End Octagonal Performa-ca,Materials and Consumables,
Wyre Council,http://opendatacommunities.org/doc/district-council/wyre,30/03/2023,People and Places,Support Services,135B,Teleshore UK LTD,08/03/2023,PE147873,950.00,0.00,Supply and deliver as per quote: Q11611 Rectangular panels 90`` x 18`` 475.00 per pair x 2,Materials and Consumables,
Wyre Council,http://opendatacommunities.org/doc/district-council/wyre,30/03/2023,People and Places,Support Services,135B,Teleshore UK LTD,08/03/2023,PE147873,300.00,0.00,Speed braces 27`` - 39`` 60.00 each x 5,Materials and Consumables,
Wyre Council,http://opendatacommunities.org/doc/district-council/wyre,30/03/2023,People and Places,Support Services,135B,Teleshore UK LTD,08/03/2023,PE147873,36.00,0.00,Black cast ratchet bar for speed brace 18.00 each x 2,Materials and Consumables,
Wyre Council,http://opendatacommunities.org/doc/district-council/wyre,30/03/2023,People and Places,Support Services,135B,Teleshore UK LTD,08/03/2023,PE147873,67.00,0.00,"Carriage 67.00Delivery to Wyre Council, Copse Road Depot, Copse Road, Fleetwood, FY7 6RP.",Materials and Consumables,
Wyre Council,http://opendatacommunities.org/doc/district-council/wyre,30/03/2023,People and Places,Support Services,135B,Everglades Nurseries TD,15/03/2023,PE147661,468.00,0.00,6 January 2023 tree planting quotation (provided via e-mail and follow up call with Scott)x1 prunus serenata shirotae 8-10 girth 54.00 x3 rowan 8-10 girth only pot grown 40.00x5 Quercus petrea 8-10 girth 48.00x9 three inch diameter stakes 4.50,Materials and Consumables,
Wyre Council,http://opendatacommunities.org/doc/district-council/wyre,30/03/2023,People and Places,Support Services,135B,Walkers Nurseries & Plant Centre,08/03/2023,PE147847,765.00,0.00,Supply White Garden Mum Remembrance day/sunday - Delivery on the 10th November in the morning Supply Annual 180 pre hardened white Crysanths Quotation 180 White Garden Mums in 15cm pots 4.25 each 765 total including delivery but excluding VAT,Materials and Consumables,
Wyre Council,http://opendatacommunities.org/doc/district-council/wyre,30/03/2023,People and Places,Environmental Services,132B,George Hewitt Fabrications,29/03/2023,PE148476,21728.00,0.00,To Supply: 14 RailingsFabrication of adjacent top of sea wall railings.Railings has 3 posts and 3 rails and is approximately 4m long.Made of 316 stainless steel and 80x80x4mm stainless steel box and 60@ 1500.00 per RailingTotal Cost 2100.00,Materials and Consumables,
Wyre Council,http://opendatacommunities.org/doc/district-council/wyre,30/03/2023,People and Places,Support Services,135B,Amazon Business,22/03/2023,PE148212,74.58,0.00,Moldex Rockets,Materials and Consumables,
Wyre Council,http://opendatacommunities.org/doc/district-council/wyre,30/03/2023,People and Places,Support Services,135B,Amazon Business,27/03/2023,PE148350,70.58,0.00,Ink Cartridges Fleetwood Cemetery,Materials and Consumables,
Wyre Council,http://opendatacommunities.org/doc/district-council/wyre,30/03/2023,People and Places,Environmental Services,132B,BREEDON SOUTHERN LTD,13/03/2023,PE147926,-1715.50,0.00,Complaint Credit ID 4910,Materials and Consumables,
Wyre Council,http://opendatacommunities.org/doc/district-council/wyre,30/03/2023,People and Places,Environmental Services,132B,BREEDON SOUTHERN LTD,14/03/2023,PE147918,2085.00,0.00,[ayment of invoice 21144840 for concrete on 01/03/23 +02/03/23,Materials and Consumables,
Wyre Council,http://opendatacommunities.org/doc/district-council/wyre,30/03/2023,People and Places,Environmental Services,132B,BREEDON SOUTHERN LTD,14/03/2023,PE147917,228.32,0.00,payment of invoice 21144841 - for on site time and min load restrictions on deliveries 1st and 2cd march 2023,Materials and Consumables,
Wyre Council,http://opendatacommunities.org/doc/district-council/wyre,30/03/2023,People and Places,Environmental Services,132B,BREEDON SOUTHERN LTD,14/03/2023,PE147588,4003.20,0.00,supply of concrete as detailed on invoice 2119057 for dates 13-15th Feb 2023,Materials and Consumables,
Wyre Council,http://opendatacommunities.org/doc/district-council/wyre,30/03/2023,People and Places,Environmental Services,132B,BREEDON SOUTHERN LTD,14/03/2023,PE147587,228.07,0.00,payment of invoice 2119058 for onsite waiting times and minimum load penalites 13-15th feb,Materials and Consumables,
Wyre Council,http://opendatacommunities.org/doc/district-council/wyre,30/03/2023,People and Places,Environmental Services,132B,BREEDON SOUTHERN LTD,23/03/2023,PE147715,3753.00,0.00,payment of invoice 21136667 concrete deliveries 27th and 28th Feb 2023,Materials and Consumables,
Wyre Council,http://opendatacommunities.org/doc/district-council/wyre,30/03/2023,People and Places,Environmental Services,132B,BREEDON SOUTHERN LTD,23/03/2023,PE147714,269.16,0.00,payment of invoice 21136668 - on site waiting time for deliveries on 27th and 28th feb 2023,Materials and Consumables,
Wyre Council,http://opendatacommunities.org/doc/district-council/wyre,30/03/2023,Resources,Corporate and Democratic Core,131A,Best Western Garstang Country Hotel & Golf Club,13/03/2023,RS147985,4227.17,0.00,"Mayoral Ball 25/02/2023  Venue and food: 162 covers @ 27.50 per head (inclusive of VAT), plus house DJ fee, plus sandwiches for mayors attendants 57.60.",Mayoral Ball,
Wyre Council,http://opendatacommunities.org/doc/district-council/wyre,30/03/2023,Resources,Housing General Fund,134A,Mobility Care Services,29/03/2023,RS148432,287.00,0.00,REDACT,Minor Adaptations,
Wyre Council,http://opendatacommunities.org/doc/district-council/wyre,30/03/2023,Resources,Housing General Fund,134A,Mobility Care Services,29/03/2023,RS148352,287.00,0.00,REDACT,Minor Adaptations,
Wyre Council,http://opendatacommunities.org/doc/district-council/wyre,30/03/2023,Resources,Housing General Fund,134A,Mobility Care Services,29/03/2023,RS148434,66.00,0.00,REDACT,Minor Adaptations,
Wyre Council,http://opendatacommunities.org/doc/district-council/wyre,30/03/2023,Resources,Housing General Fund,134A,Mobility Care Services,29/03/2023,RS148433,287.00,0.00,REDACT,Minor Adaptations,
Wyre Council,http://opendatacommunities.org/doc/district-council/wyre,30/03/2023,Resources,Housing General Fund,134A,Mobility Care Services,07/03/2023,RS147821,480.00,0.00,REDACT,Minor Adaptations,
Wyre Council,http://opendatacommunities.org/doc/district-council/wyre,30/03/2023,Resources,Housing General Fund,134A,Mobility Care Services,07/03/2023,RS147823,308.00,0.00,REDACT,Minor Adaptations,
Wyre Council,http://opendatacommunities.org/doc/district-council/wyre,30/03/2023,Resources,Housing General Fund,134A,Mobility Care Services,07/03/2023,RS147822,520.00,0.00,REDACT,Minor Adaptations,
Wyre Council,http://opendatacommunities.org/doc/district-council/wyre,30/03/2023,Resources,Housing General Fund,134A,Mobility Care Services,07/03/2023,RS147824,465.00,0.00,REDACT,Minor Adaptations,
Wyre Council,http://opendatacommunities.org/doc/district-council/wyre,30/03/2023,Resources,Housing General Fund,134A,Mobility Care Services,13/03/2023,RS148012,680.00,0.00,REDACT,Minor Adaptations,
Wyre Council,http://opendatacommunities.org/doc/district-council/wyre,30/03/2023,Resources,Housing General Fund,134A,J A DICKENS LIMITED,07/03/2023,RS147825,80.00,0.00,REDACT,Minor Adaptations,
Wyre Council,http://opendatacommunities.org/doc/district-council/wyre,30/03/2023,Resources,Housing General Fund,134A,J A DICKENS LIMITED,07/03/2023,RS147825,74.00,0.00,REDACT,Minor Adaptations,
Wyre Council,http://opendatacommunities.org/doc/district-council/wyre,30/03/2023,Resources,Housing General Fund,134A,J A DICKENS LIMITED,07/03/2023,RS147826,100.00,0.00,REDACT,Minor Adaptations,
Wyre Council,http://opendatacommunities.org/doc/district-council/wyre,30/03/2023,Resources,Housing General Fund,134A,J A DICKENS LIMITED,07/03/2023,RS147826,187.00,0.00,REDACT,Minor Adaptations,
Wyre Council,http://opendatacommunities.org/doc/district-council/wyre,30/03/2023,Resources,Housing General Fund,134A,J A DICKENS LIMITED,07/03/2023,RS147827,180.00,0.00,REDACT,Minor Adaptations,
Wyre Council,http://opendatacommunities.org/doc/district-council/wyre,30/03/2023,Resources,Housing General Fund,134A,J A DICKENS LIMITED,07/03/2023,RS147827,128.00,0.00,REDACT,Minor Adaptations,
Wyre Council,http://opendatacommunities.org/doc/district-council/wyre,30/03/2023,Resources,Housing General Fund,134A,J A DICKENS LIMITED,07/03/2023,RS147828,300.00,0.00,REDACT,Minor Adaptations,
Wyre Council,http://opendatacommunities.org/doc/district-council/wyre,30/03/2023,Resources,Housing General Fund,134A,J A DICKENS LIMITED,07/03/2023,RS147828,290.00,0.00,REDACT,Minor Adaptations,
Wyre Council,http://opendatacommunities.org/doc/district-council/wyre,30/03/2023,Resources,Housing General Fund,134A,J A DICKENS LIMITED,29/03/2023,RS148439,60.00,0.00,REDACT,Minor Adaptations,
Wyre Council,http://opendatacommunities.org/doc/district-council/wyre,30/03/2023,Resources,Housing General Fund,134A,J A DICKENS LIMITED,29/03/2023,RS148439,94.00,0.00,REDACT,Minor Adaptations,
Wyre Council,http://opendatacommunities.org/doc/district-council/wyre,30/03/2023,Resources,Housing General Fund,134A,J A DICKENS LIMITED,29/03/2023,RS148440,60.00,0.00,REDACT,Minor Adaptations,
Wyre Council,http://opendatacommunities.org/doc/district-council/wyre,30/03/2023,Resources,Housing General Fund,134A,J A DICKENS LIMITED,29/03/2023,RS148440,94.00,0.00,REDACT,Minor Adaptations,
Wyre Council,http://opendatacommunities.org/doc/district-council/wyre,30/03/2023,Resources,Housing General Fund,134A,J A DICKENS LIMITED,29/03/2023,RS148441,280.00,0.00,REDACT,Minor Adaptations,
Wyre Council,http://opendatacommunities.org/doc/district-council/wyre,30/03/2023,Resources,Housing General Fund,134A,J A DICKENS LIMITED,29/03/2023,RS148441,200.00,0.00,REDACT,Minor Adaptations,
Wyre Council,http://opendatacommunities.org/doc/district-council/wyre,30/03/2023,Resources,Housing General Fund,134A,J A DICKENS LIMITED,29/03/2023,RS148442,200.00,0.00,REDACT,Minor Adaptations,
Wyre Council,http://opendatacommunities.org/doc/district-council/wyre,30/03/2023,Resources,Housing General Fund,134A,J A DICKENS LIMITED,29/03/2023,RS148442,241.00,0.00,REDACT,Minor Adaptations,
Wyre Council,http://opendatacommunities.org/doc/district-council/wyre,30/03/2023,Resources,Housing General Fund,134A,J A DICKENS LIMITED,29/03/2023,RS148443,300.00,0.00,REDACT,Minor Adaptations,
Wyre Council,http://opendatacommunities.org/doc/district-council/wyre,30/03/2023,Resources,Housing General Fund,134A,J A DICKENS LIMITED,29/03/2023,RS148443,308.00,0.00,REDACT,Minor Adaptations,
Wyre Council,http://opendatacommunities.org/doc/district-council/wyre,30/03/2023,Resources,Housing General Fund,134A,J A DICKENS LIMITED,29/03/2023,RS148444,380.00,0.00,REDACT,Minor Adaptations,
Wyre Council,http://opendatacommunities.org/doc/district-council/wyre,30/03/2023,Resources,Housing General Fund,134A,J A DICKENS LIMITED,29/03/2023,RS148444,340.00,0.00,REDACT,Minor Adaptations,
Wyre Council,http://opendatacommunities.org/doc/district-council/wyre,30/03/2023,Resources,Current Assets,130B,Fylde Coast YMCA,23/03/2023,RS148224,4540.00,0.00,"18 memberships @ 240, 1 membership @ 220",Miscellaneous Debits,
Wyre Council,http://opendatacommunities.org/doc/district-council/wyre,30/03/2023,Resources,Current Assets,130B,SME HCI Ltd,28/03/2023,RS148423,1647.60,0.00,INVOICE NUMBER: 144331,Miscellaneous Debits,
Wyre Council,http://opendatacommunities.org/doc/district-council/wyre,30/03/2023,Resources,Support Services,135B,VODAFONE LIMITED,24/03/2023,RS148035,12.00,0.00,Mobile Phone Charges for February 2023,Mobile Devices,
Wyre Council,http://opendatacommunities.org/doc/district-council/wyre,30/03/2023,Resources,Cultural and Related Services,132A,VODAFONE LIMITED,24/03/2023,RS148035,12.00,0.00,Mobile Phone Charges for February 2023,Mobile Devices,
Wyre Council,http://opendatacommunities.org/doc/district-council/wyre,30/03/2023,Resources,Cultural and Related Services,132A,VODAFONE LIMITED,24/03/2023,RS148035,24.00,0.00,Mobile Phone Charges for February 2023,Mobile Devices,
Wyre Council,http://opendatacommunities.org/doc/district-council/wyre,30/03/2023,Resources,Support Services,135B,VODAFONE LIMITED,24/03/2023,RS148035,168.17,0.00,Mobile Phone Charges for February 2023,Mobile Devices,
Wyre Council,http://opendatacommunities.org/doc/district-council/wyre,30/03/2023,Resources,Support Services,135B,VODAFONE LIMITED,24/03/2023,RS148035,24.00,0.00,Mobile Phone Charges for February 2023,Mobile Devices,
Wyre Council,http://opendatacommunities.org/doc/district-council/wyre,30/03/2023,Resources,Support Services,135B,VODAFONE LIMITED,24/03/2023,RS148035,20.00,0.00,Mobile Phone Charges for February 2023,Mobile Devices,
Wyre Council,http://opendatacommunities.org/doc/district-council/wyre,30/03/2023,Resources,Support Services,135B,VODAFONE LIMITED,24/03/2023,RS148035,156.00,0.00,Mobile Phone Charges for February 2023,Mobile Devices,
Wyre Council,http://opendatacommunities.org/doc/district-council/wyre,30/03/2023,Resources,Support Services,135B,VODAFONE LIMITED,24/03/2023,RS148035,12.00,0.00,Mobile Phone Charges for February 2023,Mobile Devices,
Wyre Council,http://opendatacommunities.org/doc/district-council/wyre,30/03/2023,Resources,Support Services,135B,VODAFONE LIMITED,24/03/2023,RS148035,68.00,0.00,Mobile Phone Charges for February 2023,Mobile Devices,
Wyre Council,http://opendatacommunities.org/doc/district-council/wyre,30/03/2023,Resources,Central Services to the Public,131C,VODAFONE LIMITED,24/03/2023,RS148035,12.00,0.00,Mobile Phone Charges for February 2023,Mobile Devices,
Wyre Council,http://opendatacommunities.org/doc/district-council/wyre,30/03/2023,Resources,Support Services,135B,VODAFONE LIMITED,24/03/2023,RS148035,12.00,0.00,Mobile Phone Charges for February 2023,Mobile Devices,
Wyre Council,http://opendatacommunities.org/doc/district-council/wyre,30/03/2023,Resources,Support Services,135B,VODAFONE LIMITED,24/03/2023,RS148035,180.00,0.00,Mobile Phone Charges for February 2023,Mobile Devices,
Wyre Council,http://opendatacommunities.org/doc/district-council/wyre,30/03/2023,Resources,Support Services,135B,VODAFONE LIMITED,24/03/2023,RS148035,12.00,0.00,Mobile Phone Charges for February 2023,Mobile Devices,
Wyre Council,http://opendatacommunities.org/doc/district-council/wyre,30/03/2023,Resources,Support Services,135B,VODAFONE LIMITED,24/03/2023,RS148035,68.00,0.00,Mobile Phone Charges for February 2023,Mobile Devices,
Wyre Council,http://opendatacommunities.org/doc/district-council/wyre,30/03/2023,Resources,Support Services,135B,VODAFONE LIMITED,24/03/2023,RS148035,12.00,0.00,Mobile Phone Charges for February 2023,Mobile Devices,
Wyre Council,http://opendatacommunities.org/doc/district-council/wyre,30/03/2023,Resources,Support Services,135B,VODAFONE LIMITED,24/03/2023,RS148035,24.00,0.00,Mobile Phone Charges for February 2023,Mobile Devices,
Wyre Council,http://opendatacommunities.org/doc/district-council/wyre,30/03/2023,Resources,Support Services,135B,VODAFONE LIMITED,24/03/2023,RS148035,196.00,0.00,Mobile Phone Charges for February 2023,Mobile Devices,
Wyre Council,http://opendatacommunities.org/doc/district-council/wyre,30/03/2023,Resources,Support Services,135B,VODAFONE LIMITED,24/03/2023,RS148035,12.00,0.00,Mobile Phone Charges for February 2023,Mobile Devices,
Wyre Council,http://opendatacommunities.org/doc/district-council/wyre,30/03/2023,Resources,Environmental Services,132B,VODAFONE LIMITED,24/03/2023,RS148035,29.00,0.00,Mobile Phone Charges for February 2023,Mobile Devices,
Wyre Council,http://opendatacommunities.org/doc/district-council/wyre,30/03/2023,Resources,Housing General Fund,134A,VODAFONE LIMITED,24/03/2023,RS148035,64.92,0.00,Mobile Phone Charges for February 2023,Mobile Devices,
Wyre Council,http://opendatacommunities.org/doc/district-council/wyre,30/03/2023,Resources,Housing General Fund,134A,VODAFONE LIMITED,24/03/2023,RS148035,8.00,0.00,Mobile Phone Charges for February 2023,Mobile Devices,
Wyre Council,http://opendatacommunities.org/doc/district-council/wyre,30/03/2023,Resources,Housing General Fund,134A,VODAFONE LIMITED,24/03/2023,RS148035,43.43,0.00,Mobile Phone Charges for February 2023,Mobile Devices,
Wyre Council,http://opendatacommunities.org/doc/district-council/wyre,30/03/2023,Resources,Support Services,135B,VODAFONE LIMITED,24/03/2023,RS148035,36.00,0.00,Mobile Phone Charges for February 2023,Mobile Devices,
Wyre Council,http://opendatacommunities.org/doc/district-council/wyre,30/03/2023,Resources,Support Services,135B,VODAFONE LIMITED,24/03/2023,RS148035,322.14,0.00,Mobile Phone Charges for February 2023,Mobile Devices,
Wyre Council,http://opendatacommunities.org/doc/district-council/wyre,30/03/2023,Resources,Support Services,135B,VODAFONE LIMITED,24/03/2023,RS148035,36.00,0.00,Mobile Phone Charges for February 2023,Mobile Devices,
Wyre Council,http://opendatacommunities.org/doc/district-council/wyre,30/03/2023,Resources,Support Services,135B,VODAFONE LIMITED,24/03/2023,RS148035,45.00,0.00,Mobile Phone Charges for February 2023,Mobile Devices,
Wyre Council,http://opendatacommunities.org/doc/district-council/wyre,30/03/2023,Resources,Support Services,135B,VODAFONE LIMITED,24/03/2023,RS148035,24.00,0.00,Mobile Phone Charges for February 2023,Mobile Devices,
Wyre Council,http://opendatacommunities.org/doc/district-council/wyre,30/03/2023,Resources,Support Services,135B,VODAFONE LIMITED,24/03/2023,RS148035,72.00,0.00,Mobile Phone Charges for February 2023,Mobile Devices,
Wyre Council,http://opendatacommunities.org/doc/district-council/wyre,30/03/2023,Resources,Support Services,135B,VODAFONE LIMITED,24/03/2023,RS148035,28.00,0.00,Mobile Phone Charges for February 2023,Mobile Devices,
Wyre Council,http://opendatacommunities.org/doc/district-council/wyre,30/03/2023,Resources,Environmental Services,132B,VODAFONE LIMITED,24/03/2023,RS148035,84.00,0.00,Mobile Phone Charges for February 2023,Mobile Devices,
Wyre Council,http://opendatacommunities.org/doc/district-council/wyre,30/03/2023,Resources,Cultural and Related Services,132A,VODAFONE LIMITED,24/03/2023,RS148035,12.00,0.00,Mobile Phone Charges for February 2023,Mobile Devices,
Wyre Council,http://opendatacommunities.org/doc/district-council/wyre,30/03/2023,Resources,Corporate and Democratic Core,131A,VODAFONE LIMITED,24/03/2023,RS148035,12.00,0.00,Mobile Phone Charges for February 2023,Mobile Devices,
Wyre Council,http://opendatacommunities.org/doc/district-council/wyre,30/03/2023,Resources,Central Services to the Public,131C,VODAFONE LIMITED,24/03/2023,RS148035,12.00,0.00,Mobile Phone Charges for February 2023,Mobile Devices,
Wyre Council,http://opendatacommunities.org/doc/district-council/wyre,30/03/2023,Resources,Support Services,135B,VODAFONE LIMITED,24/03/2023,RS148035,193.00,0.00,Mobile Phone Charges for February 2023,Mobile Devices,
Wyre Council,http://opendatacommunities.org/doc/district-council/wyre,30/03/2023,Resources,Corporate and Democratic Core,131A,Cabinet Office National Fraud Initiative,29/03/2023,RS148450,2535.00,0.00,NFI 2022/23 National Exercise,National Fraud Initiative,
Wyre Council,http://opendatacommunities.org/doc/district-council/wyre,30/03/2023,Finance,Current Assets,130B,,14/03/2023,WPST00099432,4738.46,0.00,NNDR Refund,NNDR Refunds,
Wyre Council,http://opendatacommunities.org/doc/district-council/wyre,30/03/2023,Finance,Current Assets,130B,,17/03/2023,WPST00099822,52716.68,0.00,nndr refunds 30/9/22,NNDR Refunds,
Wyre Council,http://opendatacommunities.org/doc/district-council/wyre,30/03/2023,Finance,Current Assets,130B,,21/03/2023,WPST00100104,9832.42,0.00,NNDR Refund,NNDR Refunds,
Wyre Council,http://opendatacommunities.org/doc/district-council/wyre,30/03/2023,Finance,General Fund below the line,136A,DEPARTMENT FOR COMMUNITIES AND LOCAL GOVERNMENT,22/03/2023,WPST00100300,547001.00,0.00,RVBC General,NNDR Tariff to Government,
Wyre Council,http://opendatacommunities.org/doc/district-council/wyre,30/03/2023,Finance,Collection Fund Revenue Accts,138A,DEPARTMENT FOR COMMUNITIES AND LOCAL GOVERNMENT,22/03/2023,WPST00100297,866408.00,0.00,DLUHC - Business Rates Cent Share 20/03,NNDR Tariff to Government,
Wyre Council,http://opendatacommunities.org/doc/district-council/wyre,30/03/2023,Resources,Support Services,135B,People Asset Management LTD,21/03/2023,RS148192,750.00,0.00,scanning 1000 documents at 75p per document,Occupational Health Fees,
Wyre Council,http://opendatacommunities.org/doc/district-council/wyre,30/03/2023,Resources,Support Services,135B,People Asset Management LTD,21/03/2023,RS148192,95.00,0.00,Secure collection fee,Occupational Health Fees,
Wyre Council,http://opendatacommunities.org/doc/district-council/wyre,30/03/2023,Resources,Support Services,135B,People Asset Management LTD,15/03/2023,RS147749,675.68,0.00,Monthly fee (Aug to March 22,Occupational Health Fees,
Wyre Council,http://opendatacommunities.org/doc/district-council/wyre,30/03/2023,Resources,Support Services,135B,People Asset Management LTD,15/03/2023,RS147749,230.85,0.00,Monthly fee (Aug to March 22,Occupational Health Fees,
Wyre Council,http://opendatacommunities.org/doc/district-council/wyre,30/03/2023,Resources,Support Services,135B,Karen Openshaw Consultancy,29/03/2023,RS148428,520.00,0.00,To provision of Listening Ear and Mindfulness sessions 1 Apr 2022 - 31 March 2023,Occupational Health Fees,
Wyre Council,http://opendatacommunities.org/doc/district-council/wyre,30/03/2023,Resources,Support Services,135B,Karen Openshaw Consultancy,02/03/2023,RS147680,475.00,0.00,To provision of Listening Ear and Mindfulness sessions 1 Apr 2022 - 31 March 2023,Occupational Health Fees,
Wyre Council,http://opendatacommunities.org/doc/district-council/wyre,30/03/2023,People and Places,Environmental Services,132B,DANFO (UK) LTD,15/03/2023,PE148037,21763.10,0.00,Public Conveniences - Maintenance and Cleaning 2022/23,Other Establishments,
Wyre Council,http://opendatacommunities.org/doc/district-council/wyre,30/03/2023,People and Places,Cultural and Related Services,132A,The Lancashire Wildlife Trust Ltd,13/03/2023,PE148009,5500.00,0.00,NHS Cost of Living Grant,Other Grants,
Wyre Council,http://opendatacommunities.org/doc/district-council/wyre,30/03/2023,People and Places,Cultural and Related Services,132A,Christ Church Hall,10/03/2023,PE147929,14500.00,0.00,NHS Cost of Living Grant,Other Grants,
Wyre Council,http://opendatacommunities.org/doc/district-council/wyre,30/03/2023,People and Places,Cultural and Related Services,132A,Catterall Village Hall,23/03/2023,PE148257,506.32,0.00,NHS Cost of Living Grant,Other Grants,
Wyre Council,http://opendatacommunities.org/doc/district-council/wyre,30/03/2023,People and Places,Cultural and Related Services,132A,Fleetwood Town Community Trust,21/03/2023,PE148199,5880.00,0.00,NHS Cost of Living Grant,Other Grants,
Wyre Council,http://opendatacommunities.org/doc/district-council/wyre,30/03/2023,People and Places,Cultural and Related Services,132A,Forton Village Hall& Recreational Ground,24/03/2023,PE148299,900.00,0.00,NHS Cost of Living Grant,Other Grants,
Wyre Council,http://opendatacommunities.org/doc/district-council/wyre,30/03/2023,People and Places,Cultural and Related Services,132A,SHIRLEY ERACLEOUS,29/03/2023,PE148330,3220.00,0.00,NHS Cost of Living Grant for Harmony and Health,Other Grants,
Wyre Council,http://opendatacommunities.org/doc/district-council/wyre,30/03/2023,People and Places,Cultural and Related Services,132A,Roots to Branches Forest School CIC,20/03/2023,PE148173,4662.38,0.00,NS Cost of Living Grant,Other Grants,
Wyre Council,http://opendatacommunities.org/doc/district-council/wyre,30/03/2023,People and Places,Cultural and Related Services,132A,Inspired Minds Training CIC,27/03/2023,PE148333,5000.00,0.00,NHS Cost of Living Grant,Other Grants,
Wyre Council,http://opendatacommunities.org/doc/district-council/wyre,30/03/2023,People and Places,Cultural and Related Services,132A,Mens Shed Fleetwood,10/03/2023,PE147931,10000.00,0.00,NHS Cost of Living Grant,Other Grants,
Wyre Council,http://opendatacommunities.org/doc/district-council/wyre,30/03/2023,People and Places,Cultural and Related Services,132A,Counselling in the community,24/03/2023,PE148303,4875.00,0.00,NHS Cost of Living Grant,Other Grants,
Wyre Council,http://opendatacommunities.org/doc/district-council/wyre,30/03/2023,People and Places,Cultural and Related Services,132A,Faith In The Community,21/03/2023,PE148198,2280.00,0.00,NHS Cost of Living Grant,Other Grants,
Wyre Council,http://opendatacommunities.org/doc/district-council/wyre,30/03/2023,People and Places,Cultural and Related Services,132A,Friends of Fleetwood Memorial Park,20/03/2023,PE148134,15000.00,0.00,NHS Cost of Living Grant,Other Grants,
Wyre Council,http://opendatacommunities.org/doc/district-council/wyre,30/03/2023,Finance,Collection Fund Revenue Accts,138A,LANCASHIRE FIRE AUTHORITY,17/03/2023,WPST00099733,21660.00,0.00,Lancs fire 22/23 business rates,Other Local Authorities,
Wyre Council,http://opendatacommunities.org/doc/district-council/wyre,30/03/2023,Finance,Collection Fund Revenue Accts,138A,,17/03/2023,WPST00099729,194942.00,0.00,LCC 22/23 Business rates,Other Local Authorities,
Wyre Council,http://opendatacommunities.org/doc/district-council/wyre,30/03/2023,Finance,Collection Fund Revenue Accts,138A,,17/03/2023,WPST00099736,21250.00,0.00,Police & Crime Comms 21/22 Ctax deficit,Other Local Authorities,
Wyre Council,http://opendatacommunities.org/doc/district-council/wyre,30/03/2023,Finance,Collection Fund Revenue Accts,138A,LANCASHIRE COUNTY COUNCIL,17/03/2023,WPST00099727,5754977.00,0.00,LCC 22/23 Ctax,Other Local Authorities,
Wyre Council,http://opendatacommunities.org/doc/district-council/wyre,30/03/2023,Finance,Collection Fund Revenue Accts,138A,,17/03/2023,WPST00099728,136649.00,0.00,LCC 21/22 Ctax deficit,Other Local Authorities,
Wyre Council,http://opendatacommunities.org/doc/district-council/wyre,30/03/2023,Finance,Collection Fund Revenue Accts,138A,LANCASHIRE FIRE AUTHORITY,17/03/2023,WPST00099731,293661.00,0.00,Lancs Fire 22/23 Ctax,Other Local Authorities,
Wyre Council,http://opendatacommunities.org/doc/district-council/wyre,30/03/2023,Finance,Collection Fund Revenue Accts,138A,,17/03/2023,WPST00099732,6782.00,0.00,Lancs fire 21/22 Ctax deficit,Other Local Authorities,
Wyre Council,http://opendatacommunities.org/doc/district-council/wyre,30/03/2023,Finance,Collection Fund Revenue Accts,138A,,17/03/2023,WPST00099735,898615.00,0.00,Police & Crime Comms 22/23 Ctax,Other Local Authorities,
Wyre Council,http://opendatacommunities.org/doc/district-council/wyre,30/03/2023,People and Places,Planning and Development Servs,132C,Blackpool Council,08/03/2023,PE147844,25000.00,0.00,"Hillhouse EZ Support 2022/23 - R Green, M Harrison, A Ogden",Other Local Authorities,
Wyre Council,http://opendatacommunities.org/doc/district-council/wyre,30/03/2023,Resources,Environmental Services,132B,D Hollowell & Sons LTD,20/03/2023,RS148118,795.00,0.00,REDACT,Other Rechargeable Services,
Wyre Council,http://opendatacommunities.org/doc/district-council/wyre,30/03/2023,People and Places,Parking Services,133F,A1 Streamline Road,08/03/2023,PE147034,500.00,0.00,Work carried out at Wheatsheaf Way car park Poulton,"Paths, Roads and Car Park Mtnce Annual",
Wyre Council,http://opendatacommunities.org/doc/district-council/wyre,30/03/2023,Finance,Corporate and Democratic Core,131A,LANCASHIRE COUNTY COUNCIL,09/03/2023,WPST00099041,14956.69,0.00,LCC CO 651003321890066224,Pension Increase Act Payments,
Wyre Council,http://opendatacommunities.org/doc/district-council/wyre,30/03/2023,People and Places,Support Services,135B,Allstar Business Solutions LTD,22/03/2023,PE148145,43.24,0.00,Petrol 09/03/23,Petrol,
Wyre Council,http://opendatacommunities.org/doc/district-council/wyre,30/03/2023,People and Places,Support Services,135B,Allstar Business Solutions LTD,16/03/2023,PE147740,58.87,0.00,Fuel Charges,Petrol,
Wyre Council,http://opendatacommunities.org/doc/district-council/wyre,30/03/2023,People and Places,Support Services,135B,Allstar Business Solutions LTD,16/03/2023,PE147740,65.42,0.00,Fuel Charges,Petrol,
Wyre Council,http://opendatacommunities.org/doc/district-council/wyre,30/03/2023,People and Places,Support Services,135B,Allstar Business Solutions LTD,22/03/2023,PE148145,39.98,0.00,Petrol 07/03/23,Petrol,
Wyre Council,http://opendatacommunities.org/doc/district-council/wyre,30/03/2023,People and Places,Support Services,135B,Allstar Business Solutions LTD,16/03/2023,PE147740,85.16,0.00,Fuel Charges,Petrol,
Wyre Council,http://opendatacommunities.org/doc/district-council/wyre,30/03/2023,People and Places,Cultural and Related Services,132A,EAS Electrical Mechanical,22/03/2023,PE148225,2580.00,0.00,Complete EICR and compile report at Thornton Little Theatre,Planned Building Maintenance,
Wyre Council,http://opendatacommunities.org/doc/district-council/wyre,30/03/2023,People and Places,Cultural and Related Services,132A,Lancashire County Council,22/03/2023,PE148221,196.04,0.00,INS284940 Fleetwood Rossall Point Observatory - Lightning Protection  Inspection,Planned Building Maintenance,
Wyre Council,http://opendatacommunities.org/doc/district-council/wyre,30/03/2023,People and Places,Cultural and Related Services,132A,Lancashire County Council,22/03/2023,PE148221,32.47,0.00,INS306777 Thornton Cleveleys Marsh Mill - Alarm Monitoring,Planned Building Maintenance,
Wyre Council,http://opendatacommunities.org/doc/district-council/wyre,30/03/2023,People and Places,Cultural and Related Services,132A,Lancashire County Council,22/03/2023,PE148221,196.04,0.00,INS299954 Thornton Cleveleys Marsh Mill - Lightning Protection  Inspection,Planned Building Maintenance,
Wyre Council,http://opendatacommunities.org/doc/district-council/wyre,30/03/2023,People and Places,Support Services,135B,Lancashire County Council,21/03/2023,PE145145,5555.74,0.00,Incorrect amount on invoice for professional fees in respect of service contracts July-September 2022,Planned Building Maintenance,
Wyre Council,http://opendatacommunities.org/doc/district-council/wyre,30/03/2023,People and Places,Support Services,135B,Lancashire County Council,22/03/2023,PE148221,3977.34,0.00,INS273258 Poulton le Fylde Civic Centre - PAT,Planned Building Maintenance,
Wyre Council,http://opendatacommunities.org/doc/district-council/wyre,30/03/2023,People and Places,Environmental Services,132B,Lancashire County Council,22/03/2023,PE148221,22.36,0.00,INS273528 Fleetwood Cemetery Office - PAT,Planned Building Maintenance,
Wyre Council,http://opendatacommunities.org/doc/district-council/wyre,30/03/2023,People and Places,Cultural and Related Services,132A,Lancashire County Council,22/03/2023,PE148221,174.00,0.00,INS294083 Fleetwood Memorial Bowls - Legionella Risk Assessment,Planned Building Maintenance,
Wyre Council,http://opendatacommunities.org/doc/district-council/wyre,30/03/2023,People and Places,Cultural and Related Services,132A,Lancashire County Council,22/03/2023,PE148221,208.87,0.00,INS293880 Fleetwood Tennis Pavillion - Legionella Risk Assessment,Planned Building Maintenance,
Wyre Council,http://opendatacommunities.org/doc/district-council/wyre,30/03/2023,People and Places,Support Services,135B,Lancashire County Council,21/03/2023,PE148163,-5555.74,0.00,Incorrect amount on invoice for professional fees in respect of service contracts July-September 2022,Planned Building Maintenance,
Wyre Council,http://opendatacommunities.org/doc/district-council/wyre,30/03/2023,People and Places,Cultural and Related Services,132A,Lancashire County Council,22/03/2023,PE148221,208.87,0.00,INS293881 Thornton Cleveleys Little Theatre  - Legionella Risk Assessment,Planned Building Maintenance,
Wyre Council,http://opendatacommunities.org/doc/district-council/wyre,30/03/2023,People and Places,Support Services,135B,M D Security,22/03/2023,PE148206,60.00,0.00,Civic Centre: Emergency light test for 03/23,Planned Building Maintenance,
Wyre Council,http://opendatacommunities.org/doc/district-council/wyre,30/03/2023,People and Places,Support Services,135B,M D Security,02/03/2023,PE147600,60.00,0.00,Civic Centre: Emergency light test for 02/23,Planned Building Maintenance,
Wyre Council,http://opendatacommunities.org/doc/district-council/wyre,30/03/2023,People and Places,Cultural and Related Services,132A,Total Fire Group Limited,27/03/2023,PE148300,795.00,0.00,Marine Hall - fire risk assessment,Planned Building Maintenance,
Wyre Council,http://opendatacommunities.org/doc/district-council/wyre,30/03/2023,People and Places,Cultural and Related Services,132A,Total Fire Group Limited,27/03/2023,PE148302,150.00,0.00,R16392 Mount Cottages Fire Risk Assessment,Planned Building Maintenance,
Wyre Council,http://opendatacommunities.org/doc/district-council/wyre,30/03/2023,People and Places,Cultural and Related Services,132A,Total Fire Group Limited,27/03/2023,PE148302,150.00,0.00,R16393 Mount Cottages Fire Risk Assessment,Planned Building Maintenance,
Wyre Council,http://opendatacommunities.org/doc/district-council/wyre,30/03/2023,People and Places,Cultural and Related Services,132A,Total Fire Group Limited,28/03/2023,PE148301,495.00,0.00,Mount Pavilion - fire risk assessment,Planned Building Maintenance,
Wyre Council,http://opendatacommunities.org/doc/district-council/wyre,30/03/2023,People and Places,Cultural and Related Services,132A,RENTOKIL INITIAL UK LTD,21/03/2023,PE147879,233.31,0.00,Sanitary product rental per contract,Planned Building Maintenance,
Wyre Council,http://opendatacommunities.org/doc/district-council/wyre,30/03/2023,People and Places,Cultural and Related Services,132A,RENTOKIL INITIAL UK LTD,21/03/2023,PE147879,20.13,0.00,Sanitary product rental per contract,Planned Building Maintenance,
Wyre Council,http://opendatacommunities.org/doc/district-council/wyre,30/03/2023,People and Places,Planning and Development Servs,132C,RENTOKIL INITIAL UK LTD,21/03/2023,PE147879,255.11,0.00,Sanitary product rental per contract,Planned Building Maintenance,
Wyre Council,http://opendatacommunities.org/doc/district-council/wyre,30/03/2023,People and Places,Planning and Development Servs,132C,RENTOKIL INITIAL UK LTD,21/03/2023,PE147879,229.28,0.00,Sanitary product rental per contract,Planned Building Maintenance,
Wyre Council,http://opendatacommunities.org/doc/district-council/wyre,30/03/2023,People and Places,Support Services,135B,RENTOKIL INITIAL UK LTD,21/03/2023,PE147879,669.19,0.00,Sanitary product rental per contract,Planned Building Maintenance,
Wyre Council,http://opendatacommunities.org/doc/district-council/wyre,30/03/2023,People and Places,Planning and Development Servs,132C,Ascot Doors (Service) Ltd,06/03/2023,PE147787,1216.00,0.00,Planned Preventative Maintenance - PPM Service and Inspection - Due August & February - Number of Visits 2 per year. Unit 1 PPM Service / Inspection and minor adjustments to: - 2 No Ascot A610 Electric Insulated Roller Shutter Doors 2 No Ascot A621,Planned Building Maintenance,
Wyre Council,http://opendatacommunities.org/doc/district-council/wyre,30/03/2023,People and Places,Environmental Services,132B,The Columbaria Company,14/03/2023,PE148050,341.50,0.00,REDACT,Plaque Inscriptions and Furniture,
Wyre Council,http://opendatacommunities.org/doc/district-council/wyre,30/03/2023,People and Places,Environmental Services,132B,The Columbaria Company,14/03/2023,PE148053,396.50,0.00,REDACT,Plaque Inscriptions and Furniture,
Wyre Council,http://opendatacommunities.org/doc/district-council/wyre,30/03/2023,People and Places,Environmental Services,132B,The Columbaria Company,14/03/2023,PE148038,197.00,0.00,REDACT,Plaque Inscriptions and Furniture,
Wyre Council,http://opendatacommunities.org/doc/district-council/wyre,30/03/2023,People and Places,Support Services,135B,GB  Sport & Leisure UK LTD,20/03/2023,PE148116,126.00,0.00,SP-08-032 Sit In Spring Rider Bottom Part Seat Support Bracket,Playground Equipment,
Wyre Council,http://opendatacommunities.org/doc/district-council/wyre,30/03/2023,People and Places,Support Services,135B,GB  Sport & Leisure UK LTD,20/03/2023,PE148116,25.00,0.00,Delivery,Playground Equipment,
Wyre Council,http://opendatacommunities.org/doc/district-council/wyre,30/03/2023,People and Places,Support Services,135B,GB  Sport & Leisure UK LTD,08/03/2023,PE147738,38.00,0.00,SP-36-111 Monohinge Gate Post Caps - yellow,Playground Equipment,
Wyre Council,http://opendatacommunities.org/doc/district-council/wyre,30/03/2023,People and Places,Support Services,135B,GB  Sport & Leisure UK LTD,08/03/2023,PE147738,156.00,0.00,"REC-SPARES 2,7m combi rope c/w M12 x 200mm long eyebolts at each end",Playground Equipment,
Wyre Council,http://opendatacommunities.org/doc/district-council/wyre,30/03/2023,People and Places,Support Services,135B,GB  Sport & Leisure UK LTD,08/03/2023,PE147738,192.00,0.00,SP-08-020 Ledon Spring Handle Bar - 700mm long c/w fittings for wide elephant spring rocker,Playground Equipment,
Wyre Council,http://opendatacommunities.org/doc/district-council/wyre,30/03/2023,People and Places,Support Services,135B,GB  Sport & Leisure UK LTD,08/03/2023,PE147738,125.00,0.00,IMPEX Import/Export admin Fee,Playground Equipment,
Wyre Council,http://opendatacommunities.org/doc/district-council/wyre,30/03/2023,People and Places,Support Services,135B,GB  Sport & Leisure UK LTD,08/03/2023,PE147738,142.10,0.00,Delivery,Playground Equipment,
Wyre Council,http://opendatacommunities.org/doc/district-council/wyre,30/03/2023,People and Places,Support Services,135B,GB  Sport & Leisure UK LTD,08/03/2023,PE147738,19.00,0.00,SP-43-002 Rubber Crumb - Black - Top - 25kgs,Playground Equipment,
Wyre Council,http://opendatacommunities.org/doc/district-council/wyre,30/03/2023,People and Places,Support Services,135B,GB  Sport & Leisure UK LTD,08/03/2023,PE147738,16.00,0.00,SP-43-002A Rubber Crumb - Black - Base - 25kgs,Playground Equipment,
Wyre Council,http://opendatacommunities.org/doc/district-council/wyre,30/03/2023,People and Places,Support Services,135B,GB  Sport & Leisure UK LTD,08/03/2023,PE147738,40.00,0.00,SP-05-032 Pendulum Seat Rubber Sleeve for 6mm Chain - 2m lengths,Playground Equipment,
Wyre Council,http://opendatacommunities.org/doc/district-council/wyre,30/03/2023,People and Places,Support Services,135B,GB  Sport & Leisure UK LTD,08/03/2023,PE147738,270.00,0.00,SP-36-029 Prosafe Gate Motor Only,Playground Equipment,
Wyre Council,http://opendatacommunities.org/doc/district-council/wyre,30/03/2023,People and Places,Support Services,135B,GB  Sport & Leisure UK LTD,08/03/2023,PE147738,565.00,0.00,SP-36-022A Monohinge Gate Complete Closer Set & Damper Kit - Left Hand Opens In - Gate A or D,Playground Equipment,
Wyre Council,http://opendatacommunities.org/doc/district-council/wyre,30/03/2023,Resources,Central Services to the Public,131C,Critiqom LTD,17/03/2023,RS148083,1360.69,0.00,Daily Bills,Postage,
Wyre Council,http://opendatacommunities.org/doc/district-council/wyre,30/03/2023,Resources,Central Services to the Public,131C,Critiqom LTD,17/03/2023,RS148082,329.26,0.00,Daily Bills,Postage,
Wyre Council,http://opendatacommunities.org/doc/district-council/wyre,30/03/2023,Resources,Central Services to the Public,131C,Critiqom LTD,17/03/2023,RS148082,5.94,0.00,Daily Bills - Energy Surcharge,Postage,
Wyre Council,http://opendatacommunities.org/doc/district-council/wyre,30/03/2023,Resources,Central Services to the Public,131C,Critiqom LTD,17/03/2023,RS148082,169.07,0.00,IQ post - Electoral,Postage,
Wyre Council,http://opendatacommunities.org/doc/district-council/wyre,30/03/2023,Resources,Central Services to the Public,131C,Critiqom LTD,17/03/2023,RS148082,3.05,0.00,IQ post - Electoral - Energy Surcharge,Postage,
Wyre Council,http://opendatacommunities.org/doc/district-council/wyre,30/03/2023,Resources,Support Services,135B,Critiqom LTD,17/03/2023,RS148082,1228.80,0.00,IQ post - Off Serv Admin,Postage,
Wyre Council,http://opendatacommunities.org/doc/district-council/wyre,30/03/2023,Resources,Support Services,135B,Critiqom LTD,17/03/2023,RS148082,49.48,0.00,IQ post - Off Serv Admin - Energy Surcharge,Postage,
Wyre Council,http://opendatacommunities.org/doc/district-council/wyre,30/03/2023,Resources,Support Services,135B,Critiqom LTD,17/03/2023,RS148083,364.49,0.00,Council Tax Reminders,Postage,
Wyre Council,http://opendatacommunities.org/doc/district-council/wyre,30/03/2023,Resources,Support Services,135B,Critiqom LTD,17/03/2023,RS148083,18.77,0.00,NNDR Reminders,Postage,
Wyre Council,http://opendatacommunities.org/doc/district-council/wyre,30/03/2023,Resources,Support Services,135B,Critiqom LTD,17/03/2023,RS148083,187.14,0.00,Council Tax Summons,Postage,
Wyre Council,http://opendatacommunities.org/doc/district-council/wyre,30/03/2023,Resources,Support Services,135B,Critiqom LTD,17/03/2023,RS148083,8.02,0.00,NNDR Summons,Postage,
Wyre Council,http://opendatacommunities.org/doc/district-council/wyre,30/03/2023,Resources,Support Services,135B,Critiqom LTD,17/03/2023,RS148082,2.13,0.00,IQ post - Recovery,Postage,
Wyre Council,http://opendatacommunities.org/doc/district-council/wyre,30/03/2023,Resources,Support Services,135B,Critiqom LTD,17/03/2023,RS148082,0.04,0.00,IQ post - Recovery - Energy Surcharge,Postage,
Wyre Council,http://opendatacommunities.org/doc/district-council/wyre,30/03/2023,Resources,Support Services,135B,Critiqom LTD,17/03/2023,RS148082,115.19,0.00,Ctax Reminders,Postage,
Wyre Council,http://opendatacommunities.org/doc/district-council/wyre,30/03/2023,Resources,Support Services,135B,Critiqom LTD,17/03/2023,RS148082,2.08,0.00,Ctax Reminders - Energy Surcharge,Postage,
Wyre Council,http://opendatacommunities.org/doc/district-council/wyre,30/03/2023,Resources,Support Services,135B,Critiqom LTD,17/03/2023,RS148082,2.96,0.00,NNDR Reminders,Postage,
Wyre Council,http://opendatacommunities.org/doc/district-council/wyre,30/03/2023,Resources,Support Services,135B,Critiqom LTD,17/03/2023,RS148082,0.05,0.00,NNDR Reminders - Energy Surcharge,Postage,
Wyre Council,http://opendatacommunities.org/doc/district-council/wyre,30/03/2023,Resources,Support Services,135B,Critiqom LTD,17/03/2023,RS148082,66.99,0.00,Ctax Summons,Postage,
Wyre Council,http://opendatacommunities.org/doc/district-council/wyre,30/03/2023,Resources,Support Services,135B,Critiqom LTD,17/03/2023,RS148082,1.21,0.00,Ctax Summons - Energy Surcharge,Postage,
Wyre Council,http://opendatacommunities.org/doc/district-council/wyre,30/03/2023,Resources,Support Services,135B,Critiqom LTD,17/03/2023,RS148082,2.32,0.00,NNDR Summons,Postage,
Wyre Council,http://opendatacommunities.org/doc/district-council/wyre,30/03/2023,Resources,Support Services,135B,Critiqom LTD,17/03/2023,RS148082,0.04,0.00,NNDR Summons - Energy Surcharge,Postage,
Wyre Council,http://opendatacommunities.org/doc/district-council/wyre,30/03/2023,Resources,Support Services,135B,Critiqom LTD,17/03/2023,RS148082,438.68,0.00,IQ Post - Planning,Postage,
Wyre Council,http://opendatacommunities.org/doc/district-council/wyre,30/03/2023,Resources,Support Services,135B,Critiqom LTD,17/03/2023,RS148082,7.92,0.00,IQ Post - Planning - Energy Surcharge,Postage,
Wyre Council,http://opendatacommunities.org/doc/district-council/wyre,30/03/2023,Resources,Housing General Fund,134A,Critiqom LTD,17/03/2023,RS148083,117.43,0.00,Benefit Notifications,Postage,
Wyre Council,http://opendatacommunities.org/doc/district-council/wyre,30/03/2023,Resources,Housing General Fund,134A,Critiqom LTD,17/03/2023,RS148082,27.70,0.00,Benefit Notifications,Postage,
Wyre Council,http://opendatacommunities.org/doc/district-council/wyre,30/03/2023,Resources,Housing General Fund,134A,Critiqom LTD,17/03/2023,RS148082,0.50,0.00,Benefit Notifications - Energy Surcharge,Postage,
Wyre Council,http://opendatacommunities.org/doc/district-council/wyre,30/03/2023,Resources,Support Services,135B,Critiqom LTD,17/03/2023,RS148082,806.14,0.00,IQ post - CC,Postage,
Wyre Council,http://opendatacommunities.org/doc/district-council/wyre,30/03/2023,Resources,Support Services,135B,Critiqom LTD,17/03/2023,RS148082,14.55,0.00,IQ post - CC - Energy Surcharge,Postage,
Wyre Council,http://opendatacommunities.org/doc/district-council/wyre,30/03/2023,Resources,Central Services to the Public,131C,Print Image Facilities LLP,20/03/2023,RS148172,3669.80,0.00,Wyre 2023 Poll Card postage - Balance of first issue  7875 poll cards,Postage,
Wyre Council,http://opendatacommunities.org/doc/district-council/wyre,30/03/2023,Resources,Central Services to the Public,131C,Print Image Facilities LLP,13/03/2023,RS147982,35321.09,0.00,"Wyre Council Elections 2023 Poll Card Postage - 78,144 poll cards  90% of overall postage",Postage,
Wyre Council,http://opendatacommunities.org/doc/district-council/wyre,30/03/2023,Resources,Support Services,135B,Amazon Business,01/03/2023,RS147497,200.00,0.00,Yearly business amazon prime membership fee.,Postage,
Wyre Council,http://opendatacommunities.org/doc/district-council/wyre,30/03/2023,People and Places,Corporate and Democratic Core,131A,Critiqom LTD,28/03/2023,PE148418,10260.00,0.00,60k Wyre Voice Publication,Printing,
Wyre Council,http://opendatacommunities.org/doc/district-council/wyre,30/03/2023,People and Places,Central Services to the Public,131C,Critiqom LTD,29/03/2023,PE148419,1470.00,0.00,60k Elections A5 Wyre Voice Insert,Printing,
Wyre Council,http://opendatacommunities.org/doc/district-council/wyre,30/03/2023,Finance,Housing General Fund,134A,,21/03/2023,WPST00100164,1303.19,0.00,homes for ukraine - 15/11,Private Contractors,
Wyre Council,http://opendatacommunities.org/doc/district-council/wyre,30/03/2023,Finance,Housing General Fund,134A,,03/03/2023,WPST00098143,1300.00,0.00,Ukraine Scheme Payments,Private Contractors,
Wyre Council,http://opendatacommunities.org/doc/district-council/wyre,30/03/2023,Finance,Housing General Fund,134A,,15/03/2023,WPST00099594,11183.87,0.00,Homes for Ukraine,Private Contractors,
Wyre Council,http://opendatacommunities.org/doc/district-council/wyre,30/03/2023,People and Places,Public Transport,133G,Wyre Marine Services,23/03/2023,PE148229,8685.00,0.00,"Fleetwood - Knott End Ferry Service. Schedule of payments  12 April 2022             - 11 May 2022                        �,8685.00 12 May 2022             - 11 June 2022                       8,685.00 12 June 2022            - 11 July 2022",Private Contractors,
Wyre Council,http://opendatacommunities.org/doc/district-council/wyre,30/03/2023,Resources,Housing General Fund,134A,M J Wilkinson,20/03/2023,PE148015,830.70,0.00,"4 North Albion Street, Fleetwood, Rent + Council tax",Private Contractors,
Wyre Council,http://opendatacommunities.org/doc/district-council/wyre,30/03/2023,Resources,Housing General Fund,134A,Fylde Coast YMCA,30/03/2023,RS148499,12000.00,0.00,Home for Ukraine subs - VAT recode,Private Contractors,
Wyre Council,http://opendatacommunities.org/doc/district-council/wyre,30/03/2023,Resources,Housing General Fund,134A,Fylde Coast YMCA,30/03/2023,RS148493,-12000.00,0.00,Home for Ukraine membership subs,Private Contractors,
Wyre Council,http://opendatacommunities.org/doc/district-council/wyre,30/03/2023,Resources,Housing General Fund,134A,Fylde Coast YMCA,27/03/2023,RS148259,12000.00,0.00,Home for Ukraine 48 Membership subscriptions,Private Contractors,
Wyre Council,http://opendatacommunities.org/doc/district-council/wyre,30/03/2023,Resources,Housing General Fund,134A,Fylde Coast YMCA,23/03/2023,RS148259,-12000.00,0.00,Home for Ukraine 48 Membership subscriptions,Private Contractors,
Wyre Council,http://opendatacommunities.org/doc/district-council/wyre,30/03/2023,Resources,Housing General Fund,134A,Fylde Coast YMCA,23/03/2023,RS148272,12000.00,0.00,Home for Ukraine 48 Membership subscriptions,Private Contractors,
Wyre Council,http://opendatacommunities.org/doc/district-council/wyre,30/03/2023,Resources,Housing General Fund,134A,Mapleleaf Letting Centre LTD,13/03/2023,RS148000,700.00,0.00,"Asylum support 3 hapton street, Thornton rent for period 23rd feb - 22nd march 2023",Private Contractors,
Wyre Council,http://opendatacommunities.org/doc/district-council/wyre,30/03/2023,People and Places,Parking Services,133F,NSL Services Group,21/03/2023,PE148167,3509.22,0.00,Variable Fee - Car Park Enforcement NSL Feb 2023,Private Contractors,
Wyre Council,http://opendatacommunities.org/doc/district-council/wyre,30/03/2023,People and Places,Parking Services,133F,CHIPSIDE LTD,22/03/2023,PE148183,757.92,0.00,Provision of notice processing services as agreed. Period Feb 23,Private Contractors,
Wyre Council,http://opendatacommunities.org/doc/district-council/wyre,30/03/2023,People and Places,Parking Services,133F,CHIPSIDE LTD,22/03/2023,PE148077,49.10,0.00,Wyre Council parking - Bank Transaction Fees 1 April 2022 - 31 March 2023,Private Contractors,
Wyre Council,http://opendatacommunities.org/doc/district-council/wyre,30/03/2023,People and Places,Parking Services,133F,CHIPSIDE LTD,06/03/2023,PE147684,838.17,0.00,Provision of notice processing services Jan 23,Private Contractors,
Wyre Council,http://opendatacommunities.org/doc/district-council/wyre,30/03/2023,People and Places,Parking Services,133F,CHIPSIDE LTD,06/03/2023,PE147683,667.12,0.00,"Ongoing technical costs as agreed between Chipside and Lancs Dist Councils for the parking svs TMA 2004 project. Technical Support, managed hosted servers breakdown as published by Mr Peter Stobbs.  Costs agreed  17/09/22 to 16/09/23",Private Contractors,
Wyre Council,http://opendatacommunities.org/doc/district-council/wyre,30/03/2023,People and Places,Parking Services,133F,CHIPSIDE LTD,08/03/2023,PE147836,15.00,0.00,Provide 2 no 500mb SiMS for Wyre handheld units 1 April 2022 - 31 March 2023,Private Contractors,
Wyre Council,http://opendatacommunities.org/doc/district-council/wyre,30/03/2023,Resources,Parking Services,133F,Traffic Enforcement Centre,10/03/2023,RS147922,1000.00,0.00,Payment into Wyre Bourough Council account with TEC to enable enforcement to start.,Private Contractors,
Wyre Council,http://opendatacommunities.org/doc/district-council/wyre,30/03/2023,People and Places,Environmental Services,132B,BGEN Ltd,23/03/2023,PE148258,2109.17,0.00,"FAO JamieAspinall@b-gen.co.uk BGEN. Formerly Boulting Ltd. Firecrest Court, Centre Park, Warrington WA1 1RG.Investigate Marine Hall pumping station. Pump number 2 tripping and pump number 1 not working in automatic mode as per your quote Ref Q05629 Revi",Private Contractors,
Wyre Council,http://opendatacommunities.org/doc/district-council/wyre,30/03/2023,People and Places,Cultural and Related Services,132A,J P LENNARD LTD,24/03/2023,PE148313,3769.86,0.00,"order for equipment to support the HAF programme at Fylde Coast YMCA. Please can the swimming pool related items be sent to Fleetwood Leisure centre, The Esplanade, Fleetwood, FY7 6HF and the other items be sent to Thornton Leisure Centre, Victoria Road E",Project Costs,
Wyre Council,http://opendatacommunities.org/doc/district-council/wyre,30/03/2023,People and Places,Cultural and Related Services,132A,J P LENNARD LTD,24/03/2023,PE148294,2929.90,0.00,"order for equipment to support the HAF programme at Fylde Coast YMCA. Please can the swimming pool related items be sent to Fleetwood Leisure centre, The Esplanade, Fleetwood, FY7 6HF and the other items be sent to Thornton Leisure Centre, Victoria Road E",Project Costs,
Wyre Council,http://opendatacommunities.org/doc/district-council/wyre,30/03/2023,People and Places,Cultural and Related Services,132A,J P LENNARD LTD,28/03/2023,PE148384,89.21,0.00,"order for equipment to support the HAF programme at Fylde Coast YMCA. Please can the swimming pool related items be sent to Fleetwood Leisure centre, The Esplanade, Fleetwood, FY7 6HF and the other items be sent to Thornton Leisure Centre, Victoria Road E",Project Costs,
Wyre Council,http://opendatacommunities.org/doc/district-council/wyre,30/03/2023,People and Places,Cultural and Related Services,132A,J P LENNARD LTD,28/03/2023,PE148383,1028.96,0.00,"order for equipment to support the HAF programme at Fylde Coast YMCA. Please can the swimming pool related items be sent to Fleetwood Leisure centre, The Esplanade, Fleetwood, FY7 6HF and the other items be sent to Thornton Leisure Centre, Victoria Road E",Project Costs,
Wyre Council,http://opendatacommunities.org/doc/district-council/wyre,30/03/2023,People and Places,Cultural and Related Services,132A,Active Lancashire LTD,23/03/2023,PE148266,502.75,0.00,ESF WPHC output allocation ; Jul-Dec 2022 for the Business Health Matters Programme,Project Costs,
Wyre Council,http://opendatacommunities.org/doc/district-council/wyre,30/03/2023,People and Places,Cultural and Related Services,132A,Cleveleys Community Church,21/03/2023,PE148200,520.00,0.00,"Room hire for the gentle exercise sessions delivered by Gemma Shaw, Monday 10.30-11.30am at 20 per week from 12th September for 6 months. 520 in total.",Project Costs,
Wyre Council,http://opendatacommunities.org/doc/district-council/wyre,30/03/2023,People and Places,Cultural and Related Services,132A,Cleveleys Community Church,21/03/2023,PE148207,480.00,0.00,Room hire for Creative Wellbeing project at Cleveleys Community Centre8 X weekly sessions running Thursday`s 1pm - 4pm from 2nd March -to 20th April 2023 inclusiveFee - 60 X 8 = 480,Project Costs,
Wyre Council,http://opendatacommunities.org/doc/district-council/wyre,30/03/2023,People and Places,Cultural and Related Services,132A,Tina Warren,23/03/2023,PE148264,675.00,0.00,Fee for 3 X Art Buffet Sessions at Market House Studios - 225 per sessionTotal payable = 675,Project Costs,
Wyre Council,http://opendatacommunities.org/doc/district-council/wyre,30/03/2023,People and Places,Cultural and Related Services,132A,Tina Warren,23/03/2023,PE148265,1320.00,0.00,Payment for creative sessions at Cleveleys Community Centre as part of the Creative Wellbeing project starting 2nd March 2023,Project Costs,
Wyre Council,http://opendatacommunities.org/doc/district-council/wyre,30/03/2023,People and Places,Cultural and Related Services,132A,Fleetwood Town Community Trust,28/03/2023,PE148372,1000.00,0.00,Training for staff to deliver activity sessions for older people,Project Costs,
Wyre Council,http://opendatacommunities.org/doc/district-council/wyre,30/03/2023,People and Places,Planning and Development Servs,132C,Lancashire And North West Magazine,13/03/2023,PE148014,895.00,0.00,Fleetwood Market Feature,Promotions - General,
Wyre Council,http://opendatacommunities.org/doc/district-council/wyre,30/03/2023,Resources,Environmental Services,132B,Preston City Council,28/03/2023,RS148417,142.50,0.00,3000 x Dog ban A5 2pp leaflets 150gsm silk carbon neutral,Promotions - General,
Wyre Council,http://opendatacommunities.org/doc/district-council/wyre,30/03/2023,Resources,Cultural and Related Services,132A,Preston City Council,28/03/2023,RS148417,45.00,0.00,1000 x YMCA Your Move Low Impact Classes A5 1pp,Promotions - General,
Wyre Council,http://opendatacommunities.org/doc/district-council/wyre,30/03/2023,People and Places,Planning and Development Servs,132C,Northern Print Distribution,21/03/2023,PE147852,550.00,0.00,Bags of Info for the Kids direct mail drop Fleetwood Market,Promotions - General,
Wyre Council,http://opendatacommunities.org/doc/district-council/wyre,30/03/2023,People and Places,Support Services,135B,Arco LTD,08/03/2023,PE147872,267.43,0.00,Clothing,Protective Clothing,
Wyre Council,http://opendatacommunities.org/doc/district-council/wyre,30/03/2023,People and Places,Support Services,135B,Arco LTD,22/03/2023,PE148210,293.85,0.00,ClothingEngineers Ken White,Protective Clothing,
Wyre Council,http://opendatacommunities.org/doc/district-council/wyre,30/03/2023,People and Places,Support Services,135B,Arco LTD,22/03/2023,PE148239,136.72,0.00,ClothingEngineers Ken White,Protective Clothing,
Wyre Council,http://opendatacommunities.org/doc/district-council/wyre,30/03/2023,People and Places,Support Services,135B,Arco LTD,29/03/2023,PE148431,119.63,0.00,ClothingEngineers Ken White,Protective Clothing,
Wyre Council,http://opendatacommunities.org/doc/district-council/wyre,30/03/2023,People and Places,Support Services,135B,St Gobain Building Distribution LTD,22/03/2023,PE148171,127.65,0.00,Clothing  Keith Urwin,Protective Clothing,
Wyre Council,http://opendatacommunities.org/doc/district-council/wyre,30/03/2023,People and Places,Environmental Services,132B,Key Engineering & Hygiene Supplies LTD,14/03/2023,PE148040,17.60,0.00,"SUPPLY AND DELIVER AS PER QUOTE 16454PU GLOVESDELIVERY TO WYRE COUNCIL, COPSE ROAD DEPOT, COPSE ROAD, FLEETWOOD, FY7 6RP.",Protective Clothing,
Wyre Council,http://opendatacommunities.org/doc/district-council/wyre,30/03/2023,People and Places,Support Services,135B,Key Engineering & Hygiene Supplies LTD,14/03/2023,PE148040,17.60,0.00,"SUPPLY AND DELIVER AS PER QUOTE 16454PU GLOVESDELIVERY TO WYRE COUNCIL, COPSE ROAD DEPOT, COPSE ROAD, FLEETWOOD, FY7 6RP.",Protective Clothing,
Wyre Council,http://opendatacommunities.org/doc/district-council/wyre,30/03/2023,People and Places,Support Services,135B,Malcolm McCulloch & Sons LTD,30/03/2023,PE148504,134.00,0.00,2 x Winter coveralls @ 67.00 ech,Protective Clothing,
Wyre Council,http://opendatacommunities.org/doc/district-council/wyre,30/03/2023,People and Places,Support Services,135B,Malcolm McCulloch & Sons LTD,29/03/2023,PE148466,67.00,0.00,Winter Coveralls,Protective Clothing,
Wyre Council,http://opendatacommunities.org/doc/district-council/wyre,30/03/2023,People and Places,Support Services,135B,Balmers GM LTD,17/03/2023,PE148108,158.32,0.00,Hi vis jacket price increase offset via credit,Protective Clothing,
Wyre Council,http://opendatacommunities.org/doc/district-council/wyre,30/03/2023,People and Places,Support Services,135B,Balmers GM LTD,17/03/2023,PE148107,316.65,0.00,high vis jacket price increase offset via credit,Protective Clothing,
Wyre Council,http://opendatacommunities.org/doc/district-council/wyre,30/03/2023,People and Places,Support Services,135B,Balmers GM LTD,02/03/2023,PE147681,153.37,0.00,"FAO Steve PulmanBalmers Stihl MS Protect Cut high visibility jacket1 x LARGEPlease also put a separate order on for another of these jackets in Large.Price is 189.99 each including VAT.Delivery to Wyre Council, FAO Roger Brocklebank",Protective Clothing,
Wyre Council,http://opendatacommunities.org/doc/district-council/wyre,30/03/2023,People and Places,Support Services,135B,Balmers GM LTD,02/03/2023,PE147682,306.74,0.00,"FAO Steve PulmanBalmers Stihl MS Protect Cut high visibility jacket1 x XL1 x XXLPlease also put a separate order on for another of these jackets in Large.Price is 189.99 each including VAT.Delivery to Wyre Council, FAO Roger Brock",Protective Clothing,
Wyre Council,http://opendatacommunities.org/doc/district-council/wyre,30/03/2023,People and Places,Support Services,135B,Amazon Business,01/03/2023,PE147663,31.99,0.00,Boots,Protective Clothing,
Wyre Council,http://opendatacommunities.org/doc/district-council/wyre,30/03/2023,People and Places,Support Services,135B,Amazon Business,20/03/2023,PE148162,34.08,0.00,Boots Paul Reilly,Protective Clothing,
Wyre Council,http://opendatacommunities.org/doc/district-council/wyre,30/03/2023,People and Places,Environmental Services,132B,Key Engineering & Hygiene Supplies LTD,13/03/2023,PE148013,883.00,0.00,"Supply and deliver 50 boxes of BL090C1 of blue refuse sacks @ 16.91 per box of 200Delivery to Wyre Council, Copse Road Depot, Copse Road, Fleetwood, FY7 6RP","Provision of Bins, Boxes and Sacks",
Wyre Council,http://opendatacommunities.org/doc/district-council/wyre,30/03/2023,People and Places,Environmental Services,132B,Veolia ES (UK) LTD,16/03/2023,PE148079,4584.66,0.00,Bin delivery,"Provision of Bins, Boxes and Sacks",
Wyre Council,http://opendatacommunities.org/doc/district-council/wyre,30/03/2023,People and Places,Environmental Services,132B,Veolia ES (UK) LTD,01/03/2023,PE147668,4584.66,0.00,Bin delivery,"Provision of Bins, Boxes and Sacks",
Wyre Council,http://opendatacommunities.org/doc/district-council/wyre,30/03/2023,People and Places,Environmental Services,132B,Amazon Business,06/03/2023,PE147736,25.83,0.00,"10x FIBC New Bulk Bags 1 Tonne Ton Builders Garden Waste Jumbo Storage SackDelivery to Wyre Council, Copse Road Depot, Fleetwood","Provision of Bins, Boxes and Sacks",
Wyre Council,http://opendatacommunities.org/doc/district-council/wyre,30/03/2023,Resources,Support Services,135B,Preston City Council,06/03/2023,RS147731,96.98,0.00,Garstang TIC door/window vinyl posters 3 x 1650x800mm 1pp full colour on 200 mic poly prop 2 x 1760x960mm 1pp full colour on 200 mic poly prop Delivered to Civic Centre Poulton for Tuesday 20 Dec,Public Relations,
Wyre Council,http://opendatacommunities.org/doc/district-council/wyre,30/03/2023,People and Places,Cultural and Related Services,132A,Nisbetts Next Day Catering Equipment,20/03/2023,PE148119,849.90,0.00,Bolero faux leather dining Chair Black (Box 2),Purchase Furniture,
Wyre Council,http://opendatacommunities.org/doc/district-council/wyre,30/03/2023,People and Places,Support Services,135B,Steve Wear Blinds,06/03/2023,PE147756,250.00,0.00,Vertical Blinds fitted in room 34,Purchase Furniture,
Wyre Council,http://opendatacommunities.org/doc/district-council/wyre,30/03/2023,People and Places,Support Services,135B,Steve Wear Blinds,06/03/2023,PE147755,190.00,0.00,Vertical Blinds fitted in room 61/62,Purchase Furniture,
Wyre Council,http://opendatacommunities.org/doc/district-council/wyre,30/03/2023,People and Places,Support Services,135B,Steve Wear Blinds,06/03/2023,PE147754,110.00,0.00,Vertical Blinds fitted in room 143,Purchase Furniture,
Wyre Council,http://opendatacommunities.org/doc/district-council/wyre,30/03/2023,People and Places,Support Services,135B,LABC,21/03/2023,PE148177,2575.81,0.00,LABC Annual Membership fee,Purchase of Publications,
Wyre Council,http://opendatacommunities.org/doc/district-council/wyre,30/03/2023,People and Places,Support Services,135B,RH Environmental LTD,24/03/2023,PE148328,726.00,0.00,Annual Subscription to The Noise App @ 726/YearPeriod Covered 24/05/23 - 23/05/24,Purchase of Publications,
Wyre Council,http://opendatacommunities.org/doc/district-council/wyre,30/03/2023,People and Places,Support Services,135B,RH Environmental LTD,24/03/2023,PE148328,3822.00,0.00,RIAMS Subscription @   3822/YearPeriod Covered 01/04/23 - 31/03/24,Purchase of Publications,
Wyre Council,http://opendatacommunities.org/doc/district-council/wyre,30/03/2023,People and Places,Support Services,135B,RH Environmental LTD,24/03/2023,PE148328,150.00,0.00,Subscription to CPD facility @ 150/YearPeriod Covered 01/04/23 - 31/03/24,Purchase of Publications,
Wyre Council,http://opendatacommunities.org/doc/district-council/wyre,30/03/2023,People and Places,Support Services,135B,RH Environmental LTD,24/03/2023,PE148328,150.00,0.00,Subscription to Formatted Notices @ 150/YearPeriod Covered 01/04/23 - 31/03/24 Making a Total Cost of 4848 + VAT,Purchase of Publications,
Wyre Council,http://opendatacommunities.org/doc/district-council/wyre,30/03/2023,Resources,Support Services,135B,Croner-i Limited T/A HR-Inform,15/03/2023,RS147391,567.00,0.00,HR Inform Subscription,Purchase of Publications,
Wyre Council,http://opendatacommunities.org/doc/district-council/wyre,30/03/2023,People and Places,Support Services,135B,St Gobain Building Distribution LTD,22/03/2023,PE148170,75.00,0.00,Makita Grinder,Purchase of Tools or Equipment,
Wyre Council,http://opendatacommunities.org/doc/district-council/wyre,30/03/2023,People and Places,Planning and Development Servs,132C,Key Engineering & Hygiene Supplies LTD,21/03/2023,PE148141,30.78,0.00,Hi-Viz vests overprinted `Fire Warden`,Purchase of Tools or Equipment,
Wyre Council,http://opendatacommunities.org/doc/district-council/wyre,30/03/2023,People and Places,Support Services,135B,Lyreco UK LTD,23/03/2023,PE147697,564.00,0.00,"Offset via PE148262 Supply 4 boxes of A4 lyreco white paper, code 157796 at 5.40 per ream (5 reams in a box)   Delivery to Wyre Council, Copse Road Depot, Fleetwood, FY7 6RP",Purchase of Tools or Equipment,
Wyre Council,http://opendatacommunities.org/doc/district-council/wyre,30/03/2023,People and Places,Cultural and Related Services,132A,Nisbetts Next Day Catering Equipment,07/03/2023,PE147832,59.99,0.00,FO18 - Folding Step Stool 2 Tread,Purchase of Tools or Equipment,
Wyre Council,http://opendatacommunities.org/doc/district-council/wyre,30/03/2023,People and Places,Support Services,135B,Balmers GM LTD,21/03/2023,PE148165,4075.00,0.00,"FAO Steve   To Supply  Qty 5 x Husqvarna LB553SQe walk behind pedestrian rotary mowers  Net cost per unit 815 + Vat  Must be Delivered in April 2023  Delivery to Wyre Council, Copse Road Depot, Copse Road, Fleetwood, Lancashire, FY7 6RP",Purchase of Tools or Equipment,
Wyre Council,http://opendatacommunities.org/doc/district-council/wyre,30/03/2023,People and Places,Support Services,135B,Cheshire Turf Machinery LTD,27/03/2023,PE148345,2831.66,0.00,HUSQ BAT B/PACK BLOWER 1 NS 405.00 405.00HQ520IHD70 HUSQVARNA BAT H/CUTTER 1 NS 330.00 330.00HQBLI950X HUSQ BATTERY B/PACK 1 NS 860.00 860.00HQBLI200X HUSQVARNA 36V BATTERY 2 NS 155.00 310.00HQLC551IV HUSQVARNA 51CM BAT MOW 1 NS 885.00 885.00HQ5,Purchase of Tools or Equipment,
Wyre Council,http://opendatacommunities.org/doc/district-council/wyre,30/03/2023,Resources,Housing General Fund,134A,VODAFONE LIMITED,24/03/2023,RS148035,24.00,0.00,Mobile Phone Charges for February 2023,Purchase of Tools or Equipment,
Wyre Council,http://opendatacommunities.org/doc/district-council/wyre,30/03/2023,Resources,Cultural and Related Services,132A,VODAFONE LIMITED,24/03/2023,RS148035,12.00,0.00,Mobile Phone Charges for February 2023,Purchase of Tools or Equipment,
Wyre Council,http://opendatacommunities.org/doc/district-council/wyre,30/03/2023,Resources,Support Services,135B,Amazon Business,06/03/2023,RS146903,22.49,0.00,"Amazon Brand - Umi Laser Measure, 100M/328Ft Laser Tape Measure, Portable IP54 Laser Measure Device with 2 Bubble Levels, 2mm Accuracy,Large Backlit LCD Screen, Mute Button",Purchase of Tools or Equipment,
Wyre Council,http://opendatacommunities.org/doc/district-council/wyre,30/03/2023,Resources,Support Services,135B,Amazon Business,06/03/2023,RS147775,22.49,0.00,"33` Fiberglass Electrical Connectable Fish Tape Pull Kit, Cable Rod Set with Hook and Hole Kit in Transparent Tube, Wire Running Kit Wall Cable Rod Pull Push Tool (Blue, 10Rods x 1M)",Purchase of Tools or Equipment,
Wyre Council,http://opendatacommunities.org/doc/district-council/wyre,30/03/2023,People and Places,Cultural and Related Services,132A,Amazon Business,21/03/2023,PE148161,128.33,0.00,Leaflet racks for Garstang library,Purchase of Tools or Equipment,
Wyre Council,http://opendatacommunities.org/doc/district-council/wyre,30/03/2023,People and Places,Support Services,135B,Amazon Business,22/03/2023,PE148211,69.99,0.00,Radiator Memorial Park Requested by Roger Brocklebank,Purchase of Tools or Equipment,
Wyre Council,http://opendatacommunities.org/doc/district-council/wyre,30/03/2023,People and Places,Support Services,135B,Amazon Business,28/03/2023,PE148368,15.34,0.00,Jerry can Gareth Bates,Purchase of Tools or Equipment,
Wyre Council,http://opendatacommunities.org/doc/district-council/wyre,30/03/2023,People and Places,Cultural and Related Services,132A,J & J C Barton,06/03/2023,PE147771,4500.00,0.00,1 x Tramper Mobility scooter,Purchase of Tools or Equipment,
Wyre Council,http://opendatacommunities.org/doc/district-council/wyre,30/03/2023,People and Places,Cultural and Related Services,132A,QUBICAAMF UK Ltd,22/03/2023,PE148193,8355.00,0.00,"EZ Touch Lane Machine, 220V CE - European Edition. PLease deliver to Thornton YMCA, Victoria Road East, Thornton Cleveleys, FY5 3SX",Purchase of Tools or Equipment,
Wyre Council,http://opendatacommunities.org/doc/district-council/wyre,30/03/2023,People and Places,Cultural and Related Services,132A,John Wilson Productions Ltd,22/03/2023,PE148080,5600.00,0.00,Upbeat Beatles 03/03/23 ticket sales,Refund of Ticket Sales to Ext Promoters,
Wyre Council,http://opendatacommunities.org/doc/district-council/wyre,30/03/2023,People and Places,Cultural and Related Services,132A,John Wilson Productions Ltd,21/03/2023,PE148081,5038.34,0.00,Bon Jovi experience 04/03/23 ticket sales,Refund of Ticket Sales to Ext Promoters,
Wyre Council,http://opendatacommunities.org/doc/district-council/wyre,30/03/2023,People and Places,Cultural and Related Services,132A,THE WINDMILL PLAYERS,28/03/2023,PE148283,4990.00,0.00,Ladies Down Under Ticket Sales,Refund of Ticket Sales to Ext Promoters,
Wyre Council,http://opendatacommunities.org/doc/district-council/wyre,30/03/2023,People and Places,Cultural and Related Services,132A,Last Choir Singing Community Foundation,28/03/2023,PE148421,2614.00,0.00,Ticket Sales,Refund of Ticket Sales to Ext Promoters,
Wyre Council,http://opendatacommunities.org/doc/district-council/wyre,30/03/2023,People and Places,Planning and Development Servs,132C,Suez Recycling And Recovery UK LTD,06/03/2023,PE147735,1120.29,0.00,waste removal market suez June 22 to March 23,Refuse Collection,
Wyre Council,http://opendatacommunities.org/doc/district-council/wyre,30/03/2023,People and Places,Environmental Services,132B,Veolia ES (UK) LTD,01/03/2023,PE147668,178535.32,0.00,Domestic Waste Management Collection Contract 2022/23,Refuse Collection Contract,
Wyre Council,http://opendatacommunities.org/doc/district-council/wyre,30/03/2023,People and Places,Environmental Services,132B,Veolia ES (UK) LTD,01/03/2023,PE147668,1664.35,0.00,Pension pass through,Refuse Collection Contract,
Wyre Council,http://opendatacommunities.org/doc/district-council/wyre,30/03/2023,People and Places,Environmental Services,132B,Veolia ES (UK) LTD,16/03/2023,PE148079,178535.32,0.00,Domestic Waste Management Collection Contract 2022/23,Refuse Collection Contract,
Wyre Council,http://opendatacommunities.org/doc/district-council/wyre,30/03/2023,People and Places,Environmental Services,132B,Veolia ES (UK) LTD,16/03/2023,PE148079,1472.68,0.00,Pension pass through,Refuse Collection Contract,
Wyre Council,http://opendatacommunities.org/doc/district-council/wyre,30/03/2023,People and Places,Environmental Services,132B,Calico Enterprise,16/03/2023,PE148059,2250.00,0.00,Bulky Matters Contract Calico 2022/23,Refuse Collection Contract,
Wyre Council,http://opendatacommunities.org/doc/district-council/wyre,30/03/2023,People and Places,Environmental Services,132B,Calico Enterprise,21/03/2023,PE148113,2335.97,0.00,Bulky Matters Contract Calico 2022/23,Refuse Collection Contract,
Wyre Council,http://opendatacommunities.org/doc/district-council/wyre,30/03/2023,People and Places,Environmental Services,132B,Calico Enterprise,16/03/2023,PE148057,2250.00,0.00,Bulky Matters Contract Calico 2022/23,Refuse Collection Contract,
Wyre Council,http://opendatacommunities.org/doc/district-council/wyre,30/03/2023,People and Places,Environmental Services,132B,Calico Enterprise,16/03/2023,PE148064,2433.30,0.00,Bulky Matters Contract Calico 2022/23,Refuse Collection Contract,
Wyre Council,http://opendatacommunities.org/doc/district-council/wyre,30/03/2023,People and Places,Environmental Services,132B,Calico Enterprise,16/03/2023,PE148063,1946.64,0.00,Bulky Matters Contract Calico 2022/23,Refuse Collection Contract,
Wyre Council,http://opendatacommunities.org/doc/district-council/wyre,30/03/2023,People and Places,Environmental Services,132B,Calico Enterprise,16/03/2023,PE148062,10462.89,0.00,Bulky Matters Contract Calico 2022/23,Refuse Collection Contract,
Wyre Council,http://opendatacommunities.org/doc/district-council/wyre,30/03/2023,People and Places,Environmental Services,132B,Calico Enterprise,16/03/2023,PE148062,2250.00,0.00,Bulky Matters Contract Calico 2022/23,Refuse Collection Contract,
Wyre Council,http://opendatacommunities.org/doc/district-council/wyre,30/03/2023,People and Places,Environmental Services,132B,Calico Enterprise,16/03/2023,PE148061,1849.33,0.00,Bulky Matters Contract Calico 2022/23,Refuse Collection Contract,
Wyre Council,http://opendatacommunities.org/doc/district-council/wyre,30/03/2023,People and Places,Environmental Services,132B,Calico Enterprise,16/03/2023,PE148057,10462.89,0.00,Bulky Matters Contract Calico 2022/23,Refuse Collection Contract,
Wyre Council,http://opendatacommunities.org/doc/district-council/wyre,30/03/2023,People and Places,Environmental Services,132B,Calico Enterprise,16/03/2023,PE148065,10462.89,0.00,Bulky Matters Contract Calico 2022/23,Refuse Collection Contract,
Wyre Council,http://opendatacommunities.org/doc/district-council/wyre,30/03/2023,People and Places,Environmental Services,132B,Calico Enterprise,16/03/2023,PE148065,2250.00,0.00,Bulky Matters Contract Calico 2022/23,Refuse Collection Contract,
Wyre Council,http://opendatacommunities.org/doc/district-council/wyre,30/03/2023,People and Places,Environmental Services,132B,Calico Enterprise,16/03/2023,PE148067,1946.64,0.00,Bulky Matters Contract Calico 2022/23,Refuse Collection Contract,
Wyre Council,http://opendatacommunities.org/doc/district-council/wyre,30/03/2023,People and Places,Environmental Services,132B,Calico Enterprise,16/03/2023,PE148058,1946.64,0.00,Bulky Matters Contract Calico 2022/23,Refuse Collection Contract,
Wyre Council,http://opendatacommunities.org/doc/district-council/wyre,30/03/2023,People and Places,Environmental Services,132B,Calico Enterprise,16/03/2023,PE148060,1946.64,0.00,Bulky Matters Contract Calico 2022/23,Refuse Collection Contract,
Wyre Council,http://opendatacommunities.org/doc/district-council/wyre,30/03/2023,People and Places,Environmental Services,132B,Calico Enterprise,16/03/2023,PE148059,10462.89,0.00,Bulky Matters Contract Calico 2022/23,Refuse Collection Contract,
Wyre Council,http://opendatacommunities.org/doc/district-council/wyre,30/03/2023,People and Places,Environmental Services,132B,Robert Pinkus Property Management LTD,15/03/2023,PE147638,200.00,0.00,Garstang - Park Hill Rd WC`s: 25/03/23 to 23/09/23 qtly svc charge,Rents,
Wyre Council,http://opendatacommunities.org/doc/district-council/wyre,30/03/2023,People and Places,Cultural and Related Services,132A,Robert Pinkus Property Management LTD,15/03/2023,PE147637,2645.48,0.00,"Garstang Park Hill Road, Unit 1 TIC: 25/03/23 to 31/05/23 rent",Rents,
Wyre Council,http://opendatacommunities.org/doc/district-council/wyre,30/03/2023,People and Places,Cultural and Related Services,132A,Robert Pinkus Property Management LTD,15/03/2023,PE147637,327.89,0.00,"Garstang Park Hill Road, Unit 1 TIC: 25/03/23 to 31/05/23 service charge",Rents,
Wyre Council,http://opendatacommunities.org/doc/district-council/wyre,30/03/2023,People and Places,Cultural and Related Services,132A,EAS Electrical Mechanical,03/03/2023,PE147712,559.86,0.00,Kite Club: hire of industrial dehumidifiers as requested via WBC. Delivered and collected via EAS,Responsive Building Maintenance,
Wyre Council,http://opendatacommunities.org/doc/district-council/wyre,30/03/2023,People and Places,Cultural and Related Services,132A,EAS Electrical Mechanical,28/03/2023,PE148375,39.00,0.00,Labour and Trainee. Walked round the Mount to find green pole only to find all cables and adaptable box had disappeared.,Responsive Building Maintenance,
Wyre Council,http://opendatacommunities.org/doc/district-council/wyre,30/03/2023,People and Places,Cultural and Related Services,132A,EAS Electrical Mechanical,28/03/2023,PE148415,56.10,0.00,Reattach toilet handle and replace damaged toilet handle,Responsive Building Maintenance,
Wyre Council,http://opendatacommunities.org/doc/district-council/wyre,30/03/2023,People and Places,Cultural and Related Services,132A,EAS Electrical Mechanical,28/03/2023,PE148378,61.23,0.00,Investigate fault on toilet in gents. Remove and replace faulty inlet and test.,Responsive Building Maintenance,
Wyre Council,http://opendatacommunities.org/doc/district-council/wyre,30/03/2023,People and Places,Support Services,135B,EAS Electrical Mechanical,28/03/2023,PE148374,286.79,0.00,Instalation of digital clock via existing kitchen circuit. Installed timeclock for water cooler.,Responsive Building Maintenance,
Wyre Council,http://opendatacommunities.org/doc/district-council/wyre,30/03/2023,People and Places,Support Services,135B,EAS Electrical Mechanical,28/03/2023,PE148377,409.81,0.00,turned off valves. Leak found front of building. Repair leak in Mckee centre.,Responsive Building Maintenance,
Wyre Council,http://opendatacommunities.org/doc/district-council/wyre,30/03/2023,People and Places,Support Services,135B,EAS Electrical Mechanical,22/03/2023,PE148188,95.93,0.00,"Investigate fault on toilet, isolate toilet and disconnect cistern at Civic Centre",Responsive Building Maintenance,
Wyre Council,http://opendatacommunities.org/doc/district-council/wyre,30/03/2023,People and Places,Support Services,135B,EAS Electrical Mechanical,29/03/2023,PE148426,251.60,0.00,"Investigate fault and found tap to be faulty. Order new part. Drain heater, replace part, fill and test. all AOK.",Responsive Building Maintenance,
Wyre Council,http://opendatacommunities.org/doc/district-council/wyre,30/03/2023,People and Places,Support Services,135B,EAS Electrical Mechanical,29/03/2023,PE148427,5550.00,0.00,"carpark leaking pipe, no leak found, made good trench. Completed further leak detechtion injecting gas into pipework, highlighted leak. Video supplied to WBC. Quote compiled.",Responsive Building Maintenance,
Wyre Council,http://opendatacommunities.org/doc/district-council/wyre,30/03/2023,People and Places,Support Services,135B,EAS Electrical Mechanical,20/03/2023,PE148148,196.66,0.00,Civic Centre: Converted 4ft twin store to led. Installed PIR in small store fed off mains from existing PPIR in printer room,Responsive Building Maintenance,
Wyre Council,http://opendatacommunities.org/doc/district-council/wyre,30/03/2023,People and Places,Support Services,135B,EAS Electrical Mechanical,28/03/2023,PE148412,200.55,0.00,Installed x3 pull cords,Responsive Building Maintenance,
Wyre Council,http://opendatacommunities.org/doc/district-council/wyre,30/03/2023,People and Places,Support Services,135B,EAS Electrical Mechanical,28/03/2023,PE148414,111.35,0.00,"Investigating leaking toilet, disconnect toilet and replace close couple kit. Install flexi with isolation valve and test.",Responsive Building Maintenance,
Wyre Council,http://opendatacommunities.org/doc/district-council/wyre,30/03/2023,People and Places,Planning and Development Servs,132C,EAS Electrical Mechanical,08/03/2023,PE147846,120.00,0.00,Isolate and drain heater replace and test at Fleetwood Market,Responsive Building Maintenance,
Wyre Council,http://opendatacommunities.org/doc/district-council/wyre,30/03/2023,People and Places,Planning and Development Servs,132C,EAS Electrical Mechanical,09/03/2023,PE147892,1016.50,0.00,Fleetwood Market: Remove and replace faulty water boiler and test,Responsive Building Maintenance,
Wyre Council,http://opendatacommunities.org/doc/district-council/wyre,30/03/2023,People and Places,Planning and Development Servs,132C,EAS Electrical Mechanical,22/03/2023,PE148187,78.00,0.00,"Isolate power, remove door covers, rehang door & test at Fleetwood Market",Responsive Building Maintenance,
Wyre Council,http://opendatacommunities.org/doc/district-council/wyre,30/03/2023,People and Places,Planning and Development Servs,132C,EAS Electrical Mechanical,22/03/2023,PE148219,349.53,0.00,Installed double socket above clocking in machine and rehung 2 doors at Fleetwood Market,Responsive Building Maintenance,
Wyre Council,http://opendatacommunities.org/doc/district-council/wyre,30/03/2023,People and Places,Cultural and Related Services,132A,EAS Electrical Mechanical,07/03/2023,PE147819,48.00,0.00,"Marine Hall: no power on fan or heater, room thermostat turned down, turned up fan kicked in but no heat as switch had been turned off for days turned on and told staff to notify us tomorrow when economy 7 has been on",Responsive Building Maintenance,
Wyre Council,http://opendatacommunities.org/doc/district-council/wyre,30/03/2023,People and Places,Cultural and Related Services,132A,EAS Electrical Mechanical,28/03/2023,PE148380,48.00,0.00,Contacts removed and cleaned the put back.,Responsive Building Maintenance,
Wyre Council,http://opendatacommunities.org/doc/district-council/wyre,30/03/2023,People and Places,Cultural and Related Services,132A,EAS Electrical Mechanical,28/03/2023,PE148379,124.08,0.00,New taps fitted,Responsive Building Maintenance,
Wyre Council,http://opendatacommunities.org/doc/district-council/wyre,30/03/2023,People and Places,Cultural and Related Services,132A,EAS Electrical Mechanical,28/03/2023,PE148376,69.03,0.00,change 3 brass cockets to white PVC sets,Responsive Building Maintenance,
Wyre Council,http://opendatacommunities.org/doc/district-council/wyre,30/03/2023,People and Places,Cultural and Related Services,132A,EAS Electrical Mechanical,09/03/2023,PE147891,1284.80,0.00,Marine Hall: Hire of x 2 space heaters - Hire continues,Responsive Building Maintenance,
Wyre Council,http://opendatacommunities.org/doc/district-council/wyre,30/03/2023,People and Places,Cultural and Related Services,132A,EAS Electrical Mechanical,28/03/2023,PE148413,226.57,0.00,"Drained down tank, replaced the temperature and pressure valve filled back up and tested",Responsive Building Maintenance,
Wyre Council,http://opendatacommunities.org/doc/district-council/wyre,30/03/2023,People and Places,Environmental Services,132B,EAS Electrical Mechanical,22/03/2023,PE148227,279.00,0.00,"Ivestigate blocked toilet, check manhole and arranged jetters at Beach Road Cemetery",Responsive Building Maintenance,
Wyre Council,http://opendatacommunities.org/doc/district-council/wyre,30/03/2023,People and Places,Cultural and Related Services,132A,EAS Electrical Mechanical,22/03/2023,PE148220,5790.37,0.00,Sump Pump Repairs at YMCA fleetwood,Responsive Building Maintenance,
Wyre Council,http://opendatacommunities.org/doc/district-council/wyre,30/03/2023,People and Places,Planning and Development Servs,132C,EAS Electrical Mechanical,22/03/2023,PE148226,423.75,0.00,"Remove, replace faulty heater and time clock at Copse Road Depot",Responsive Building Maintenance,
Wyre Council,http://opendatacommunities.org/doc/district-council/wyre,30/03/2023,People and Places,Planning and Development Servs,132C,EAS Electrical Mechanical,27/03/2023,PE148287,144.64,0.00,Fleetwood MArket: Remove and replace batteries on all fire doors,Responsive Building Maintenance,
Wyre Council,http://opendatacommunities.org/doc/district-council/wyre,30/03/2023,People and Places,Planning and Development Servs,132C,EAS Electrical Mechanical,22/03/2023,PE148218,1123.46,0.00,Installed extra sockets to workshop area in kitchen at Copse Road,Responsive Building Maintenance,
Wyre Council,http://opendatacommunities.org/doc/district-council/wyre,30/03/2023,People and Places,Planning and Development Servs,132C,EAS Electrical Mechanical,22/03/2023,PE148228,385.91,0.00,"Investigate leak on water heater, remove and replace at Copse Road",Responsive Building Maintenance,
Wyre Council,http://opendatacommunities.org/doc/district-council/wyre,30/03/2023,People and Places,Environmental Services,132B,ALLTITE METAL ROOFING SYSTEMS LTD,02/03/2023,PE147677,10128.00,0.00,"Please remove existing & replace roofline metalwork and RWP�s with TATA Steel HPS 200 Ultra as per your quotation - 27,739.00 + VAT",Responsive Building Maintenance,
Wyre Council,http://opendatacommunities.org/doc/district-council/wyre,30/03/2023,People and Places,Cultural and Related Services,132A,Pipescan LTD,29/03/2023,PE148463,80.00,0.00,"Drain clearance at Marine Hall, The Esplanade on 29/03/2023 as requested by Keely Jones",Responsive Building Maintenance,
Wyre Council,http://opendatacommunities.org/doc/district-council/wyre,30/03/2023,People and Places,Cultural and Related Services,132A,Pipescan LTD,22/03/2023,PE147746,900.00,0.00,"Kiosk 6, East Collonade Cafe, The Esplanade, Fleetwood: Drainage repair",Responsive Building Maintenance,
Wyre Council,http://opendatacommunities.org/doc/district-council/wyre,30/03/2023,People and Places,Cultural and Related Services,132A,Pipescan LTD,06/03/2023,PE147713,180.00,0.00,"drain clearance at Kiosk 4, The Esplanade, Fleetwood on 01/03/23",Responsive Building Maintenance,
Wyre Council,http://opendatacommunities.org/doc/district-council/wyre,30/03/2023,People and Places,Cultural and Related Services,132A,Pipescan LTD,28/03/2023,PE148370,720.00,0.00,"Kiosk 3, Laidleys Walk, Fleetwood: manhole remedial work on 27/03/23",Responsive Building Maintenance,
Wyre Council,http://opendatacommunities.org/doc/district-council/wyre,30/03/2023,People and Places,Planning and Development Servs,132C,M D Security,27/03/2023,PE148325,60.00,0.00,Copse Rd Depot: Callout  22/2/23. Fault on alarm reset shutter sweeper shead tested fine,Responsive Building Maintenance,
Wyre Council,http://opendatacommunities.org/doc/district-council/wyre,30/03/2023,People and Places,Cultural and Related Services,132A,Greens Environmental LTD,23/03/2023,PE148209,12090.00,0.00,Due to pumps failure - carry out regular uplifts to chamber situated between Marine Hall and YMCA Fleetwood.  All as per your estimate (500.00 plus vat - tanker hire and 15.00 per 1000 litres removed) - rolling order until pumps are repaired and re-instat,Responsive Building Maintenance,
Wyre Council,http://opendatacommunities.org/doc/district-council/wyre,30/03/2023,People and Places,Cultural and Related Services,132A,Greens Environmental LTD,23/03/2023,PE148208,15180.00,0.00,Due to pumps failure - carry out regular uplifts to chamber situated between Marine Hall and YMCA Fleetwood.  All as per your estimate (500.00 plus vat - tanker hire and 15.00 per 1000 litres removed) - rolling order until pumps are repaired and re-instat,Responsive Building Maintenance,
Wyre Council,http://opendatacommunities.org/doc/district-council/wyre,30/03/2023,People and Places,Planning and Development Servs,132C,Atlas Environmental Services Ltd,22/03/2023,PE148245,2078.00,0.00,"Please install bird spiking as per your quotation 2,078 + VAT.For access to the site please collect keys from Copse Road depot site� Contact Gary Scott ( 01253 887377/ 07970184891) - Wyre Council Depot, Copse Road, Fleetwood, FY7 6RP.",Responsive Building Maintenance,
Wyre Council,http://opendatacommunities.org/doc/district-council/wyre,30/03/2023,People and Places,Planning and Development Servs,132C,F PARKINSON LTD,02/03/2023,PE147701,550.00,0.00,Fleetwood Market Hall.  Carry out temporary repair to the lose roof light in the Main Hall. Quote Q2/1122/AH from JB Roofing Ltd for F PARKINSON Ltd. [500+10% OHP],Responsive Building Maintenance,
Wyre Council,http://opendatacommunities.org/doc/district-council/wyre,30/03/2023,People and Places,Cultural and Related Services,132A,GARRY CARR BUILDING SERVICES LTD,09/03/2023,PE147574,3890.00,0.00,Marine Hall: Carry out full clean down of all external walls and colonnade. Prepare concrete beams and columns in readiness for fosroc repairs,Responsive Building Maintenance,
Wyre Council,http://opendatacommunities.org/doc/district-council/wyre,30/03/2023,People and Places,Cultural and Related Services,132A,GARRY CARR BUILDING SERVICES LTD,27/03/2023,PE148320,408.00,0.00,Splash Pad - Paint masonry walls to exterior,Responsive Building Maintenance,
Wyre Council,http://opendatacommunities.org/doc/district-council/wyre,30/03/2023,People and Places,Cultural and Related Services,132A,GARRY CARR BUILDING SERVICES LTD,27/03/2023,PE148319,196.00,0.00,"Fleetwood Leisure Centre: Clean and sanitisation of basement, following sewage pump failure",Responsive Building Maintenance,
Wyre Council,http://opendatacommunities.org/doc/district-council/wyre,30/03/2023,People and Places,Cultural and Related Services,132A,GARRY CARR BUILDING SERVICES LTD,20/03/2023,PE147805,20.00,0.00,Remove graffiti from rear entrance doors at Mount Pavilion,Responsive Building Maintenance,
Wyre Council,http://opendatacommunities.org/doc/district-council/wyre,30/03/2023,People and Places,Cultural and Related Services,132A,GARRY CARR BUILDING SERVICES LTD,08/03/2023,PE147804,20.00,0.00,"Mount Cottages: Graffiti. Omit painting entrance doors, add painting out graffiti to ceiling",Responsive Building Maintenance,
Wyre Council,http://opendatacommunities.org/doc/district-council/wyre,30/03/2023,People and Places,Cultural and Related Services,132A,GARRY CARR BUILDING SERVICES LTD,22/03/2023,PE148205,106.00,0.00,Memorial Park Office: replace vandalised gutering to front of building,Responsive Building Maintenance,
Wyre Council,http://opendatacommunities.org/doc/district-council/wyre,30/03/2023,People and Places,Cultural and Related Services,132A,GARRY CARR BUILDING SERVICES LTD,21/03/2023,PE147806,938.90,0.00,"Kiosk 7, Fleetwood: Clean down of all ceilings and walls to remove black mould.  Apply 2 coats mould shield fungicidal matt",Responsive Building Maintenance,
Wyre Council,http://opendatacommunities.org/doc/district-council/wyre,30/03/2023,People and Places,Cultural and Related Services,132A,GARRY CARR BUILDING SERVICES LTD,21/03/2023,PE148086,71.00,0.00,Marine Hall: clean down and treat wall and re-paint section of wall bar cellar,Responsive Building Maintenance,
Wyre Council,http://opendatacommunities.org/doc/district-council/wyre,30/03/2023,People and Places,Cultural and Related Services,132A,GARRY CARR BUILDING SERVICES LTD,27/03/2023,PE148288,165.00,0.00,Marine Hall: Investigate and rectify leaks to dome and foyer,Responsive Building Maintenance,
Wyre Council,http://opendatacommunities.org/doc/district-council/wyre,30/03/2023,People and Places,Cultural and Related Services,132A,GARRY CARR BUILDING SERVICES LTD,27/03/2023,PE148289,5350.00,0.00,Marine Hall: Carry out concrete repairs to the ground floor area of Colonnade using Fosroc HB5 and Magma Build repair systems.,Responsive Building Maintenance,
Wyre Council,http://opendatacommunities.org/doc/district-council/wyre,30/03/2023,People and Places,Support Services,135B,GARRY CARR BUILDING SERVICES LTD,09/03/2023,PE147573,870.00,0.00,Civic Centre: Replace carpet tiles to Room 74 as quoted,Responsive Building Maintenance,
Wyre Council,http://opendatacommunities.org/doc/district-council/wyre,30/03/2023,People and Places,Support Services,135B,ECO ELECTRICAL LTD,09/03/2023,PE147784,225.00,0.00,BMS and boiler breakdown,Responsive Building Maintenance,
Wyre Council,http://opendatacommunities.org/doc/district-council/wyre,30/03/2023,People and Places,Support Services,135B,ECO ELECTRICAL LTD,09/03/2023,PE147783,450.00,0.00,Priva BMS Breakdown,Responsive Building Maintenance,
Wyre Council,http://opendatacommunities.org/doc/district-council/wyre,30/03/2023,People and Places,Highways,133B,Glasdon UK LTD,15/03/2023,PE148056,535.38,0.00,"Supply one black phoenix memorial bench with plaque.Plaque inscription to read In Memory of Sydney Walton Gee25/06/1924 to 17/10/2022Loving Husband, Father and Brother Please deliver bench to Copse Road Depot, Copse Road, Fleetwood.  Pleas",Seats and Shelters (Non BM),
Wyre Council,http://opendatacommunities.org/doc/district-council/wyre,30/03/2023,People and Places,Highways,133B,Glasdon UK LTD,02/03/2023,PE147662,535.37,0.00,Supply one black phoenix memorial bench with plaque.Plaque inscription to read In Memory of Patricia June Duff S.R.N.S.C.M. H.V.cert (nee Saunby) from 27-05-1934 to 06-07-2019                   �A Fleetwood Lass� Please deliver bench to Copse,Seats and Shelters (Non BM),
Wyre Council,http://opendatacommunities.org/doc/district-council/wyre,30/03/2023,People and Places,Environmental Services,132B,WATER PLUS LTD,28/03/2023,PE147510,7.08,0.00,Sewerage Charge,Sewerage,
Wyre Council,http://opendatacommunities.org/doc/district-council/wyre,30/03/2023,People and Places,Environmental Services,132B,WATER PLUS LTD,28/03/2023,PE146745,6.96,0.00,Water/Wastewater Charges for the period 10 September 2022 - 10 December 2062,Sewerage,
Wyre Council,http://opendatacommunities.org/doc/district-council/wyre,30/03/2023,People and Places,Environmental Services,132B,WATER PLUS LTD,28/03/2023,PE146749,7.08,0.00,Water/Wastwater Charges for the period 10 August 2021 to 10 January 2023,Sewerage,
Wyre Council,http://opendatacommunities.org/doc/district-council/wyre,30/03/2023,People and Places,Environmental Services,132B,WATER PLUS LTD,27/03/2023,PE145322,14.05,0.00,Water/Wastewater charges,Sewerage,
Wyre Council,http://opendatacommunities.org/doc/district-council/wyre,30/03/2023,People and Places,Environmental Services,132B,WATER PLUS LTD,27/03/2023,PE143847,3.51,0.00,Water/waste water charges,Sewerage,
Wyre Council,http://opendatacommunities.org/doc/district-council/wyre,30/03/2023,People and Places,Environmental Services,132B,WATER PLUS LTD,27/03/2023,PE143848,3.51,0.00,Water/waste Water Charges,Sewerage,
Wyre Council,http://opendatacommunities.org/doc/district-council/wyre,30/03/2023,People and Places,Environmental Services,132B,WATER PLUS LTD,27/03/2023,PE146744,7.08,0.00,Water/Wastewater Charges for the period 10 September 2022 - 10 November  2022,Sewerage,
Wyre Council,http://opendatacommunities.org/doc/district-council/wyre,30/03/2023,People and Places,Planning and Development Servs,132C,WATER PLUS LTD,27/03/2023,PE146751,25.75,0.00,"Highway Dept, Copse Rd, Fleetwood 10/09/22 to 10/01/23",Sewerage,
Wyre Council,http://opendatacommunities.org/doc/district-council/wyre,30/03/2023,People and Places,Planning and Development Servs,132C,WATER PLUS LTD,27/03/2023,PE145322,46.84,0.00,Water/Wastewater charges,Sewerage,
Wyre Council,http://opendatacommunities.org/doc/district-council/wyre,30/03/2023,People and Places,Planning and Development Servs,132C,WATER PLUS LTD,27/03/2023,PE145322,53.59,0.00,Water/Wastewater charges,Sewerage,
Wyre Council,http://opendatacommunities.org/doc/district-council/wyre,30/03/2023,People and Places,Planning and Development Servs,132C,WATER PLUS LTD,27/03/2023,PE143848,49.18,0.00,Water/waste Water Charges,Sewerage,
